Workbook

Sheet ÍNDICE1
F2: REPORTE DINÁMICO DE RESULTADOS PARA LAS ESCUELAS PROYECTO DIF-46
B40: ANÁLISIS DE LOS DATOS Y DISEÑO DEL PROGRAMA
B41: Oscar Cázares
B43: PARTICIPACIÓN
B44: Rosa Angélica Rodríguez Arias
B45: Francisca QuezadaVenegas
B46: Noé Ortega Estrada
B47: María Emilia Valdez Nuñez
B48: Sahira Sánchez Chaparro
B49: Idalia Rodríguez Corral
B50: Silvia Margarita Camarena
B51: Karla Zárate Terrazas
B52: Rosa María Tamaris Becerra

Sheet METODOLOGÍA
Q6: CLAVECCT | R6: Grado | S6: CANTIDAD DE ESTUDIANTES POR ESCUELA
Q7: 08DPR0535Z | R7: 3 | S7: 50
Q8: 08DPR0535Z | R8: 5 | S8: 19
Q9: Total 08DPR0535Z | S9: 69

Sheet REGLAS ESCOLARES
D2: CLAVECCT | E2: REGLAS CLARAS | F2: SE APLICAN REGLAS | G2: REGLAS JUSTAS | H2: REGLAS VS VIOLENCIA | I2: REGLAS VS ACOSO SEXUAL | J2: REGLAS PREVENIR VIOLENCIA | K2: REGLAMENTO AULA | L2: OBEDECEMOS REGLAMENTO | M2: DERECHO A PARTICIPAR | O2: REGLAS CLARAS | P2: SE APLICAN REGLAS | Q2: REGLAS JUSTAS | R2: REGLAS VS VIOLENCIA | S2: REGLAS VS ACOSO SEXUAL | T2: REGLAS PREVENIR VIOLENCIA | U2: REGLAMENTO AULA | V2: OBEDECEMOS REGLAMENTO | W2: DERECHO A PARTICIPAR
D3: 08DPR0535Z | E3: 1.064516129 | F3: 1.081967213 | G3: 1.147540984 | H3: 1.163934426 | I3: 1.31147541 | J3: 1.133333333 | K3: 1.266666667 | L3: 1.355932203 | M3: 1.049180328 | O3: =(E3-4)*-1 -> 2.935483871 | P3: =(F3-4)*-1 -> 2.918032787 | Q3: 2.852459016 | R3: 2.836065574 | S3: 2.68852459 | T3: 2.866666667 | U3: 2.733333333 | V3: 2.644067797 | W3: 2.950819672
B6: CENTRO ESCOLAR
B7: 08DPR0535Z
B8: BENITO JUAREZ

Sheet CLIMA AULA
D2: CLAVECCT | E2: Agradable | F2: Bonito | G2: Iluminación | H2: Ventilación | I2: Pintura | J2: Bancas_organizadas | K2: Bancas_movimiento | L2: Limpieza | M2: Materiales | N2: Libros | O2: Dibujos | P2: Cuidado_alumnos | Q2: Agradable | R2: Bonito | S2: Iluminación | T2: Ventilación | U2: Pintura | V2: Bancas organizadas | W2: Bancas movimiento | X2: Limpieza | Y2: Materiales | Z2: Libros | AA2: Dibujos | AB2: Cuidado alumnos
D3: 08DPR0535Z | E3: 1.507692308 | F3: 1.75 | G3: 1.310344828 | H3: 1.64516129 | I3: 2 | J3: 1.482142857 | K3: 1.593220339 | L3: 1.945454545 | M3: 1.696428571 | N3: 1.392857143 | O3: 1.58490566 | P3: 2 | Q3: =(E3-4)*-1 -> 2.492307692 | R3: =(F3-4)*-1 -> 2.25 | S3: =(G3-4)*-1 -> 2.689655172 | T3: 2.35483871 | U3: 2 | V3: 2.517857143 | W3: 2.406779661 | X3: 2.054545455 | Y3: 2.303571429 | Z3: 2.607142857 | AA3: 2.41509434 | AB3: 2
B6: CENTRO ESCOLAR
B7: 08DPR0535Z
B8: BENITO JUAREZ

Sheet NIV-SOCIO
J1: POSESIÓN DE BIENES Y SERVICIOS QUE LOS ESTUDIANTES DICEN TENER
AC2: Etiquetas de fila | AD2: Recuento distinto de ID_ESTUDIANTE | AK2: Etiquetas de fila | AL2: ID_ESTUDIANTE | AP2: Etiquetas de fila | AQ2: Recuento de ID_ESTUDIANTE
AC3: 08DPR0535Z | AE3: PORCENTAJE | AK3: 08DPR0535Z | AM3: PORCENTAJE MAMÁ | AP3: 08DPR0535Z | AR3: PORCENTAJE DE ESTUDIANTES QUE INDICARON TENER CELULAR PARA USO PERSONAL
H4: CLAVECCT | I4: ID_ESTUDIANTE | J4: Refigerador | K4: Electricidad | L4: Lavadoraderopa | M4: Televisor | N4: Juegos electrónicos | O4: COMPUTADORA | P4: Interne | Q4: intertnetcel | AC4: PRIMARIA | AD4: 10 | AE4: =(AD4*100)/AD8 -> 19.60784314 | AK4: 2 | AL4: 10 | AM4: =(AL4*100)/AL8 -> 20 | AP4: 1 | AQ4: 22 | AR4: =(AQ4*100)/AQ6 -> 57.89473684
H5: 08DPR0535Z | I5: 1 | J5: 1 | K5: 1 | L5: 1 | M5: 1 | N5: 2 | O5: 1 | P5: 2 | Q5: 1 | R5: =SUMIF(J5:Q5,"1") -> 6 | AC5: SECUNDARIA | AD5: 19 | AE5: =(AD5*100)/AD8 -> 37.25490196 | AK5: 3 | AL5: 12 | AM5: =(AL5*100)/AL8 -> 24 | AP5: 2 | AQ5: 16 | AR5: =(AQ5*100)/AQ6 -> 42.10526316
H6: 08DPR0535Z | I6: 2 | J6: 1 | K6: 1 | L6: 1 | M6: 1 | N6: 2 | O6: 2 | P6: 2 | Q6: 2 | R6: =SUMIF(J6:Q6,"1") -> 4 | AC6: PEPARATORIA | AD6: 14 | AE6: =(AD6*100)/AD8 -> 27.45098039 | AK6: 4 | AL6: 17 | AM6: =(AL6*100)/AL8 -> 34 | AP6: Total general | AQ6: 38 | AR6: =(AQ6*100)/AQ6 -> 100
H7: 08DPR0535Z | I7: 3 | J7: 1 | K7: 1 | L7: 1 | M7: 1 | N7: 1 | O7: 2 | P7: 2 | Q7: 1 | R7: 6 | AC7: PROFESIONAL | AD7: 8 | AE7: =(AD7*100)/AD8 -> 15.68627451 | AK7: 5 | AL7: 11 | AM7: =(AL7*100)/AL8 -> 22
H8: 08DPR0535Z | I8: 4 | J8: 1 | K8: 1 | L8: 1 | M8: 1 | N8: 2 | O8: 1 | P8: 2 | Q8: 1 | R8: 6 | AC8: Total general | AD8: 51 | AE8: =(AD8*100)/AD8 -> 100 | AK8: Total general | AL8: 50 | AM8: =(AL8*100)/AL8 -> 100
H9: 08DPR0535Z | I9: 5 | J9: 1 | K9: 1 | L9: 1 | M9: 1 | N9: 1 | O9: 1 | P9: 1 | Q9: 1 | R9: 8
H10: 08DPR0535Z | I10: 6 | J10: 1 | K10: 1 | L10: 1 | M10: 1 | N10: 1 | O10: 2 | P10: 1 | Q10: 2 | R10: 6
H11: 08DPR0535Z | I11: 7 | J11: 1 | K11: 1 | L11: 1 | M11: 1 | N11: 1 | O11: 1 | P11: 1 | Q11: 1 | R11: 8
H12: 08DPR0535Z | I12: 8 | J12: 1 | K12: 1 | L12: 1 | M12: 1 | N12: 1 | O12: 1 | P12: 1 | Q12: 1 | R12: 8
H13: 08DPR0535Z | I13: 9 | J13: 1 | K13: 1 | L13: 1 | M13: 1 | N13: 2 | O13: 1 | P13: 2 | Q13: 1 | R13: 6
H14: 08DPR0535Z | I14: 10 | J14: 1 | K14: 1 | L14: 1 | M14: 1 | N14: 2 | O14: 1 | P14: 0 | Q14: 0 | R14: 5
H15: 08DPR0535Z | I15: 11 | J15: 1 | K15: 1 | L15: 1 | M15: 1 | N15: 1 | O15: 1 | P15: 1 | Q15: 0 | R15: 7
H16: 08DPR0535Z | I16: 12 | J16: 1 | K16: 1 | L16: 1 | M16: 1 | N16: 2 | O16: 1 | P16: 2 | Q16: 1 | R16: 6
H17: 08DPR0535Z | I17: 13 | J17: 1 | K17: 1 | L17: 1 | M17: 1 | N17: 1 | O17: 1 | P17: 0 | Q17: 0 | R17: 6
H18: 08DPR0535Z | I18: 14 | J18: 1 | K18: 1 | L18: 1 | M18: 1 | N18: 1 | O18: 1 | P18: 1 | Q18: 1 | R18: 8
H19: 08DPR0535Z | I19: 15 | J19: 1 | K19: 1 | L19: 1 | M19: 1 | N19: 0 | O19: (en blanco) | P19: 0 | Q19: 0 | R19: 4
H20: 08DPR0535Z | I20: 16 | J20: 1 | K20: 1 | L20: 1 | M20: 1 | N20: 1 | O20: 1 | P20: 2 | Q20: 2 | R20: 6
H21: 08DPR0535Z | I21: 17 | J21: 0 | K21: 1 | L21: 0 | M21: 0 | N21: 0 | O21: (en blanco) | P21: 1 | Q21: 0 | R21: 2
H22: 08DPR0535Z | I22: 18 | J22: 0 | K22: 0 | L22: 0 | M22: 0 | N22: 0 | O22: (en blanco) | P22: 0 | Q22: 0 | R22: 0
H23: 08DPR0535Z | I23: 19 | J23: 1 | K23: 1 | L23: 1 | M23: 1 | N23: 2 | O23: 1 | P23: 0 | Q23: 0 | R23: 5
C24: CENTRO ESCOLAR | H24: 08DPR0535Z | I24: 20 | J24: 1 | K24: 1 | L24: 1 | M24: 1 | N24: 0 | O24: (en blanco) | P24: 1 | Q24: 0 | R24: 5
C25: 08DPR0535Z | H25: 08DPR0535Z | I25: 21 | J25: 1 | K25: 1 | L25: 1 | M25: 1 | N25: 1 | O25: 1 | P25: 2 | Q25: 0 | R25: 6
C26: BENITO JUAREZ | H26: 08DPR0535Z | I26: 22 | J26: 1 | K26: 1 | L26: 1 | M26: 1 | N26: 1 | O26: 1 | P26: 1 | Q26: 1 | R26: 8
H27: 08DPR0535Z | I27: 23 | J27: 1 | K27: 1 | L27: 1 | M27: 1 | N27: 0 | O27: (en blanco) | P27: 0 | Q27: 0 | R27: 4
H28: 08DPR0535Z | I28: 24 | J28: 1 | K28: 1 | L28: 1 | M28: 1 | N28: 1 | O28: 1 | P28: 2 | Q28: 1 | R28: 7
H29: 08DPR0535Z | I29: 25 | J29: 1 | K29: 1 | L29: 1 | M29: 1 | N29: 2 | O29: 1 | P29: 1 | Q29: 1 | R29: 7
H30: 08DPR0535Z | I30: 26 | J30: 1 | K30: 1 | L30: 1 | M30: 1 | N30: 1 | O30: 1 | P30: 1 | Q30: 2 | R30: 7
H31: 08DPR0535Z | I31: 27 | J31: 1 | K31: 1 | L31: 1 | M31: 1 | N31: 1 | O31: 2 | P31: 0 | Q31: 1 | R31: 6
H32: 08DPR0535Z | I32: 28 | J32: 1 | K32: 1 | L32: 1 | M32: 1 | N32: 1 | O32: 1 | P32: 1 | Q32: 1 | R32: 8
H33: 08DPR0535Z | I33: 29 | J33: 1 | K33: 1 | L33: 1 | M33: 1 | N33: 1 | O33: 1 | P33: 0 | Q33: 0 | R33: 6
H34: 08DPR0535Z | I34: 30 | J34: 1 | K34: 1 | L34: 1 | M34: 1 | N34: 1 | O34: 1 | P34: 1 | Q34: 0 | R34: 7
H35: 08DPR0535Z | I35: 31 | J35: 1 | K35: 1 | L35: 1 | M35: 1 | N35: 1 | O35: 1 | P35: 1 | Q35: 1 | R35: 8
H36: 08DPR0535Z | I36: 32 | J36: 1 | K36: 1 | L36: 1 | M36: 1 | N36: 2 | O36: 2 | P36: 1 | Q36: 2 | R36: 5
H37: 08DPR0535Z | I37: 33 | J37: 1 | K37: 1 | L37: 2 | M37: 1 | N37: 2 | O37: 1 | P37: 2 | Q37: 2 | R37: 4
H38: 08DPR0535Z | I38: 34 | J38: 1 | K38: 1 | L38: 1 | M38: 0 | N38: 1 | O38: 1 | P38: 0 | Q38: 0 | R38: 5
H39: 08DPR0535Z | I39: 35 | J39: 1 | K39: 1 | L39: 1 | M39: 1 | N39: 1 | O39: 1 | P39: 0 | Q39: 0 | R39: 6
H40: 08DPR0535Z | I40: 36 | J40: 1 | K40: 1 | L40: 1 | M40: 1 | N40: 1 | O40: 2 | P40: 1 | Q40: 1 | R40: 7
H41: 08DPR0535Z | I41: 37 | J41: 2 | K41: 1 | L41: 1 | M41: 1 | N41: 1 | O41: 1 | P41: 1 | Q41: 1 | R41: 7
H42: 08DPR0535Z | I42: 38 | J42: 1 | K42: 1 | L42: 1 | M42: 1 | N42: 1 | O42: 1 | P42: 1 | Q42: 1 | R42: 8
H43: 08DPR0535Z | I43: 39 | J43: 1 | K43: 1 | L43: 1 | M43: 1 | N43: 1 | O43: 1 | P43: 1 | Q43: 1 | R43: 8
H44: 08DPR0535Z | I44: 40 | J44: 1 | K44: 1 | L44: 1 | M44: 1 | N44: 2 | O44: 2 | P44: 2 | Q44: 2 | R44: 4
H45: 08DPR0535Z | I45: 41 | J45: 1 | K45: 1 | L45: 1 | M45: 1 | N45: 2 | O45: 2 | P45: 2 | Q45: 2 | R45: 4
H46: 08DPR0535Z | I46: 42 | J46: 1 | K46: 1 | L46: 1 | M46: 1 | N46: 1 | O46: 1 | P46: 1 | Q46: 1 | R46: 8
H47: 08DPR0535Z | I47: 43 | J47: 1 | K47: 1 | L47: 1 | M47: 1 | N47: 1 | O47: 1 | P47: 1 | Q47: 1 | R47: 8
H48: 08DPR0535Z | I48: 44 | J48: 1 | K48: 1 | L48: 1 | M48: 1 | N48: 2 | O48: 1 | P48: 2 | Q48: 1 | R48: 6
H49: 08DPR0535Z | I49: 45 | J49: 1 | K49: 1 | L49: 1 | M49: 1 | N49: 2 | O49: 1 | P49: 2 | Q49: 2 | R49: 5
H50: 08DPR0535Z | I50: 46 | J50: 1 | K50: 1 | L50: 1 | M50: 1 | N50: 1 | O50: 1 | P50: 1 | Q50: 1 | R50: 8
H51: 08DPR0535Z | I51: 47 | J51: 1 | K51: 1 | L51: 1 | M51: 1 | N51: 2 | O51: 2 | P51: 2 | Q51: 1 | R51: 5
H52: 08DPR0535Z | I52: 48 | J52: 1 | K52: 1 | L52: 1 | M52: 1 | N52: 1 | O52: 1 | P52: 1 | Q52: 1 | R52: 8
H53: 08DPR0535Z | I53: 49 | J53: 1 | K53: 1 | L53: 1 | M53: 1 | N53: 1 | O53: 1 | P53: 2 | Q53: 2 | R53: 6
H54: 08DPR0535Z | I54: 50 | J54: 1 | K54: 1 | L54: 1 | M54: 1 | N54: 1 | O54: 1 | P54: 2 | Q54: 2 | R54: 6
H55: 08DPR0535Z | I55: 51 | J55: 1 | K55: 1 | L55: 1 | M55: 1 | N55: 2 | O55: 2 | P55: 2 | Q55: 1 | R55: 5
H56: 08DPR0535Z | I56: 52 | J56: 1 | K56: 1 | L56: 1 | M56: 1 | N56: 1 | O56: 2 | P56: 1 | Q56: 1 | R56: 7
H57: 08DPR0535Z | I57: 53 | J57: 1 | K57: 1 | L57: 1 | M57: 1 | N57: 2 | O57: 2 | P57: 2 | Q57: 2 | R57: 4
H58: 08DPR0535Z | I58: 54 | J58: 1 | K58: 1 | L58: 1 | M58: 1 | N58: 2 | O58: 1 | P58: 1 | Q58: 2 | R58: 6
H59: 08DPR0535Z | I59: 55 | J59: 1 | K59: 1 | L59: 1 | M59: 1 | N59: 2 | O59: 1 | P59: 2 | Q59: 2 | R59: 5
H60: 08DPR0535Z | I60: 56 | J60: 1 | K60: 1 | L60: 1 | M60: 1 | N60: 2 | O60: 2 | P60: 1 | Q60: 2 | R60: 5
H61: 08DPR0535Z | I61: 57 | J61: 0 | K61: 0 | L61: 0 | M61: 0 | N61: 0 | O61: (en blanco) | P61: 0 | Q61: 0 | R61: 0
H62: 08DPR0535Z | I62: 58 | J62: 1 | K62: 1 | L62: 1 | M62: 1 | N62: 2 | O62: 1 | P62: 2 | Q62: 2 | R62: 5
H63: 08DPR0535Z | I63: 59 | J63: 0 | K63: 1 | L63: 0 | M63: 0 | N63: 0 | O63: 1 | P63: 1 | Q63: 1 | R63: 4
H64: 08DPR0535Z | I64: 60 | J64: 1 | K64: 1 | L64: 1 | M64: 1 | N64: 1 | O64: 1 | P64: 2 | Q64: 1 | R64: 7
H65: 08DPR0535Z | I65: 61 | J65: 1 | K65: 1 | L65: 1 | M65: 1 | N65: 2 | O65: 2 | P65: 2 | Q65: 1 | R65: 5
H66: 08DPR0535Z | I66: 62 | J66: 1 | K66: 1 | L66: 1 | M66: 1 | N66: 2 | O66: 2 | P66: 2 | Q66: 2 | R66: 4
H67: 08DPR0535Z | I67: 63 | J67: 1 | K67: 1 | L67: 1 | M67: 1 | N67: 1 | O67: 2 | P67: 2 | Q67: 1 | R67: 6
H68: 08DPR0535Z | I68: 64 | J68: 0 | K68: 0 | L68: 0 | M68: 0 | N68: 0 | O68: (en blanco) | P68: 0 | Q68: 0 | R68: 0
H69: 08DPR0535Z | I69: 65 | J69: 1 | K69: 1 | L69: 1 | M69: 1 | N69: 1 | O69: 1 | P69: 1 | Q69: 1 | R69: 8
H70: 08DPR0535Z | I70: 66 | J70: 1 | K70: 1 | L70: 1 | M70: 1 | N70: 1 | O70: 2 | P70: 1 | Q70: 1 | R70: =SUMIF(J70:Q70,"1") -> 7
H71: 08DPR0535Z | I71: 67 | J71: 1 | K71: 1 | L71: 1 | M71: 1 | N71: 0 | O71: (en blanco) | P71: 0 | Q71: 1 | R71: 5
H72: 08DPR0535Z | I72: 68 | J72: 1 | K72: 1 | L72: 0 | M72: 1 | N72: 2 | O72: 2 | P72: 2 | Q72: 2 | R72: 3
H73: 08DPR0535Z | I73: 69 | J73: 1 | K73: 1 | L73: 1 | M73: 1 | N73: 1 | O73: 1 | P73: 1 | Q73: 1 | R73: 8
R74: 0
R75: 0
R76: 0
R77: 0
R78: 0
R79: 0
R80: 0
R81: 0
R82: 0
R83: 0
R84: 0
R85: 0
R86: 0
R87: 0
R88: 0
R89: 0
R90: 0
R91: 0
R92: 0
R93: 0
R94: 0
R95: 0
R96: 0
R97: 0
R98: 0
R99: 0
R100: 0
R101: 0
R102: 0
R103: 0
R104: 0
R105: 0
R106: 0
R107: 0
R108: 0
R109: 0
R110: 0
R111: 0
R112: 0
R113: 0
R114: 0
R115: 0
R116: 0
R117: 0
R118: 0
R119: 0
R120: 0
R121: 0
R122: 0
R123: 0
R124: 0
R125: 0
R126: 0
R127: 0
R128: 0
R129: 0
R130: 0
R131: 0
R132: 0
R133: 0
R134: =SUMIF(J134:Q134,"1") -> 0
R135: 0
R136: 0
R137: 0
R138: 0
R139: 0
R140: 0
R141: 0
R142: 0
R143: 0
R144: 0
R145: 0
R146: 0

Sheet PARTICIPACIÓN
H1: NIVEL DE PARTICIPACIÓN DE LOS ESTUDIANTES EN ACTIVIDADES DE LA ESCUELA
F2: CLAVECCT | G2: Sexo
F3: 08DPR0535Z | G3: 08DPR0535Z
E4: Valores | F4: HOMBRE | G4: MUJER | H4: HOMBRE | I4: MUJER
E5: PARTICIPACIÓN CLASES | F5: 1.352941176 | G5: 1.294117647 | H5: =(F5-4)*-1 -> 2.647058824 | I5: =(G5-4)*-1 -> 2.705882353
E6: PARTICIPACIÓN DEPORTIVA | F6: 1.15625 | G6: 1.117647059 | H6: =(F6-4)*-1 -> 2.84375 | I6: =(G6-4)*-1 -> 2.882352941
E7: PARTICIPACIÓN CÍVICA | F7: 1.545454545 | G7: 1.375 | H7: 2.454545455 | I7: 2.625
B8: CENTRO ESCOLAR | E8: PROPONER ACTIVIDADES | F8: 1.375 | G8: 1.272727273 | H8: 2.625 | I8: 2.727272727
B9: 08DPR0535Z | E9: EXPRESAR OPINIÓN | F9: 1.612903226 | G9: 1.333333333 | H9: 2.387096774 | I9: 2.666666667
B10: BENITO JUAREZ | E10: MAESTRO TE PIDE PARTICIPACIÓN | F10: 1.303030303 | G10: 1.181818182 | H10: 2.696969697 | I10: 2.818181818
I20: PARTICIPACIÓN CLASES | J20: PARTICIPACIÓN DEPORTIVA | K20: PARTICIPACIÓN CÍVICA | L20: PROPONER ACTIVIDADES | M20: EXPRESAR OPINIÓN | N20: MAESTRO TE PIDE PARTICIPACIÓN

Sheet INTELIGENCIA EMOCIONAL
H1: ASPECTOS DE INTELIGENCIA EMOCIONAL
B2: CLAVECCT | C2: Sexo
B3: 08DPR0535Z | C3: 08DPR0535Z
A4: Valores | B4: 1 | C4: 2
A5: JEFE DE GRUPO | B5: 1 | C5: 1
A6: DISCULPAS | B6: 2 | C6: 2
A7: CONTROL | B7: 2 | C7: 2
A8: NERVIOSO | B8: 2 | C8: 2
G9: CENTRO ESCOLAR
G10: 08DPR0535Z
G11: BENITO JUAREZ

Sheet AGRESIVIDAD ÍNDICE

Sheet AGRESIVIDAD INDICADOR
B2: CLAVECCT | C2: BROMAS | D2: ENOJARSE | E2: REPONDER CON GOLPES | F2: BROMAS PARA BURLAS | G2: INCITAR A PELEAR | H2: EMPUJAR | I2: ENOJARSE TODO EL DÍA | J2: PELEARSE | K2: DAR PATADAS | L2: INSULTAR | M2: AMENAZAR | W2: INDICADOR GENERAL AGRESIVIDAD
B3: 08DPR0535Z | C3: 1.5 | D3: 1.790322581 | E3: 1.491803279 | F3: 1.393442623 | G3: 1.220338983 | H3: 1.360655738 | I3: 1.459016393 | J3: 1.383333333 | K3: 1.465517241 | L3: 1.288135593 | M3: 1.344262295 | O3: =(C3+D3+E3+F3+G3+H3+I3+J3+K3+L3+M3)/11 -> 1.426984369 | W3: 12.9575299 | X3: =W3/11 -> 1.177957264
N7: CENTRO ESCOLAR
N8: 08DPR0535Z

Sheet AGRESIVIDAD GRADO
C2: Grado | D2: CLAVECCT | E2: Promedio de INDICADOR AGRESIVIDAD | F2: INDICADOR DE AGRESIVIDAD POR GUPO | J2: CLAVECCT | K2: Grado | T2: Etiquetas de fila | U2: Promedio de INDICADOR AGRESIVIDAD | V2: Promedio de INDICADOR AGRESIVIDAD
C3: 3 | D3: 08DPR0535Z | E3: 12.89583333 | F3: =E3/11 -> 1.172348485 | J3: 08DPR0535Z | K3: 3 | L3: =E3/11 -> 1.172348485 | T3: 08DPR0535Z | V3: =U3/11 -> 0
C4: 5 | D4: 08DPR0535Z | E4: 14.78947368 | F4: =E4/11 -> 1.344497608 | J4: 08DPR0535Z | K4: 5 | L4: =E4/11 -> 1.344497608 | T4: 3 | U4: 12.89583333 | V4: =U4/11 -> 1.172348485
F5: 0 | L5: 0 | T5: 5 | U5: 14.78947368 | V5: =U5/11 -> 1.344497608
F6: 0 | L6: 0 | V6: 0
B7: CENTRO ESCOLAR | F7: 0 | L7: 0 | V7: 0
B8: 08DPR0535Z | F8: 0 | L8: 0 | V8: 0
F9: 0 | V9: 0
F10: 0

Sheet ÍNDICE VICTIM

Sheet VICTIM_ÍNDICE
E2: CLAVECCT | F2: ID_ESTUDIANTE | G2: RECIBIR BROMAS | H2: RECIBIR GOLPES | I2: RECIBIR BURLAS | J2: INCITACIÓN A PELEAR | K2: RECIBIR EMPUJÓN | L2: RECIBIR PROVOCACIÓN | M2: RECIBIR PATADAS | N2: RECIBIR INSULTOS | O2: RECIBIR AMENAZAS | P2: HACER SENTIR MAL | R2: DURANTE LA ÚLTIMA SEMANA ¿CUÁNTAS VECES TE SUCEDIÓ ALGO COMO ESTO?
E3: 08DPR0535Z | F3: 1 | G3: 2 | H3: 2 | I3: 2 | J3: 2 | K3: 2 | L3: 1 | M3: 2 | N3: 2 | O3: 1 | P3: 2 | R3: 1 | S3: NINGUNA VEZ
E4: 08DPR0535Z | F4: 3 | G4: 2 | H4: 4 | I4: 1 | J4: 1 | K4: 2 | L4: 1 | M4: 1 | P4: 2 | R4: 2 | S4: UNA O DOS VECES
E5: 08DPR0535Z | F5: 4 | G5: 4 | H5: 4 | I5: 1 | J5: 4 | K5: 4 | L5: 4 | M5: 4 | N5: 4 | O5: 1 | P5: 4 | R5: 3 | S5: DOS O TRES VECES
E6: 08DPR0535Z | F6: 5 | G6: 1 | M6: 3 | P6: 3 | R6: 4 | S6: MÁS DE CINCO VECES
E7: 08DPR0535Z | F7: 6 | G7: 2 | H7: 2 | I7: 1 | J7: 2 | K7: 2 | L7: 1 | M7: 2 | N7: 1 | O7: 1 | P7: 2
E8: 08DPR0535Z | F8: 7 | G8: 1 | H8: 1 | I8: 1 | J8: 1 | K8: 1 | L8: 1 | M8: 1 | N8: 1 | O8: 1 | P8: 1
E9: 08DPR0535Z | F9: 8 | G9: 2 | H9: 1 | I9: 1 | J9: 1 | K9: 2 | L9: 1 | M9: 2 | N9: 2 | O9: 1 | P9: 1
E10: 08DPR0535Z | F10: 9 | G10: 1 | H10: 1 | I10: 1 | J10: 1 | K10: 1 | L10: 1 | M10: 1 | N10: 1 | O10: 1 | P10: 1
E11: 08DPR0535Z | F11: 10 | G11: 3 | H11: 2 | I11: 1 | J11: 1 | K11: 2 | L11: 1 | M11: 1 | N11: 1 | O11: 2 | P11: 3
E12: 08DPR0535Z | F12: 11 | G12: 1 | H12: 1 | I12: 1 | J12: 1 | K12: 1 | L12: 1 | M12: 1 | N12: 1 | O12: 1 | P12: 1
E13: 08DPR0535Z | F13: 12 | G13: 4 | H13: 1 | I13: 1 | J13: 1 | K13: 1 | L13: 1 | M13: 1 | N13: 1 | O13: 1 | P13: 1
E14: 08DPR0535Z | F14: 13 | G14: 2 | J14: 1 | K14: 4
A15: OPCIONES DE RESPUESTA | E15: 08DPR0535Z | F15: 14 | H15: 2
A16: 1 | B16: NINGUNA VEZ | E16: 08DPR0535Z | F16: 15 | G16: 2 | H16: 2 | I16: 1 | J16: 1 | K16: 2 | L16: 1 | M16: 2 | N16: 3 | O16: 2 | P16: 3
A17: 2 | B17: DE 1 A 2 VECES | E17: 08DPR0535Z | F17: 16 | G17: 2 | H17: 2 | I17: 4 | P17: 4
A18: 3 | B18: DE 3 A 4 VECES | E18: 08DPR0535Z | F18: 17 | G18: 1 | H18: 1 | I18: 1 | J18: 1 | K18: 1 | L18: 2 | M18: 1 | N18: 1 | O18: 4 | P18: 1
A19: 4 | B19: 5 O MÁS VECES | E19: 08DPR0535Z | F19: 19 | G19: 2 | H19: 1 | I19: 2 | J19: 2 | K19: 2 | L19: 2 | M19: 2 | N19: 1 | O19: 1 | P19: 2
E20: 08DPR0535Z | F20: 20 | G20: 1 | H20: 2
B21: CENTRO ESCOLAR | E21: 08DPR0535Z | F21: 21 | G21: 2 | H21: 2 | I21: 2 | J21: 2 | K21: 2 | L21: 2 | M21: 2 | N21: 2 | O21: 2 | P21: 2
B22: 08DPR0535Z | E22: 08DPR0535Z | F22: 22 | G22: 4 | H22: 4 | I22: 4 | J22: 4 | K22: 4 | L22: 4 | M22: 4 | N22: 4 | O22: 4 | P22: 4
B23: BENITO JUAREZ | E23: 08DPR0535Z | F23: 23 | G23: 2 | H23: 1 | I23: 1 | J23: 1 | K23: 1 | L23: 1 | M23: 1 | N23: 1 | O23: 1 | P23: 1
E24: 08DPR0535Z | F24: 24 | G24: 2 | H24: 1 | I24: 2 | J24: 1 | K24: 1 | L24: 1 | M24: 1 | N24: 1 | O24: 1 | P24: 1
E25: 08DPR0535Z | F25: 25 | G25: 1 | H25: 2 | I25: 1 | J25: 1 | K25: 2 | L25: 1 | M25: 2 | N25: 2 | O25: 2 | P25: 1
E26: 08DPR0535Z | F26: 26 | G26: 3 | H26: 1 | I26: 1 | J26: 1 | K26: 1 | L26: 1 | M26: 1 | N26: 1 | O26: 1 | P26: 1
E27: 08DPR0535Z | F27: 27 | G27: 1 | H27: 1 | I27: 1 | J27: 1 | K27: 2 | L27: 1 | M27: 2 | N27: 1 | O27: 1 | P27: 1
E28: 08DPR0535Z | F28: 28 | G28: 4 | H28: 4 | I28: 4 | J28: 1 | K28: 1 | L28: 1 | M28: 1 | N28: 4 | O28: 4 | P28: 4
E29: 08DPR0535Z | F29: 29 | G29: 1 | H29: 2 | I29: 2 | J29: 2 | K29: 2 | L29: 2 | M29: 2 | N29: 2 | O29: 4 | P29: 4
E30: 08DPR0535Z | F30: 30 | G30: 2 | H30: 2 | I30: 1 | J30: 1 | K30: 1 | L30: 1 | M30: 1 | N30: 1 | O30: 2 | P30: 2
E31: 08DPR0535Z | F31: 31 | G31: 1 | H31: 1 | I31: 1 | J31: 1 | K31: 1 | L31: 1 | M31: 1 | N31: 1 | O31: 1 | P31: 1
E32: 08DPR0535Z | F32: 32 | G32: 1 | H32: 1 | I32: 1 | J32: 1 | K32: 1 | L32: 1 | M32: 1 | N32: 1 | O32: 1 | P32: 2
E33: 08DPR0535Z | F33: 33 | G33: 1 | H33: 1 | I33: 1 | J33: 1 | K33: 1 | L33: 1 | M33: 1 | N33: 1 | O33: 1 | P33: 1
E34: 08DPR0535Z | F34: 34 | G34: 1 | H34: 1 | I34: 1 | J34: 1 | K34: 1 | L34: 2 | M34: 2 | N34: 2 | O34: 2 | P34: 2
E35: 08DPR0535Z | F35: 35 | G35: 1 | H35: 1 | I35: 1 | J35: 1 | K35: 1 | L35: 1 | M35: 1 | N35: 1 | O35: 1 | P35: 1
E36: 08DPR0535Z | F36: 36 | G36: 2 | H36: 1 | I36: 2 | J36: 1 | K36: 2 | L36: 1 | M36: 2 | N36: 3 | O36: 1 | P36: 2
E37: 08DPR0535Z | F37: 37 | G37: 1 | H37: 1 | I37: 1 | J37: 1 | K37: 1 | L37: 1 | M37: 1 | N37: 1 | O37: 1 | P37: 1
E38: 08DPR0535Z | F38: 38 | G38: 1 | H38: 1 | I38: 1 | J38: 1 | K38: 1 | L38: 1 | M38: 1 | N38: 1 | O38: 1 | P38: 1
E39: 08DPR0535Z | F39: 39 | G39: 1 | H39: 1 | I39: 1 | J39: 1 | K39: 1 | L39: 1 | M39: 1 | N39: 1 | O39: 1 | P39: 2
E40: 08DPR0535Z | F40: 40 | G40: 1 | H40: 1 | I40: 1 | J40: 1 | K40: 1 | L40: 1 | M40: 1 | N40: 1 | O40: 1 | P40: 1
E41: 08DPR0535Z | F41: 41 | G41: 4 | H41: 1 | I41: 1 | J41: 1 | K41: 2 | L41: 2 | M41: 1 | N41: 3 | O41: 2 | P41: 1
E42: 08DPR0535Z | F42: 42 | G42: 4 | H42: 1 | I42: 1 | J42: 1 | K42: 1 | L42: 1 | M42: 1 | N42: 1 | O42: 1 | P42: 2
E43: 08DPR0535Z | F43: 43 | G43: 2 | H43: 1 | I43: 2 | J43: 1 | K43: 4 | L43: 1 | M43: 2 | N43: 3 | O43: 2 | P43: 4
E44: 08DPR0535Z | F44: 44 | G44: 1 | H44: 2 | I44: 1 | J44: 3 | K44: 4 | L44: 2 | M44: 2 | N44: 2 | O44: 2 | P44: 4
E45: 08DPR0535Z | F45: 45 | G45: 1 | H45: 1 | I45: 1 | J45: 1 | K45: 1 | L45: 1 | M45: 4 | N45: 2 | O45: 2 | P45: 1
E46: 08DPR0535Z | F46: 46 | G46: 1 | H46: 1 | I46: 1 | K46: 1 | M46: 1 | N46: 1 | O46: 1 | P46: 1
E47: 08DPR0535Z | F47: 47 | G47: 2 | H47: 1 | I47: 1 | J47: 1 | K47: 1 | L47: 1 | M47: 1 | N47: 1 | O47: 1 | P47: 4
E48: 08DPR0535Z | F48: 48 | G48: 2 | H48: 1 | I48: 1 | J48: 2 | K48: 1 | L48: 2 | M48: 2 | N48: 2 | O48: 2 | P48: 2
E49: 08DPR0535Z | F49: 50 | G49: 2 | H49: 3 | I49: 4 | J49: 3 | K49: 2 | L49: 3 | M49: 3 | N49: 3 | O49: 4 | P49: 3
E50: 08DPR0535Z | F50: 51 | G50: 1 | H50: 4 | I50: 1 | J50: 2 | K50: 4 | L50: 4 | M50: 4 | N50: 4 | O50: 4 | P50: 1
E51: 08DPR0535Z | F51: 52 | G51: 2 | H51: 2 | I51: 2 | J51: 2 | K51: 2 | L51: 2 | M51: 2 | N51: 2 | O51: 2 | P51: 2
E52: 08DPR0535Z | F52: 53 | G52: 2 | H52: 1 | I52: 1 | J52: 1 | K52: 1 | L52: 1 | M52: 1 | N52: 1 | O52: 1 | P52: 1
E53: 08DPR0535Z | F53: 54 | G53: 1 | H53: 4 | I53: 1 | J53: 1 | K53: 1 | L53: 1 | M53: 1 | N53: 4 | O53: 4 | P53: 1
E54: 08DPR0535Z | F54: 55 | G54: 4 | H54: 4 | I54: 1 | J54: 1 | K54: 4 | L54: 1 | M54: 4 | N54: 1 | O54: 1 | P54: 2
E55: 08DPR0535Z | F55: 56 | G55: 2 | H55: 1 | I55: 1 | J55: 1 | K55: 1 | L55: 1 | M55: 1 | N55: 2 | O55: 1 | P55: 2
E56: 08DPR0535Z | F56: 57 | G56: 2 | H56: 2 | I56: 1 | J56: 2 | K56: 2 | L56: 3 | M56: 2 | N56: 1 | O56: 1 | P56: 2
E57: 08DPR0535Z | F57: 58 | G57: 2 | H57: 1 | J57: 1 | K57: 3 | L57: 3 | M57: 1 | N57: 4 | O57: 3 | P57: 1
E58: 08DPR0535Z | F58: 59 | G58: 2 | H58: 1 | I58: 1 | J58: 1 | K58: 1 | L58: 1 | M58: 2 | N58: 2 | O58: 1 | P58: 1
E59: 08DPR0535Z | F59: 60 | G59: 2 | H59: 1 | I59: 1 | J59: 1 | K59: 3 | L59: 1 | M59: 3 | N59: 1 | O59: 4 | P59: 1
E60: 08DPR0535Z | F60: 61 | G60: 4 | H60: 4 | I60: 4 | J60: 4 | K60: 4 | L60: 4 | M60: 4 | N60: 4 | O60: 4 | P60: 4
E61: 08DPR0535Z | F61: 62 | G61: 1 | H61: 1 | I61: 1 | J61: 2 | K61: 2 | L61: 1 | M61: 1 | N61: 1 | O61: 1 | P61: 1
E62: 08DPR0535Z | F62: 63 | G62: 2 | H62: 2 | I62: 1 | J62: 2 | K62: 3 | L62: 1 | M62: 1 | N62: 3 | O62: 2 | P62: 4
E63: 08DPR0535Z | F63: 64 | G63: 2 | H63: 2 | I63: 2 | J63: 2 | K63: 3 | L63: 1 | M63: 2 | N63: 2 | O63: 2 | P63: 2
E64: 08DPR0535Z | F64: 65 | G64: 1 | H64: 1 | I64: 1 | J64: 1 | K64: 2 | L64: 1 | M64: 2 | N64: 1 | O64: 1 | P64: 1
E65: 08DPR0535Z | F65: 66 | G65: 4 | H65: 2 | I65: 2 | K65: 1 | M65: 1 | N65: 2 | O65: 1 | P65: 2
E66: 08DPR0535Z | F66: 67 | G66: 1 | H66: 1 | I66: 1 | J66: 1 | K66: 2 | L66: 2 | M66: 1 | N66: 1 | O66: 1 | P66: 1
E67: 08DPR0535Z | F67: 68 | G67: 1 | H67: 1 | I67: 1 | J67: 1 | K67: 1 | L67: 1 | M67: 1 | N67: 2 | O67: 1 | P67: 2
E68: 08DPR0535Z | F68: 69 | G68: 2 | H68: 2 | I68: 3 | J68: 3 | K68: 3 | L68: 3 | M68: 3 | N68: 2 | O68: 2 | P68: 3

Sheet VICTIMIZACIÓN ÍNDICE
O1: INDICADOR DE VICTIMIZACIÓN GENERAL Y POR ESCUELA
B2: CLAVECCT | C2: BROMAS | D2: GOLPES | E2: BURLAS | F2: ACONSEJAR PELEAR | G2: EMPUJAR | H2: INCITACIÓN PELEA | I2: PATADAS | J2: INSULTOS | K2: AMENAZAS | L2: REDUCIR | M2: INDICADOR VICTIMIZACIÓN
B3: 08DPR0535Z | C3: 1.892307692 | D3: 1.6875 | E3: 1.442622951 | F3: 1.45 | G3: 1.85483871 | H3: 1.508474576 | I3: 1.725806452 | J3: 1.816666667 | K3: 1.733333333 | L3: 1.936507937 | M3: =(C3+D3+E3+F3+G3+H3+I3+J3+K3+L3)/10 -> 1.704805832 | AH3: INDICADOR VICTIMIZACIÓN GENERAL | AI3: INDICADOR VICTIMIZACIÓN GENERAL
AH4: 15.93939394 | AI4: =AH4/10 -> 1.593939394
M7: CENTRO ESCOLAR
M8: 08DPR0535Z
M9: BENITO JUAREZ

Sheet VIO-CIBER ÍNDICE

Sheet FAMILIA ÍNDICE

Sheet AUTOESTIMA ÍNDICE

Sheet EMPATÌA ÌNDICE
C1: EMPATÍA

Sheet VIOLENCIA EVENTOS
L28: DR
L29: https://www.google.com.mx/imgres?imgurl=https%3A%2F%2Fimage.isu.pub%2F140826043600-e626336cf3313df35d06824e3e9cddf2%2Fjpg%2Fpage_1_thumb_large.jpg&imgrefurl=https%3A%2F%2Fissuu.com%2Ffreaku%2Fdocs%2Fedgar-comic-bullying&docid=5Vj0XZoEBk2MTM&tbnid=ggZ2AZX1ZH0EjM%3A&vet=10ahUKEwiZs_i85KvkAhXPl54KHQ_bAY4QMwjwAShAMEA..i&w=320&h=452&bih=941&biw=1920&q=IMAGENES%20VIOLENCIA%20ESCOLAR&ved=0ahUKEwiZs_i85KvkAhXPl54KHQ_bAY4QMwjwAShAMEA&iact=mrc&uact=8

Sheet DEPRESIÒN INFANTIL
A1: FACTORIAL DEPRESIÓN
E2: REPORTE DINÁMICO DE RESULTADOS PARA LAS ESCUELAS
I12: ICDI
AG15: DEPRESIÓN POR ESCUELA
G19: ICDI | P19: FACTORIAL DEPRESIÓN
C21: FACTORIAL DEPRESIÓN
J25: IMAGEN OBTENIDA DE:
J26: https://eresmama.com/extrano-sintoma-depresion-infantil/

Sheet SATISFACCIÓN FAMILIAR
B2: CLAVECCT | C2: ID_ESTUDIANTE | D2: Promedio de INDICADOR FAMILIAR | E2: INDICADOR DE SATISFACCIÓN FAMILIAR | H2: SELECCIONE ESCUELA
B3: 08DPR0535Z | C3: 1 | D3: 19 | E3: =((D3/10)-4)*-1 -> 2.1
B4: 08DPR0535Z | C4: 2 | D4: 12 | E4: =((D4/10)-4)*-1 -> 2.8 | K4: CENTRO ESCOLAR | L4: Promedio de INDICADOR FAMILIAR | M4: INDICADOR DE SATISFACCIÓN FAMILIAR
B5: 08DPR0535Z | C5: 3 | D5: 9 | E5: 3.1 | K5: 08DPR0535Z | L5: 11.73134328 | M5: =((L5/10)-4)*-1 -> 2.826865672
B6: 08DPR0535Z | C6: 4 | D6: 9 | E6: 3.1 | M6: =((L6/10)-4)*-1 -> 4
B7: 08DPR0535Z | C7: 5 | D7: 26 | E7: 1.4 | M7: 4
B8: 08DPR0535Z | C8: 6 | D8: 13 | E8: 2.7 | M8: 4
B9: 08DPR0535Z | C9: 7 | D9: 9 | E9: 3.1 | M9: 4
B10: 08DPR0535Z | C10: 8 | D10: 11 | E10: 2.9 | M10: 4
B11: 08DPR0535Z | C11: 9 | D11: 15 | E11: 2.5 | M11: 4
B12: 08DPR0535Z | C12: 10 | D12: 18 | E12: 2.2 | M12: 4
B13: 08DPR0535Z | C13: 12 | D13: 9 | E13: 3.1 | M13: 4
B14: 08DPR0535Z | C14: 13 | D14: 10 | E14: 3 | M14: 4
B15: 08DPR0535Z | C15: 14 | D15: 8 | E15: 3.2 | M15: 4
B16: 08DPR0535Z | C16: 15 | D16: 11 | E16: 2.9 | M16: 4
B17: 08DPR0535Z | C17: 16 | D17: 10 | E17: 3 | M17: 4
B18: 08DPR0535Z | C18: 17 | D18: 9 | E18: 3.1 | M18: 4
B19: 08DPR0535Z | C19: 19 | D19: 12 | E19: 2.8 | M19: 4
B20: 08DPR0535Z | C20: 20 | D20: 15 | E20: 2.5 | M20: 4
B21: 08DPR0535Z | C21: 21 | D21: 9 | E21: 3.1 | M21: 4
B22: 08DPR0535Z | C22: 22 | D22: 9 | E22: 3.1 | M22: 4
B23: 08DPR0535Z | C23: 23 | D23: 9 | E23: 3.1 | M23: 4
B24: 08DPR0535Z | C24: 24 | D24: 16 | E24: 2.4 | M24: 4
B25: 08DPR0535Z | C25: 25 | D25: 16 | E25: 2.4 | M25: 4
B26: 08DPR0535Z | C26: 26 | D26: 10 | E26: 3 | M26: 4
B27: 08DPR0535Z | C27: 27 | D27: 15 | E27: 2.5 | M27: 4
B28: 08DPR0535Z | C28: 28 | D28: 16 | E28: 2.4 | M28: 4
B29: 08DPR0535Z | C29: 29 | D29: 9 | E29: 3.1 | M29: 4
B30: 08DPR0535Z | C30: 30 | D30: 11 | E30: 2.9 | M30: 4
B31: 08DPR0535Z | C31: 31 | D31: 10 | E31: 3 | M31: 4
B32: 08DPR0535Z | C32: 32 | D32: 9 | E32: 3.1 | M32: 4
B33: 08DPR0535Z | C33: 33 | D33: 9 | E33: 3.1 | M33: 4
B34: 08DPR0535Z | C34: 34 | D34: 12 | E34: 2.8 | M34: 4
B35: 08DPR0535Z | C35: 35 | D35: 14 | E35: 2.6 | M35: 4
B36: 08DPR0535Z | C36: 36 | D36: 12 | E36: 2.8 | M36: 4
B37: 08DPR0535Z | C37: 37 | D37: 9 | E37: 3.1 | M37: 4
B38: 08DPR0535Z | C38: 38 | D38: 11 | E38: 2.9 | M38: 4
B39: 08DPR0535Z | C39: 39 | D39: 22 | E39: 1.8 | M39: 4
B40: 08DPR0535Z | C40: 40 | D40: 12 | E40: 2.8 | M40: 4
B41: 08DPR0535Z | C41: 41 | D41: 17 | E41: 2.3 | M41: 4
B42: 08DPR0535Z | C42: 42 | D42: 10 | E42: 3 | M42: 4
B43: 08DPR0535Z | C43: 43 | D43: 12 | E43: 2.8 | M43: 4
B44: 08DPR0535Z | C44: 44 | D44: 9 | E44: 3.1 | M44: 4
B45: 08DPR0535Z | C45: 45 | D45: 10 | E45: 3 | M45: 4
B46: 08DPR0535Z | C46: 46 | D46: 8 | E46: 3.2 | M46: 4
B47: 08DPR0535Z | C47: 47 | D47: 9 | E47: 3.1 | M47: 4
B48: 08DPR0535Z | C48: 48 | D48: 10 | E48: 3 | M48: 4
B49: 08DPR0535Z | C49: 49 | D49: 9 | E49: 3.1 | M49: 4
B50: 08DPR0535Z | C50: 50 | D50: 26 | E50: 1.4 | M50: 4
B51: 08DPR0535Z | C51: 51 | D51: 10 | E51: 3
B52: 08DPR0535Z | C52: 52 | D52: 9 | E52: 3.1
B53: 08DPR0535Z | C53: 53 | D53: 9 | E53: 3.1
B54: 08DPR0535Z | C54: 54 | D54: 9 | E54: 3.1
B55: 08DPR0535Z | C55: 55 | D55: 9 | E55: 3.1
B56: 08DPR0535Z | C56: 56 | D56: 9 | E56: 3.1
B57: 08DPR0535Z | C57: 57 | D57: 10 | E57: 3
B58: 08DPR0535Z | C58: 58 | D58: 16 | E58: 2.4
B59: 08DPR0535Z | C59: 59 | D59: 10 | E59: 3
B60: 08DPR0535Z | C60: 60 | D60: 10 | E60: 3
B61: 08DPR0535Z | C61: 61 | D61: 21 | E61: 1.9
B62: 08DPR0535Z | C62: 62 | D62: 9 | E62: 3.1
B63: 08DPR0535Z | C63: 63 | D63: 10 | E63: 3
B64: 08DPR0535Z | C64: 64 | D64: 15 | E64: 2.5
B65: 08DPR0535Z | C65: 65 | D65: 9 | E65: 3.1
B66: 08DPR0535Z | C66: 66 | D66: 9 | E66: 3.1
B67: 08DPR0535Z | C67: 67 | D67: 9 | E67: 3.1
B68: 08DPR0535Z | C68: 68 | D68: 9 | E68: =((D68/10)-4)*-1 -> 3.1
B69: 08DPR0535Z | C69: 69 | D69: 9 | E69: 3.1
E70: 4
E71: 4
E72: 4
E73: 4
E74: 4
E75: 4
E76: 4
E77: 4
E78: 4
E79: 4
E80: 4
E81: 4
E82: 4
E83: 4
E84: 4
E85: 4
E86: 4
E87: 4
E88: 4
E89: 4
E90: 4
E91: 4
E92: 4
E93: 4
E94: 4
E95: 4
E96: 4
E97: 4
E98: 4
E99: 4
E100: 4
E101: 4
E102: 4
E103: 4
E104: 4
E105: 4
E106: 4
E107: 4
E108: 4
E109: 4
E110: 4
E111: 4
E112: 4
E113: 4
E114: 4
E115: 4
E116: 4
E117: 4
E118: 4
E119: 4
E120: 4
E121: 4
E122: 4
E123: 4
E124: 4
E125: 4
E126: 4
E127: 4
E128: 4
E129: 4
E130: 4
E131: 4
E132: =((D132/10)-4)*-1 -> 4
E133: 4
E134: 4
E135: 4
E136: 4
E137: 4
E138: 4
E139: 4
E140: 4
E141: 4
E142: 4
E143: 4
E144: 4
E145: 4
E146: 4
E147: 4
E148: 4
E149: 4
E150: 4
E151: 4
E152: 4
E153: 4
E154: 4
E155: 4
E156: 4
E157: 4
E158: 4
E159: 4
E160: 4
E161: 4
E162: 4
E163: 4
E164: 4
E165: 4
E166: 4
E167: 4
E168: 4
E169: 4
E170: 4
E171: 4
E172: 4
E173: 4
E174: 4
E175: 4
E176: 4
E177: 4
E178: 4
E179: 4
E180: 4
E181: 4
E182: 4
E183: 4
E184: 4
E185: 4
E186: 4
E187: 4
E188: 4
E189: 4
E190: 4
E191: 4
E192: 4
E193: 4
E194: 4
E195: 4
E196: =((D196/10)-4)*-1 -> 4
E197: 4
E198: 4
E199: 4
E200: 4
E201: 4
... 3764 more rows

Sheet SATISFACCIÓN FAM INDICADOR
B2: Valores | D2: SATISFACIÓN FAMILIAR
B3: UNIDOS | C3: 1.266769073 | D3: =(C3-4)*-1 -> 2.733230927
B4: EXPRESAR | C4: 1.504682622 | D4: =(C4-4)*-1 -> 2.495317378
B5: DIVERSIÓN EN FAMILIA | C5: 1.325629707 | D5: 2.674370293
B6: LLEVARSE BIEN | C6: 1.476527669 | D6: 2.523472331
B7: TIEMPO FAMILIA | C7: 1.412656904 | D7: 2.587343096
B8: RESOLVER PROBLEMAS | C8: 1.470681041 | D8: 2.529318959
B9: LIBERTAD PARA ESTAR SOLO | C9: 1.594544978 | D9: 2.405455022
B10: DISTRIBUCIÓN DE TAREAS | C10: 1.474385781 | D10: 2.525614219
B11: MIS AMIGOS | C11: 1.377585755 | D11: 2.622414245
B12: LO QUE CREEN QUE SOY | C12: 1.353094803 | D12: 2.646905197
B14: VARIABLES | C14: INSATISFACCIÓN | D14: SATISFACCIÓN FAMILIAR
B15: UNIDOS | C15: 1.266769073 | D15: 2.733230927
B16: EXPRESAR | C16: 1.504682622 | D16: 2.495317378
B17: DIVERSIÓN EN FAMILIA | C17: 1.325629707 | D17: 2.674370293
B18: LLEVARSE BIEN | C18: 1.476527669 | D18: 2.523472331
B19: TIEMPO FAMILIA | C19: 1.412656904 | D19: 2.587343096
B20: RESOLVER PROBLEMAS | C20: 1.470681041 | D20: 2.529318959
B21: LIBERTAD PARA ESTAR SOLO | C21: 1.594544978 | D21: 2.405455022
B22: DISTRIBUCIÓN DE TAREAS | C22: 1.474385781 | D22: 2.525614219
B23: MIS AMIGOS | C23: 1.377585755 | D23: 2.622414245
B24: LO QUE CREEN QUE SOY | C24: 1.353094803 | D24: 2.646905197

Sheet AUTOESTIMA GENERAL
D3: VARIABLES | F3: PROMEDIO POSITIVO
D4: A GUSTO | E4: 1.282419272 | F4: =(E4-4)*-1 -> 2.717580728
D5: BUENO LO QUE HAGO | E5: 1.697614108 | F5: =(E5-4)*-1 -> 2.302385892
D6: QUISISERA SER BUENO | E6: 2.002097535 | F6: 1.997902465
D7: PUEDO HACER BIEN AS COSAS | E7: 1.618787406 | F7: 2.381212594
D8: ORGULLOSO DE MI | E8: 1.381713387 | F8: 2.618286613
D9: SOY NEGATIVO | E9: 2.430386448 | F9: 1.569613552
D10: SATISFECHO CONMIGO | E10: 1.514490827 | F10: 2.485509173
D11: QUISIERA SER OTRO | E11: 1.73002103 | F11: 2.26997897
D12: SOY ÚTIL | E12: 1.782118511 | F12: 2.217881489
D13: NO ME QUIEREN | E13: 2.539044137 | F13: 1.460955863
D15: VARIABLES | F15: PROMEDIO POSITIVO
D16: A GUSTO | E16: 1.282419272 | F16: 2.717580728
D17: BUENO LO QUE HAGO | E17: 1.697614108 | F17: 2.302385892
D18: QUISISERA SER BUENO | E18: 2.002097535 | F18: 1.997902465
D19: PUEDO HACER BIEN AS COSAS | E19: 1.618787406 | F19: 2.381212594
D20: ORGULLOSO DE MI | E20: 1.381713387 | F20: 2.618286613
D21: SOY NEGATIVO | E21: 2.430386448 | F21: 1.569613552
D22: SATISFECHO CONMIGO | E22: 1.514490827 | F22: 2.485509173
D23: QUISIERA SER OTRO | E23: 1.73002103 | F23: 2.26997897
D24: SOY ÚTIL | E24: 1.782118511 | F24: 2.217881489
D25: NO ME QUIEREN | E25: 2.539044137 | F25: 1.460955863

Sheet AUTOESTIMA INDICADOR
J2: CENTRO ESCOLAR | K2: Promedio de INDICADOR AUTOESTIMA | L2: INDICADOR DE AUTOESTIMA DE LA ESCUELA
J3: 08DPR0535Z | K3: 14.796875 | L3: =((K3/10)-4)*-1 -> 2.5203125
C4: CLAVECCT | D4: ID_ESTUDIANTE | E4: Suma de INDICADOR AUTOESTIMA | F4: PROMEDIO DE AUTOESTIMA
C5: 08DPR0535Z | D5: 1 | E5: 12 | F5: =((K3/10)-4)*-1 -> 2.5203125
C6: 08DPR0535Z | D6: 2 | E6: 11 | F6: =((E6/10)-4)*-1 -> 2.9
C7: 08DPR0535Z | D7: 3 | E7: 9 | F7: =((K7/10)-4)*-1 -> 4
C8: 08DPR0535Z | D8: 4 | E8: 21 | F8: =((E8/10)-4)*-1 -> 1.9
C9: 08DPR0535Z | D9: 5 | E9: 13 | F9: 2.7
C10: 08DPR0535Z | D10: 6 | E10: 17 | F10: 2.3
C11: 08DPR0535Z | D11: 7 | E11: 16 | F11: 2.4
C12: 08DPR0535Z | D12: 8 | E12: 15 | F12: 2.5
C13: 08DPR0535Z | D13: 9 | E13: 15 | F13: 2.5
C14: 08DPR0535Z | D14: 10 | E14: 6 | F14: 3.4
C15: 08DPR0535Z | D15: 12 | E15: 15 | F15: 2.5
C16: 08DPR0535Z | D16: 13 | E16: 12 | F16: 2.8
C17: 08DPR0535Z | D17: 14 | E17: 7 | F17: 3.3
C18: 08DPR0535Z | D18: 15 | E18: 16 | F18: 2.4
C19: 08DPR0535Z | D19: 16 | E19: 10 | F19: 3
C20: 08DPR0535Z | D20: 17 | E20: 10 | F20: 3
C21: 08DPR0535Z | D21: 19 | E21: 16 | F21: 2.4
C22: 08DPR0535Z | D22: 20 | E22: 15 | F22: 2.5
C23: 08DPR0535Z | D23: 21 | E23: 18 | F23: 2.2
C24: 08DPR0535Z | D24: 22 | E24: 9 | F24: 3.1
C25: 08DPR0535Z | D25: 23 | E25: 19 | F25: 2.1
C26: 08DPR0535Z | D26: 24 | E26: 22 | F26: 1.8
C27: 08DPR0535Z | D27: 25 | E27: 18 | F27: 2.2
C28: 08DPR0535Z | D28: 26 | E28: 19 | F28: 2.1
C29: 08DPR0535Z | D29: 27 | E29: 18 | F29: 2.2
C30: 08DPR0535Z | D30: 28 | E30: 19 | F30: 2.1
C31: 08DPR0535Z | D31: 29 | E31: 23 | F31: 1.7
C32: 08DPR0535Z | D32: 30 | E32: 14 | F32: 2.6
C33: 08DPR0535Z | D33: 31 | E33: 12 | F33: 2.8
C34: 08DPR0535Z | D34: 32 | E34: 14 | F34: 2.6
C35: 08DPR0535Z | D35: 33 | E35: 9 | F35: 3.1
C36: 08DPR0535Z | D36: 34 | E36: 18 | F36: 2.2
C37: 08DPR0535Z | D37: 35 | E37: 15 | F37: 2.5
C38: 08DPR0535Z | D38: 36 | E38: 16 | F38: 2.4
C39: 08DPR0535Z | D39: 37 | E39: 16 | F39: 2.4
C40: 08DPR0535Z | D40: 39 | E40: 13 | F40: 2.7
C41: 08DPR0535Z | D41: 40 | E41: 9 | F41: 3.1
C42: 08DPR0535Z | D42: 41 | E42: 26 | F42: 1.4
C43: 08DPR0535Z | D43: 42 | E43: 15 | F43: 2.5
C44: 08DPR0535Z | D44: 43 | E44: 18 | F44: 2.2
C45: 08DPR0535Z | D45: 44 | E45: 9 | F45: 3.1
C46: 08DPR0535Z | D46: 45 | E46: 13 | F46: 2.7
C47: 08DPR0535Z | D47: 47 | E47: 16 | F47: 2.4
C48: 08DPR0535Z | D48: 48 | E48: 13 | F48: 2.7
C49: 08DPR0535Z | D49: 49 | E49: 10 | F49: 3
C50: 08DPR0535Z | D50: 50 | E50: 23 | F50: 1.7
C51: 08DPR0535Z | D51: 51 | E51: 19 | F51: 2.1
C52: 08DPR0535Z | D52: 53 | E52: 12 | F52: 2.8
C53: 08DPR0535Z | D53: 54 | E53: 9 | F53: 3.1
C54: 08DPR0535Z | D54: 55 | E54: 10 | F54: 3
C55: 08DPR0535Z | D55: 56 | E55: 17 | F55: 2.3
C56: 08DPR0535Z | D56: 57 | E56: 29 | F56: 1.1
C57: 08DPR0535Z | D57: 58 | E57: 16 | F57: 2.4
C58: 08DPR0535Z | D58: 59 | E58: 13 | F58: 2.7
C59: 08DPR0535Z | D59: 60 | E59: 12 | F59: 2.8
C60: 08DPR0535Z | D60: 61 | E60: 11 | F60: 2.9
C61: 08DPR0535Z | D61: 62 | E61: 18 | F61: 2.2
C62: 08DPR0535Z | D62: 63 | E62: 17 | F62: 2.3
C63: 08DPR0535Z | D63: 64 | E63: 15 | F63: 2.5
C64: 08DPR0535Z | D64: 65 | E64: 14 | F64: 2.6
C65: 08DPR0535Z | D65: 66 | E65: 13 | F65: 2.7
C66: 08DPR0535Z | D66: 67 | E66: 15 | F66: 2.5
C67: 08DPR0535Z | D67: 68 | E67: 14 | F67: 2.6
C68: 08DPR0535Z | D68: 69 | E68: 13 | F68: 2.7
F69: 4
F70: =((E70/10)-4)*-1 -> 4
F71: 4
F72: 4
F73: 4
F74: 4
F75: 4
F76: 4
F77: 4
F78: 4
F79: 4
F80: 4
F81: 4
F82: 4
F83: 4
F84: 4
F85: 4
F86: 4
F87: 4
F88: 4
F89: 4
F90: 4
F91: 4
F92: 4
F93: 4
F94: 4
F95: 4
F96: 4
F97: 4
F98: 4
F99: 4
F100: 4
F101: 4
F102: 4
F103: 4
F104: 4
F105: 4
F106: 4
F107: 4
F108: 4
F109: 4
F110: 4
F111: 4
F112: 4
F113: 4
F114: 4
F115: 4
F116: 4
F117: 4
F118: 4
F119: 4
F120: 4
F121: 4
F122: 4
F123: 4
F124: 4
F125: 4
F126: 4
F127: 4
F128: 4
F129: 4
F130: 4
F131: 4
F132: 4
F133: 4
F134: =((E134/10)-4)*-1 -> 4
F135: 4
F136: 4
F137: 4
F138: 4
F139: 4
F140: 4
F141: 4
F142: 4
F143: 4
F144: 4
F145: 4
F146: 4
F147: 4
F148: 4
F149: 4
F150: 4
F151: 4
F152: 4
F153: 4
F154: 4
F155: 4
F156: 4
F157: 4
F158: 4
F159: 4
F160: 4
F161: 4
F162: 4
F163: 4
F164: 4
F165: 4
F166: 4
F167: 4
F168: 4
F169: 4
F170: 4
F171: 4
F172: 4
F173: 4
F174: 4
F175: 4
F176: 4
F177: 4
F178: 4
F179: 4
F180: 4
F181: 4
F182: 4
F183: 4
F184: 4
F185: 4
F186: 4
F187: 4
F188: 4
F189: 4
F190: 4
F191: 4
F192: 4
F193: 4
F194: 4
F195: 4
F196: 4
F197: 4
F198: =((E198/10)-4)*-1 -> 4
F199: 4
F200: 4
F201: 4
... 3785 more rows

Sheet EQUIDAD GÉNERO ESCUELA
J1: EQUIDAD DE GÉNERO EN LA ESCUELA
E2: CLAVECCT | F2: Sexo
E3: 08DPR0535Z | F3: 08DPR0535Z
D4: Valores | E4: 1 | F4: 2 | G4: HOMBRE | H4: MUJER
D5: TRATO JUSTO | E5: 1.125 | F5: 1.214285714 | G5: =(E5-3)*-1 -> 1.875 | H5: =(F5-3)*-1 -> 1.785714286
D6: RESPETO A NIÑAS | E6: 1.242424242 | F6: 1.035714286 | G6: =(E6-3)*-1 -> 1.757575758 | H6: =(F6-3)*-1 -> 1.964285714
D7: MISMAS OPORTUNIDADES | E7: 1.121212121 | F7: 1 | G7: 1.878787879 | H7: 2
D8: MISMOS DERECHOS | E8: 1.212121212 | F8: 1.107142857 | G8: 1.787878788 | H8: 1.892857143
D9: PARTICIPACIÓN | E9: 1.838709677 | F9: 1.785714286 | G9: 1.161290323 | H9: 1.214285714
L17: TRATO JUSTO | M17: RESPETO A NIÑAS | N17: MISMAS OPORTUNIDADES | O17: MISMOS DERECHOS | P17: PARTICIPACIÓN
M20: CENTRO ESCOLAR
M21: 08DPR0535Z
M22: BENITO JUAREZ

Sheet EQUIDAD DESEMPEÑO
A1: EQUIDAD DE GÉNERO
C3: INDICADOR COMPUESTO DE EQUIDAD DE GÉNERO
C4: 1. Se da un trato justo tanto para niños como para las niñas.
C5: 2. Las niñas son respetadas tanto o igual como los niños.
C6: 3. Las niñas tienen las mismas oportunidades para participar que los niños.
C7: 4. Niños y niñas son tratados con los mismos derechos y obligaciones.
C8: 5. En las clases, las niñas participan más que los niños.
A17: FACTOR: RESPETO
A18: 7. En la escuela los maestros/as se respetan entre ellos.
A19: 8. El o la director/a respeta a los maestros/as de la escuela.
A20: 3. Los maestros/as en esta escuela tratan con respeto a todos los alumnos/as.
A38: FACTOR: REGLAS
A39: 1. REGLAS. En mi escuela existen reglas claras de comportamiento.
A40: 3. Las reglas que se ponen en mi escuela son justas.
A41: 2. Los maestros/as aplican bien las reglas de la escuela y del salón.
A42: 7. En mi salón tenemos un reglamento de conducta.
A57: FACTOR 3: CONFIANZA
A58: 4. Siento la confianza de platicar con mi maestro/a sobre problemas personales.
A59: 1. Tengo confianza en los maestros/as de la escuela.
A60: 6. Todos mis compañeros/as me tienen respeto.
A61: 2. Me llevo bien con los maestros/as de la escuela.
A81: FACTOR: PARTICIPACIÓN
A82: 9. En la escuela todos tenemos el mismo derecho de participar.
A101: FACTOR: REGLAS SOBRE EL ACOSO SEXUAL
A102: 5. Mi escuela tiene reglas claras contra el acoso sexual.
A103: 6. En el salón, los maestros/as ponen reglas claras para prevenir la violencia sexual.
A104: 4. En mi escuela existen reglas claras contra la violencia entre los alumnos/as.

Sheet NIV_SOCIOEC

Sheet ÍNDICE GENERAL

Sheet DEPRESIÓN POR GRADO Y SEXO
A1: INDICADOR DE DEPRESIÓN INFANTIL POR GRADO Y SEXO EN CADA ESCUELA
F4: CLAVECCT | G4: Grado | H4: Sexo | I4: CANTIDAD DE ESTUDIANTES | J4: TRISTE | K4: SIN GANAS ESCUELA | L4: SIN AMIGOS | M4: SIN APOYO DOCENTE | N4: QUEDARSE EN CASA | O4: PREFIERE SOLEDAD | P4: SIN PLATICAR | Q4: SENSACIÓN CANSANCIO | R4: SIN GANAS DE HACER | S4: PREFIERE DORMIR EN EL DÍA
B5: CENTRO ESCOLAR | F5: 08DPR0535Z | G5: 3 | H5: 1 | I5: 23 | J5: 39 | K5: 45 | L5: 43 | M5: 50 | N5: 42 | O5: 48 | P5: 37 | Q5: 39 | R5: 41 | S5: 51
B6: 08DPR0535Z | F6: 08DPR0535Z | G6: 3 | H6: 2 | I6: 27 | J6: 35 | K6: 44 | L6: 52 | M6: 43 | N6: 38 | O6: 53 | P6: 41 | Q6: 39 | R6: 41 | S6: 47
B7: BENITO JUAREZ | F7: 08DPR0535Z | G7: 5 | H7: 1 | I7: 12 | J7: 19 | K7: 21 | L7: 30 | M7: 22 | N7: 31 | O7: 26 | P7: 30 | Q7: 29 | R7: 32 | S7: 32
F8: 08DPR0535Z | G8: 5 | H8: 2 | I8: 7 | J8: 13 | K8: 21 | L8: 19 | M8: 17 | N8: 20 | O8: 13 | P8: 19 | Q8: 17 | R8: 28 | S8: 28
L3956: =SUM(L5:L3955) -> 144 | M3956: =SUM(M5:M3955) -> 132 | N3956: 131 | O3956: 140 | P3956: 127 | Q3956: 124 | R3956: 142 | S3956: 158 | T3956: 0 | U3956: 0

Sheet DEPRESIÓN POR ESCUELA
A1: INDICADOR DE DEPRESIÓN INFANTIL POR FACTORES EN CADA ESCUELA
D2: OPCIONES DE RESPUESTA | E2: CLAVECCT | F2: Grado | G2: ID_ESTUDIANTE | H2: Sexo | I2: Mamá | J2: Papá | K2: TRISTE | L2: SIN GANAS ESCUELA | M2: SIN AMIGOS | N2: SIN APOYO DOCENTE | O2: PREFIERE CASA | P2: PREFIERE SOLEDAD | Q2: SIN PLATICAR | R2: SIENTE CANSANCIO | S2: SIN GANAS | T2: PREFIERE DORMIR
D3: MUY SEGUIDO | E3: 08DPR0535Z | F3: 3 | G3: 1 | H3: 2 | I3: 1 | J3: 1 | K3: 1 | L3: 3 | M3: 4 | N3: 4 | O3: 2 | P3: 3 | Q3: 4 | R3: 1 | S3: 4 | T3: 4
D4: SEGUIDO | E4: 08DPR0535Z | F4: 3 | G4: 2 | H4: 2 | I4: 1 | J4: 1 | K4: 1 | L4: 1 | M4: 1 | N4: 1 | O4: 1 | P4: 1 | Q4: 1 | R4: 1 | S4: 1 | T4: 1 | U4: Columna1 | V4: Columna2 | W4: Columna3 | X4: Columna4 | Y4: Columna5 | Z4: Columna6 | AA4: Columna7
C5: 1=HOMBRE | D5: POCAS VECES | E5: 08DPR0535Z | F5: 3 | G5: 3 | H5: 1 | I5: 1 | J5: 1 | K5: 1 | L5: 4 | N5: 2 | O5: 2 | P5: 2 | Q5: 2 | R5: 2 | S5: 2 | T5: 2 | U5: FACTOR1 | V5: Puntuación Z: 10. Durante el día prefieres estar acostado/a, durmiendo.
C6: 2=MUJER | D6: NUNCA | E6: 08DPR0535Z | F6: 3 | G6: 4 | H6: 2 | I6: 1 | J6: 1 | K6: 4 | L6: 4 | M6: 4 | N6: 4 | O6: 1 | P6: 1 | Q6: 1 | R6: 4 | S6: 1 | T6: 4 | V6: Puntuación Z: 8. Sientes cansancio.
E7: 08DPR0535Z | F7: 3 | G7: 5 | H7: 1 | I7: 1 | J7: 1 | S7: 1 | V7: Puntuación Z: 9. No tienes ganas de hacer nada
E8: 08DPR0535Z | F8: 3 | G8: 6 | H8: 2 | I8: 1 | J8: 1 | K8: 2 | L8: 4 | M8: 4 | N8: 4 | O8: 1 | P8: 4 | Q8: 4 | R8: 2 | S8: 3 | T8: 3 | V8: Puntuación Z: 5. Prefieres quedarte en casa que salir.
E9: 08DPR0535Z | F9: 3 | G9: 8 | H9: 1 | I9: 1 | J9: 1 | K9: 1 | L9: 2 | M9: 4 | N9: 4 | O9: 3 | P9: 2 | Q9: 2 | R9: 2 | S9: 3 | T9: 1
E10: 08DPR0535Z | F10: 3 | G10: 10 | H10: 1 | I10: 1 | J10: 1 | K10: 1 | L10: 1 | N10: 4 | O10: 4 | R10: 1 | T10: 4 | U10: FACTOR2 | V10: Puntuación Z: 4. No te sientes apoyado/a por el maestro/a.
E11: 08DPR0535Z | F11: 3 | G11: 13 | H11: 1 | I11: 1 | J11: 1 | K11: 2 | L11: 2 | N11: 2 | O11: 1 | P11: 2 | S11: 2 | V11: Puntuación Z: 2. No te dan ganas de ir a la escuela.
E12: 08DPR0535Z | F12: 3 | G12: 15 | H12: 1 | I12: (en blanco) | J12: 1 | K12: 3 | L12: 1 | M12: 2 | N12: 3 | O12: 2 | Q12: 2 | R12: 1 | S12: 1 | T12: 2 | V12: Puntuación Z: 7. No quieres platicar con nadie.
E13: 08DPR0535Z | F13: 3 | G13: 16 | H13: 1 | I13: 1 | J13: 1 | K13: 2 | N13: 4 | O13: 1 | R13: 2
E14: 08DPR0535Z | F14: 3 | G14: 17 | H14: 1 | I14: 1 | J14: 1 | K14: 1 | L14: 1 | M14: 1 | N14: 1 | O14: 1 | P14: 4 | Q14: 1 | R14: 2 | S14: 1 | T14: 4 | U14: FACTOR3 | V14: Puntuación Z: 1. Te sientes triste.
E15: 08DPR0535Z | F15: 3 | G15: 19 | H15: 1 | I15: 1 | J15: 1 | K15: 2 | L15: 2 | M15: 4 | N15: 1 | O15: 1 | P15: 4 | Q15: 2 | R15: 2 | S15: 4 | T15: 4 | V15: Puntuación Z: 3. Sientes que tus amigos o amigas no te quieren.
E16: 08DPR0535Z | F16: 3 | G16: 20 | H16: 2 | I16: 1 | J16: 1 | K16: 1 | L16: 1 | M16: 1 | N16: 1 | P16: 3 | R16: 3 | V16: Puntuación Z: 6. Te separas de los demás, prefieres estar solo.
E17: 08DPR0535Z | F17: 3 | G17: 21 | H17: 1 | I17: 1 | J17: 1 | K17: 2 | L17: 2 | M17: 2 | N17: 2 | O17: 2 | P17: 2 | Q17: 2 | R17: 2 | S17: 2 | T17: 2
E18: 08DPR0535Z | F18: 3 | G18: 22 | H18: 2 | I18: 1 | J18: 1 | K18: 2 | L18: 1 | M18: 4 | N18: 1 | O18: 4 | P18: 4 | Q18: 4 | R18: 1 | S18: 1 | T18: 1
E19: 08DPR0535Z | F19: 3 | G19: 23 | H19: 1 | I19: 1 | J19: 1 | K19: 1 | L19: 4 | M19: 4 | N19: 4 | O19: 4 | P19: 4 | Q19: 4 | R19: 2 | S19: 4 | T19: 4
E20: 08DPR0535Z | F20: 3 | G20: 24 | H20: 2 | I20: 1 | J20: 1 | K20: 2 | L20: 4 | M20: 4 | N20: 1 | O20: 4 | P20: 4 | Q20: 3 | R20: 1 | S20: 2 | T20: 4
E21: 08DPR0535Z | F21: 3 | G21: 25 | H21: 1 | I21: 1 | J21: 1 | K21: 2 | L21: 2 | M21: 1 | N21: 1 | O21: 2 | P21: 4 | Q21: 1 | R21: 2 | S21: 3 | T21: 3
E22: 08DPR0535Z | F22: 3 | G22: 26 | H22: 2 | I22: 1 | J22: 1 | K22: 3 | L22: 1 | M22: 2 | N22: 1 | O22: 2 | P22: 4 | Q22: 2 | R22: 2 | S22: 2 | T22: 1
E23: 08DPR0535Z | F23: 3 | G23: 29 | H23: 2 | I23: 1 | J23: 1 | K23: 1 | L23: 1 | M23: 1 | N23: 1 | O23: 1 | P23: 1 | Q23: 1 | R23: 1 | S23: 1 | T23: 1
E24: 08DPR0535Z | F24: 3 | G24: 32 | H24: 2 | I24: 1 | J24: 1 | K24: 1 | L24: 1 | M24: 4 | N24: 4 | O24: 1 | P24: 4 | Q24: 2 | R24: 1 | S24: 2 | T24: 4
E25: 08DPR0535Z | F25: 3 | G25: 33 | H25: 1 | I25: 1 | J25: 1 | K25: 1 | L25: 1 | M25: 1 | N25: 1 | O25: 1 | P25: 1 | Q25: 1 | R25: 1 | S25: 1 | T25: 1
E26: 08DPR0535Z | F26: 3 | G26: 34 | H26: 2 | I26: 1 | J26: 1 | K26: 1 | L26: 2 | M26: 1 | N26: 2 | O26: 1 | P26: 2 | Q26: 4 | R26: 1 | S26: 4 | T26: 1
E27: 08DPR0535Z | F27: 3 | G27: 35 | H27: 2 | I27: 1 | J27: 1 | K27: 1 | L27: 2 | M27: 3 | N27: 2 | O27: 1 | P27: 3 | Q27: 2 | R27: 4 | S27: 1 | T27: 1
E28: 08DPR0535Z | F28: 3 | G28: 36 | H28: 2 | I28: 1 | J28: 1 | K28: 2 | L28: 2 | M28: 2 | N28: 3 | O28: 1 | P28: 1 | Q28: 1 | R28: 1 | S28: 1 | T28: 4
E29: 08DPR0535Z | F29: 3 | G29: 40 | H29: 1 | I29: 1 | J29: 1 | K29: 4 | L29: 4 | M29: 4 | N29: 4 | O29: 4 | P29: 4 | Q29: 4 | R29: 4 | S29: 4 | T29: 4
E30: 08DPR0535Z | F30: 3 | G30: 41 | H30: 1 | I30: 1 | J30: 1 | K30: 4 | L30: 4 | M30: 4 | N30: 4 | O30: 4 | P30: 4 | Q30: 4 | R30: 4 | S30: 3 | T30: 4
E31: 08DPR0535Z | F31: 3 | G31: 49 | H31: 2 | I31: 1 | J31: 1 | K31: 2 | L31: 1 | M31: 1 | N31: 1 | O31: 1 | P31: 1 | Q31: 1 | R31: 1 | S31: 1 | T31: 1
E32: 08DPR0535Z | F32: 3 | G32: 50 | H32: 2 | I32: 1 | J32: 1 | K32: 2 | L32: 3 | M32: 4 | N32: 2 | O32: 3 | P32: 2 | Q32: 4 | R32: 2 | S32: 4 | T32: 2
E33: 08DPR0535Z | F33: 3 | G33: 53 | H33: 1 | I33: 1 | J33: 1 | K33: 1 | L33: 1 | M33: 1 | N33: 2 | P33: 2 | Q33: 2 | R33: 2 | S33: 2 | T33: 4
E34: 08DPR0535Z | F34: 3 | G34: 54 | H34: 2 | I34: 1 | J34: 1 | K34: 1 | L34: 1 | M34: 1 | N34: 1 | O34: 1 | P34: 1 | Q34: 1 | R34: 1 | S34: 1 | T34: 1
E35: 08DPR0535Z | F35: 3 | G35: 55 | H35: 2 | I35: 1 | J35: 1 | K35: 1 | L35: 4 | M35: 1 | N35: 1 | O35: 1 | P35: 4 | R35: 1 | S35: 2 | T35: 3
E36: 08DPR0535Z | F36: 3 | G36: 56 | H36: 2 | I36: 1 | J36: 1 | K36: 1 | L36: 1 | M36: 3 | N36: 1 | O36: 3 | P36: 1 | Q36: 1 | R36: 3 | S36: 2 | T36: 2
E37: 08DPR0535Z | F37: 3 | G37: 59 | H37: 1 | I37: 1 | J37: 1 | K37: 2 | L37: 3 | M37: 3 | N37: 1 | O37: 1 | P37: 4 | Q37: 1 | R37: 1 | S37: 2 | T37: 1
E38: 08DPR0535Z | F38: 5 | G38: 42 | H38: 2 | I38: 1 | J38: 1 | K38: 4 | L38: 4 | M38: 4 | N38: 4 | O38: 4 | P38: 1 | Q38: 4 | R38: 4 | S38: 4 | T38: 4
E39: 08DPR0535Z | F39: 5 | G39: 43 | H39: 1 | I39: 1 | J39: 1 | K39: 3 | L39: 3 | M39: 4 | N39: 2 | O39: 4 | P39: 4 | Q39: 3 | R39: 4 | S39: 4 | T39: 4
E40: 08DPR0535Z | F40: 5 | G40: 44 | H40: 1 | I40: 1 | J40: 1 | K40: 1 | L40: 1 | M40: 1 | N40: 1 | O40: 4 | P40: 1 | Q40: 4 | R40: 1 | S40: 1 | T40: 1
E41: 08DPR0535Z | F41: 5 | G41: 45 | H41: 1 | I41: 1 | J41: 1 | K41: 1 | L41: 3 | M41: 4 | N41: 1 | P41: 4 | Q41: 4 | R41: 4 | S41: 4 | T41: 4
E42: 08DPR0535Z | F42: 5 | G42: 47 | H42: 2 | I42: 1 | J42: 1 | K42: 2 | L42: 3 | M42: 1 | N42: 4 | O42: 4 | P42: 1 | Q42: 2 | R42: 1 | S42: 4 | T42: 4
E43: 08DPR0535Z | F43: 5 | G43: 48 | H43: 1 | I43: 1 | J43: 1 | K43: 1 | L43: 1 | M43: 1 | N43: 2 | O43: 1 | P43: 1 | Q43: 2 | R43: 4 | S43: 4 | T43: 4
E44: 08DPR0535Z | F44: 5 | G44: 57 | H44: 1 | I44: 1 | J44: 1 | K44: 3 | L44: 1 | M44: 1 | N44: 1 | O44: 1 | P44: 1 | Q44: 1 | R44: 1 | S44: 2 | T44: 1
E45: 08DPR0535Z | F45: 5 | G45: 58 | H45: 1 | I45: 1 | J45: 1 | K45: 3 | L45: 2 | M45: 2 | N45: 1 | O45: 1 | P45: 2 | Q45: 1 | R45: 2 | S45: 1 | T45: 3
E46: 08DPR0535Z | F46: 5 | G46: 60 | H46: 2 | I46: 1 | J46: 1 | K46: 1 | L46: 3 | M46: 1 | N46: 2 | O46: 1 | P46: 1 | Q46: 1 | R46: 1 | S46: 4 | T46: 4
E47: 08DPR0535Z | F47: 5 | G47: 61 | H47: 1 | I47: 1 | J47: 1 | K47: 1 | L47: 1 | M47: 3 | N47: 3 | O47: 4 | P47: 4 | Q47: 4 | R47: 3 | S47: 3 | T47: 1
E48: 08DPR0535Z | F48: 5 | G48: 62 | H48: 1 | I48: 1 | J48: 1 | K48: 1 | L48: 4 | M48: 4 | N48: 4 | O48: 4 | P48: 4 | Q48: 2 | R48: 4 | S48: 4 | T48: 4
E49: 08DPR0535Z | F49: 5 | G49: 63 | H49: 2 | I49: 1 | J49: 1 | K49: 2 | L49: 2 | M49: 2 | N49: 4 | P49: 2 | Q49: 2 | R49: 2 | S49: 4 | T49: 4
E50: 08DPR0535Z | F50: 5 | G50: 64 | H50: 1 | I50: 1 | J50: 1 | K50: 2 | L50: 1 | M50: 3 | N50: 2 | O50: 4 | P50: 2 | Q50: 2 | R50: 2 | S50: 1 | T50: 2
E51: 08DPR0535Z | F51: 5 | G51: 65 | H51: 1 | I51: 1 | J51: 1 | K51: 1 | L51: 3 | M51: 3 | N51: 4 | O51: 4 | Q51: 4 | R51: 2 | S51: 4 | T51: 4
E52: 08DPR0535Z | F52: 5 | G52: 66 | H52: 2 | I52: 1 | J52: 1 | K52: 1 | L52: 2 | M52: 3 | N52: 1 | O52: 4 | P52: 1 | Q52: 2 | R52: 1 | S52: 4 | T52: 4
E53: 08DPR0535Z | F53: 5 | G53: 67 | H53: 2 | I53: 1 | J53: 1 | K53: 2 | L53: 3 | M53: 4 | N53: 1 | O53: 4 | P53: 4 | Q53: 4 | R53: 4 | S53: 4 | T53: 4
E54: 08DPR0535Z | F54: 5 | G54: 69 | H54: 1 | I54: 1 | J54: 1 | K54: 2 | L54: 1 | M54: 4 | N54: 1 | O54: 4 | P54: 3 | Q54: 3 | R54: 2 | S54: 4 | T54: 4

Sheet FACTOR DEPRESIÓN INF
K1: FACTORES DEPRESIÓN INFANTIL
J2: Columna1 | K2: Columna3 | L2: Columna4
E3: Informe | J3: INDICADOR DE DEPRESIÓN INFANTIL (FACTORIZACIÓN) | M3: G1 | X3: G2 | AI3: G3
E4: Edad | F4: F1 | G4: F2 | H4: F3 | K4: FACTOR | L4: PUNT. Z
E5: 7 | F5: 0.1069086416 | G5: -0.2108808438 | H5: 0.00491546298 | J5: DESGANO | K5: FACTOR1 | L5: 10. Durante el día prefieres estar acostado/a, durmiendo.
E6: 8 | F6: -0.08021230595 | G6: -0.1659803153 | H6: -0.07468372297 | L6: 8. Sientes cansancio.
E7: 9 | F7: -0.07246135613 | G7: -0.06057565899 | H7: -0.01375798194 | L7: 9. No tienes ganas de hacer nada
E8: 10 | F8: 0.09914446593 | G8: 0.07549056654 | H8: 0.02238509604 | L8: 5. Prefieres quedarte en casa que salir.
E9: 11 | F9: 0.02792467581 | G9: 0.1665746476 | H9: 0.1036143228
E10: 12 | F10: 0.06355527362 | G10: -0.0755994609 | H10: -0.05723681378 | J10: AISLAMIENTO | K10: FACTOR2 | L10: 4. No te sientes apoyado/a por el maestro/a.
E11: 13 | F11: 0.2088752271 | G11: -0.2539972725 | H11: -0.07630687383 | L11: 2. No te dan ganas de ir a la escuela.
E12: Total | F12: 0.0005720747103 | G12: 0.001720899606 | H12: 0.008673415076 | L12: 7. No quieres platicar con nadie.
A14: FACTOR1 | B14: Puntuación Z: 10. Durante el día prefieres estar acostado/a, durmiendo. | J14: ABATIMIENTO | K14: FACTOR3 | L14: 1. Te sientes triste.
B15: Puntuación Z: 8. Sientes cansancio. | L15: 3. Sientes que tus amigos o amigas no te quieren.
B16: Puntuación Z: 9. No tienes ganas de hacer nada | L16: 6. Te separas de los demás, prefieres estar solo.
B17: Puntuación Z: 5. Prefieres quedarte en casa que salir.
A19: FACTOR2 | B19: Puntuación Z: 4. No te sientes apoyado/a por el maestro/a.
B20: Puntuación Z: 2. No te dan ganas de ir a la escuela.
B21: Puntuación Z: 7. No quieres platicar con nadie.
A23: FACTOR3 | B23: Puntuación Z: 1. Te sientes triste.
B24: Puntuación Z: 3. Sientes que tus amigos o amigas no te quieren.
B25: Puntuación Z: 6. Te separas de los demás, prefieres estar solo.
E30: Informe
E32: Sexo | F32: F1 | G32: F2 | H32: F3
E33: HOMBRE | F33: -0.02557578025 | G33: -0.04075436682 | H33: 0.06827305087
E34: MUJER | F34: 0.0258624756 | G34: 0.03749952197 | H34: -0.06087395392
E35: Total | F35: 0.001031307702 | G35: -0.0002765538122 | H35: 0.001470130392
D45: Informe
D46: Media
D47: Grado | E47: F1 | F47: F2 | G47: F3
D48: 3 | E48: -0.0886215 | F48: -0.2283618 | G48: -0.0568465
D49: 4 | E49: -0.0778084 | F49: -0.0453802 | G49: -0.0583569
D50: 5 | E50: 0.1291023 | F50: 0.1148313 | G50: 0.02959
D51: 6 | E51: -0.0068217 | F51: 0.1421812 | G51: 0.0955448
D52: Total | E52: 0.0018987 | F52: 0.0031254 | G52: -0.0012748

Sheet GÉNERO INDICE
A4: DIF-45

Sheet GÉNERO
A1: Sexo | K1: VARIABLES RELACIONADAS CON GÉNERO
C2: Frecuencia | D2: Porcentaje | E2: Porcentaje válido | F2: Porcentaje acumulado
A3: Válido | B3: HOMBRE | C3: 2040 | D3: 48.9 | E3: 49.3 | F3: 49.3
B4: MUJER | C4: 2098 | D4: 50.3 | E4: 50.7 | F4: 100
B5: Total | C5: 4138 | D5: 99.2 | E5: 100
A6: Perdidos | B6: Sistema | C6: 35 | D6: 0.8
A7: Total | C7: 4173 | D7: 100 | W7: PREGUNTA AL ESTUDIANTE: DURANTE LA ÚLTIMA SEMANA HICE ALGO COMO ESTO…
W10: NINGUNA VEZ UNA O DOS VECES TRES O CUATRO VECES CINCO O MÁS
B11: EXPECTATIVAS_ESTUDIO | C11: HOMBRE | D11: MUJER
B12: PROFESIONISTA | C12: 0.322 | D12: 0.678 | E12: 1
B13: MILICIA (INCLUYE POLICÍA Y ORGANIZACIONES DE ESTE TIPO) | C13: 0.854 | D13: 0.146 | E13: 1
B14: DEPORTISTA | C14: 0.904 | D14: 0.096 | E14: 1
B15: OTRO | C15: 0.513 | D15: 0.487 | E15: 1
A16: Total | C16: 0.461 | D16: 0.539 | E16: 1
A20: Tabla cruzada
A21: % dentro de 6.- ¿Aproximadamente cuál es el promedio de calificación general que llevas hasta este momento?
C22: Sexo | E22: Total
C23: HOMBRE | D23: MUJER
A24: 6.- ¿Aproximadamente cuál es el promedio de calificación general que llevas hasta este momento? | B24: Promedio reprobatorio | C24: 0.571 | D24: 0.429 | E24: 1
B25: Entre 6 y 7 | C25: 0.592 | D25: 0.408 | E25: 1
B26: Entre 7.1 y 8 | C26: 0.546 | D26: 0.454 | E26: 1
B27: Entre 8.1 y 9 | C27: 0.465 | D27: 0.535 | E27: 1
B28: Más de 9 | C28: 0.421 | D28: 0.579 | E28: 1
A29: Total | C29: 0.494 | D29: 0.506 | E29: 1

Sheet CONCEPTO_DEPRESIÓN INF
A1: FUNDAMENTOS TEÓRICOS

Sheet MATRIZ

Sheet Hoja5
B3: EVENTOSD E VIOLENCIA | C3: OPCIONES | D3: PORCENTAJE | E3: CANTIDAD
B4: 1. ULTIMA SEMANA. VISTE Peleas entre alumnos/as dentro de un salón de clases. | C4: Ninguna vez | D4: 43.6 | E4: 1719
C5: Una o dos veces | D5: 33.7 | E5: 1326
C6: Tres o cuatro veces | D6: 8.9 | E6: 349
C7: Cinco o más veces | D7: 13.8 | E7: 545
B8: 2. Alumnos/as que destruyen cosas. | C8: Ninguna vez | D8: 52.1 | E8: 2017
C9: Una o dos veces | D9: 36 | E9: 1391
C10: Tres o cuatro veces | D10: 6.7 | E10: 260
C11: Cinco o más veces | D11: 5.2 | E11: 201
B12: 3. Robos a alumnos/as. | C12: Ninguna vez | D12: 59.9 | E12: 2303
C13: Una o dos veces | D13: 26.4 | E13: 1016
C14: Tres o cuatro veces | D14: 6.9 | E14: 266
C15: Cinco o más veces | D15: 6.8 | E15: 260
B16: 4. Alumnos/as que amenazan o agreden. | C16: Ninguna vez | D16: 55.3 | E16: 2131
C17: Una o dos veces | D17: 30.3 | E17: 1167
C18: Tres o cuatro veces | D18: 7.1 | E18: 274
C19: Cinco o más veces | D19: 7.3 | E19: 283
B20: 5. Se detectó algún tipo de objeto peligroso (objetos filosos, navaja, etc.). | C20: Ninguna vez | D20: 73.8 | E20: 2850
B21: 5. Se detectó algún tipo de objeto peligroso (objetos filosos, navaja, etc.). | C21: Una o dos veces | D21: 20.4 | E21: 787
B22: 5. Se detectó algún tipo de objeto peligroso (objetos filosos, navaja, etc.). | C22: Tres o cuatro veces | D22: 2.7 | E22: 105
B23: 5. Se detectó algún tipo de objeto peligroso (objetos filosos, navaja, etc.). | C23: Cinco o más veces | D23: 3.1 | E23: 120
B24: 6. Se detectó un arma como una pistola de postas, por ejemplo. | C24: Ninguna vez | D24: 88.6 | E24: 3418
B25: 6. Se detectó un arma como una pistola de postas, por ejemplo. | C25: Una o dos veces | D25: 8.7 | E25: 335
B26: 6. Se detectó un arma como una pistola de postas, por ejemplo. | C26: Tres o cuatro veces | D26: 1.2 | E26: 46
B27: 6. Se detectó un arma como una pistola de postas, por ejemplo. | C27: Cinco o más veces | D27: 1.5 | E27: 57
B28: 7. Casos de abuso sexual entre los alumno/as. | C28: Ninguna vez | D28: 88.3 | E28: 3405
B29: 7. Casos de abuso sexual entre los alumno/as. | C29: Una o dos veces | D29: 8 | E29: 307
B30: 7. Casos de abuso sexual entre los alumno/as. | C30: Tres o cuatro veces | D30: 1.6 | E30: 62
B31: 7. Casos de abuso sexual entre los alumno/as. | C31: Cinco o más veces | D31: 2.1 | E31: 81
B32: 8. Peleas durante el receso o recreo. | C32: Ninguna vez | D32: 45.4 | E32: 1743
B33: 8. Peleas durante el receso o recreo. | C33: Una o dos veces | D33: 39.3 | E33: 1511
B34: 8. Peleas durante el receso o recreo. | C34: Tres o cuatro veces | D34: 7.4 | E34: 286
B35: 8. Peleas durante el receso o recreo. | C35: Cinco o más veces | D35: 7.9 | E35: 303
B36: 9. Peleas fuera de la escuela entre alumnos/as. | C36: Ninguna vez | D36: 65 | E36: 2500
B37: 9. Peleas fuera de la escuela entre alumnos/as. | C37: Una o dos veces | D37: 24.6 | E37: 945
B38: 9. Peleas fuera de la escuela entre alumnos/as. | C38: Tres o cuatro veces | D38: 5.7 | E38: 218
B39: 9. Peleas fuera de la escuela entre alumnos/as. | C39: Cinco o más veces | D39: 4.8 | E39: 183
B40: 10. Niños que golpean a niñas. | C40: Ninguna vez | D40: 52.7 | E40: 2026
B41: 10. Niños que golpean a niñas. | C41: Una o dos veces | D41: 33.5 | E41: 1289
B42: 10. Niños que golpean a niñas. | C42: Tres o cuatro veces | D42: 7.4 | E42: 284
B43: 10. Niños que golpean a niñas. | C43: Cinco o más veces | D43: 6.4 | E43: 247
B44: 11. Alumnos/as que amenazaron a un maestro/a. | C44: Ninguna vez | D44: 84.2 | E44: 3228
B45: 11. Alumnos/as que amenazaron a un maestro/a. | C45: Una o dos veces | D45: 11.3 | E45: 432
B46: 11. Alumnos/as que amenazaron a un maestro/a. | C46: Tres o cuatro veces | D46: 2 | E46: 75
B47: 11. Alumnos/as que amenazaron a un maestro/a. | C47: Cinco o más veces | D47: 2.6 | E47: 98
B48: 12. Alumnos/as que insultan a otros. | C48: Ninguna vez | D48: 43.7 | E48: 1694
B49: 12. Alumnos/as que insultan a otros. | C49: Una o dos veces | D49: 35.3 | E49: 1368
B50: 12. Alumnos/as que insultan a otros. | C50: Tres o cuatro veces | D50: 9.1 | E50: 352
B51: 12. Alumnos/as que insultan a otros. | C51: Cinco o más veces | D51: 12 | E51: 466

Sheet EVENTOS DE VIOLENCIA TOTAL
S1: PRECEPCIÓN DE EVENTOS DE VIOLENCIA EN LA ESCUELA
S2: EVENTOS DE VIOLENCIA EN LA ESCUELA | T2: NINGUNA VEZ | U2: 1 O 2 VECES | V2: 3 O 4 VECES | W2: 5 O MÁS
A3: Peleas_Salón | B3: Destrucción_cosas | C3: Robos_alumnos | D3: Alumnos_amenazan | E3: Objeto_peligroso | F3: Armas | G3: Abuso_sexual | H3: Peleas_receso | I3: Peleas_fuera | J3: Niñosquegolpeananiñas | K3: Alumnosasqueamenazaronaunmaestroa | L3: Alumnosasqueinsultanaotros | T3: 1 | U3: 2 | V3: 3 | W3: 4
A4: 1 | B4: 1 | C4: 1 | D4: 1 | E4: 1 | F4: 1 | G4: 1 | H4: 1 | I4: 1 | J4: 1 | K4: 1 | L4: 1 | S4: Armas | T4: =COUNTIF($F:$F,$T$3) -> 3418 | U4: =COUNTIF($F:$F,$U$3) -> 335 | V4: =COUNTIF($F:$F,$V$3) -> 46 | W4: =COUNTIF($F:$F,$W$3) -> 57
A5: 2 | B5: 1 | C5: 2 | D5: 1 | E5: 2 | F5: 2 | G5: 2 | S5: Abuso sexual | T5: =COUNTIF($G:$G,$T$3) -> 3405 | U5: =COUNTIF($G:$G,$U$3) -> 307 | V5: =COUNTIF($G:$G,$V$3) -> 62 | W5: =COUNTIF($G:$G,$W$3) -> 81
A6: 2 | B6: 1 | C6: 1 | D6: 1 | E6: 4 | F6: 1 | G6: 1 | S6: Alumnos/as que amenazaron a maestro/a | T6: =COUNTIF($K:$K,$T$3) -> 3228 | U6: =COUNTIF($K:$K,$U$3) -> 432 | V6: =COUNTIF($K:$K,$V$3) -> 75 | W6: =COUNTIF($K:$K,$W$3) -> 98
A7: 4 | B7: 4 | C7: 4 | D7: 4 | E7: 4 | F7: 1 | G7: 1 | H7: 4 | I7: 4 | J7: 1 | K7: 4 | L7: 4 | S7: Objeto peligroso | T7: =COUNTIF($E:$E,$T$3) -> 2850 | U7: =COUNTIF($E:$E,$U$3) -> 787 | V7: =COUNTIF($E:$E,$V$3) -> 105 | W7: =COUNTIF($E:$E,$W$3) -> 120
A8: 1 | D8: 4 | E8: 1 | I8: 1 | J8: 2 | S8: Peleas fuera | T8: =COUNTIF($I:$I,$T$3) -> 2500 | U8: =COUNTIF($I:$I,$U$3) -> 945 | V8: =COUNTIF($I:$I,$V$3) -> 218 | W8: =COUNTIF($I:$I,$W$3) -> 183
A9: 3 | B9: 3 | C9: 4 | D9: 3 | E9: 1 | F9: 1 | G9: 1 | H9: 2 | I9: 3 | J9: 2 | K9: 1 | L9: 3 | S9: Robos alumnos | T9: =COUNTIF($C:$C,$T$3) -> 2303 | U9: =COUNTIF($C:$C,$U$3) -> 1016 | V9: =COUNTIF($C:$C,$V$3) -> 266 | W9: =COUNTIF($C:$C,$W$3) -> 260
A10: 1 | B10: 1 | C10: 2 | D10: 1 | E10: 1 | F10: 1 | G10: 1 | H10: 2 | I10: 1 | J10: 1 | K10: 1 | L10: 1 | S10: Alumnos amenazan | T10: =COUNTIF($D:$D,$T$3) -> 2131 | U10: =COUNTIF($D:$D,$U$3) -> 1167 | V10: =COUNTIF($D:$D,$V$3) -> 274 | W10: =COUNTIF($D:$D,$W$3) -> 283
A11: 4 | B11: 1 | D11: 2 | E11: 1 | F11: 1 | G11: 1 | H11: 4 | I11: 2 | J11: 1 | K11: 1 | L11: 3 | S11: Niños que golpean a niñas | T11: =COUNTIF($J:$J,$T$3) -> 2026 | U11: =COUNTIF($J:$J,$U$3) -> 1289 | V11: =COUNTIF($J:$J,$V$3) -> 284 | W11: =COUNTIF($J:$J,$W$3) -> 247
A12: 1 | B12: 1 | C12: 4 | E12: 4 | S12: Destrucción cosas | T12: =COUNTIF($B:$B,$T$3) -> 2017 | U12: =COUNTIF($B:$B,$U$3) -> 1391 | V12: =COUNTIF($B:$B,$V$3) -> 260 | W12: =COUNTIF($B:$B,$W$3) -> 201
A13: 4 | B13: 4 | C13: 4 | D13: 4 | E13: 1 | F13: 1 | G13: 1 | H13: 1 | I13: 1 | J13: 4 | L13: 4 | S13: Peleas receso | T13: =COUNTIF($H:$H,$T$3) -> 1743 | U13: =COUNTIF($H:$H,$U$3) -> 1511 | V13: =COUNTIF($H:$H,$V$3) -> 286 | W13: =COUNTIF($H:$H,$W$3) -> 303
A14: 1 | B14: 1 | C14: 1 | D14: 1 | E14: 1 | F14: 1 | G14: 1 | H14: 1 | I14: 1 | J14: 1 | K14: 1 | L14: 1 | S14: Peleas Salón | T14: =COUNTIF($A:$A,$T$3) -> 1719 | U14: =COUNTIF($A:$A,$U$3) -> 1326 | V14: =COUNTIF($A:$A,$V$3) -> 349 | W14: =COUNTIF($A:$A,$W$3) -> 545
A15: 1 | B15: 4 | C15: 4 | D15: 4 | E15: 4 | F15: 1 | G15: 1 | H15: 4 | I15: 1 | J15: 2 | K15: 1 | L15: 1 | S15: Alumnos/as que insultan a otros | T15: =COUNTIF($L:$L,$T$3) -> 1694 | U15: =COUNTIF($L:$L,$U$3) -> 1368 | V15: =COUNTIF($L:$L,$V$3) -> 352 | W15: =COUNTIF($L:$L,$W$3) -> 466
A16: 3 | B16: 4 | D16: 4 | E16: 4
A17: 1 | B17: 1 | C17: 1 | D17: 1 | E17: 1 | F17: 1 | G17: 1 | H17: 1 | I17: 1 | J17: 1 | K17: 1 | L17: 1
A18: 1 | B18: 3 | C18: 2 | D18: 3 | E18: 1 | F18: 1 | G18: 1 | H18: 4 | J18: 3 | K18: 2 | L18: 1
A19: 3 | G19: 2 | L19: 4
A20: 1 | C20: 1 | D20: 3 | E20: 2 | F20: 1 | G20: 1 | H20: 1 | I20: 2 | J20: 1 | K20: 1 | L20: 1
A22: 2 | B22: 2 | C22: 2 | D22: 2 | E22: 2 | F22: 2 | G22: 2 | H22: 2 | I22: 2 | J22: 2 | K22: 2 | L22: 2
E23: 1
A24: 2 | B24: 2 | C24: 2 | D24: 2 | E24: 2 | F24: 2 | G24: 2 | H24: 2 | I24: 2 | J24: 2 | K24: 1 | L24: 2
B25: 2 | C25: 2 | D25: 2 | E25: 1 | F25: 1 | G25: 1 | H25: 1 | I25: 1 | J25: 1 | K25: 1 | L25: 1
A26: 4 | B26: 3 | C26: 2 | D26: 3 | E26: 3 | F26: 1 | G26: 1 | H26: 2 | I26: 2 | J26: 2 | K26: 1 | L26: 2
A27: 4 | B27: 4 | C27: 4 | D27: 4 | E27: 4 | F27: 1 | G27: 1 | H27: 4 | I27: 4 | J27: 4 | K27: 1 | L27: 1
A28: 2 | B28: 2 | C28: 4 | D28: 1 | E28: 2 | F28: 1 | G28: 1 | H28: 4 | I28: 2 | J28: 1 | L28: 4
A29: 4 | B29: 1 | C29: 4 | E29: 1 | F29: 1 | G29: 1 | H29: 3 | J29: 3 | K29: 1 | L29: 3
A30: 4 | B30: 2 | C30: 2 | D30: 2 | E30: 1 | F30: 1 | G30: 2 | H30: 3 | I30: 2 | J30: 1 | K30: 4 | L30: 1
A31: 4 | B31: 4 | C31: 4 | D31: 4 | E31: 4 | F31: 1 | G31: 1 | H31: 4 | I31: 4 | J31: 4 | K31: 4 | L31: 1
A32: 1 | B32: 2 | C32: 1 | D32: 2 | E32: 1 | F32: 2 | G32: 2 | H32: 1 | I32: 1 | J32: 1 | K32: 1 | L32: 1
A33: 1 | B33: 1 | C33: 1 | D33: 1 | E33: 1 | F33: 1 | G33: 1 | H33: 1 | I33: 1 | J33: 1 | K33: 1 | L33: 1
A34: 4 | B34: 4 | C34: 4 | D34: 1 | E34: 2 | F34: 1 | G34: 4 | H34: 2 | I34: 2 | J34: 1 | K34: 1 | L34: 4
A35: 1 | B35: 1 | C35: 1 | D35: 1 | E35: 1 | F35: 1 | G35: 1 | H35: 1 | I35: 1 | J35: 2 | K35: 1 | L35: 1
A36: 1 | B36: 1 | C36: 1 | D36: 1 | E36: 1 | F36: 1 | G36: 1 | H36: 1 | I36: 1 | J36: 1 | K36: 1 | L36: 1
A37: 1 | B37: 1 | C37: 2 | D37: 2 | E37: 2 | F37: 2 | G37: 1 | H37: 2 | I37: 2 | J37: 2 | K37: 1 | L37: 2
A38: 2 | B38: 1 | C38: 1 | D38: 1 | E38: 1 | F38: 1 | G38: 1 | H38: 1 | I38: 1 | J38: 1 | K38: 1 | L38: 1
A39: 4 | B39: 3 | C39: 1 | D39: 2 | E39: 1 | F39: 1 | G39: 1 | H39: 4 | I39: 3 | J39: 3 | K39: 1 | L39: 2
A40: 4 | B40: 4 | C40: 4 | D40: 1 | E40: 2 | F40: 1 | G40: 1 | H40: 1 | I40: 1 | J40: 1 | K40: 4 | L40: 4
A41: 2 | B41: 2 | C41: 2 | D41: 2 | E41: 2 | F41: 2 | G41: 2 | H41: 2 | I41: 2 | J41: 2 | K41: 2 | L41: 2
A42: 1 | B42: 1 | C42: 1 | D42: 1 | E42: 1 | F42: 2 | G42: 1 | H42: 1 | I42: 1 | J42: 1 | K42: 1 | L42: 3
A43: 1 | B43: 1 | C43: 1 | D43: 1 | E43: 1 | F43: 1 | G43: 1 | H43: 1 | I43: 1 | J43: 1 | K43: 1 | L43: 1
A44: 4 | B44: 3 | C44: 2 | D44: 4 | E44: 4 | F44: 1 | G44: 1 | H44: 1 | I44: 1 | J44: 1 | K44: 1 | L44: 1
A45: 3 | B45: 4 | C45: 3 | D45: 4 | E45: 2 | F45: 1 | G45: 1 | H45: 4 | I45: 1 | J45: 2 | K45: 3 | L45: 2
A46: 4 | B46: 3 | C46: 1 | D46: 3 | E46: 1 | F46: 1 | G46: 1 | H46: 4 | I46: 2 | J46: 1 | K46: 1 | L46: 1
A47: 2 | B47: 2 | C47: 2 | D47: 2 | E47: 2 | F47: 1 | G47: 1 | H47: 4 | I47: 2 | J47: 2 | K47: 2 | L47: 4
A48: 1 | B48: 1 | C48: 1 | D48: 1 | E48: 1 | F48: 2 | G48: 1 | H48: 4 | I48: 4 | J48: 4 | K48: 1 | L48: 4
B49: 1 | D49: 1 | E49: 1 | H49: 1 | I49: 1 | J49: 1 | L49: 1
A50: 1 | B50: 4 | C50: 1 | D50: 1 | E50: 1 | F50: 1 | G50: 4 | H50: 3 | I50: 4 | J50: 1 | K50: 1 | L50: 1
A51: 2 | B51: 4 | C51: 3 | D51: 2 | E51: 4 | F51: 2 | G51: 2 | H51: 2 | I51: 2 | J51: 3 | K51: 1 | L51: 2
A53: 1 | B53: 1 | C53: 1 | D53: 2 | E53: 3 | F53: 2 | G53: 1 | H53: 2 | I53: 2 | J53: 2
A54: 4 | B54: 3 | C54: 3 | D54: 1 | E54: 1 | F54: 1 | G54: 1 | H54: 4 | I54: 1 | J54: 4 | K54: 2 | L54: 2
A55: 2 | H55: 2 | J55: 2
A56: 2 | B56: 2 | C56: 1 | D56: 1 | E56: 1 | F56: 1 | G56: 1 | H56: 1 | I56: 2 | J56: 2 | K56: 1 | L56: 1
A57: 1 | B57: 1 | C57: 1 | D57: 1 | E57: 1 | F57: 1 | G57: 1 | H57: 1 | I57: 1 | J57: 4 | K57: 1 | L57: 1
A58: 4 | B58: 2 | C58: 4 | D58: 3 | E58: 1 | F58: 1 | G58: 1 | H58: 4 | I58: 1 | J58: 1 | K58: 1 | L58: 2
A59: 4 | B59: 2 | C59: 2 | D59: 1 | E59: 2 | G59: 1 | H59: 1 | I59: 1 | J59: 2 | K59: 1 | L59: 1
A60: 4 | B60: 2 | C60: 1 | D60: 2 | E60: 1 | F60: 1 | G60: 1 | H60: 2 | I60: 2 | J60: 2 | K60: 2 | L60: 2
A61: 4 | B61: 4 | C61: 4 | D61: 4 | E61: 1 | F61: 1 | G61: 1 | H61: 4 | I61: 4 | J61: 2 | K61: 2 | L61: 4
A62: 3 | B62: 1 | C62: 1 | E62: 2 | F62: 1 | G62: 1 | H62: 2 | I62: 3 | J62: 1 | K62: 1 | L62: 1
A63: 1 | B63: 3 | D63: 1 | E63: 4 | F63: 3 | G63: 1 | I63: 4 | J63: 2 | K63: 3 | L63: 1
A64: 4 | B64: 2 | C64: 2 | D64: 2 | E64: 2 | F64: 2 | G64: 1 | H64: 4 | I64: 4 | J64: 2 | K64: 2 | L64: 4
A65: 1 | B65: 2 | C65: 1 | D65: 2 | E65: 1 | F65: 1 | G65: 1 | H65: 4 | I65: 1 | J65: 1 | K65: 1 | L65: 2
A66: 4 | B66: 3 | C66: 2 | D66: 2 | E66: 2 | F66: 1 | G66: 1 | H66: 4 | I66: 4 | J66: 2 | K66: 4 | L66: 4
A67: 2 | B67: 2 | C67: 1 | D67: 4 | E67: 2 | F67: 2 | G67: 1 | H67: 4 | I67: 1 | J67: 2 | K67: 2 | L67: 2
A68: 2 | B68: 2 | C68: 1 | D68: 2 | E68: 2 | F68: 1 | G68: 1 | H68: 4 | I68: 2 | J68: 2 | K68: 2 | L68: 2
A69: 2 | B69: 2 | C69: 2 | D69: 2 | E69: 2 | F69: 1 | G69: 1 | H69: 4 | I69: 3 | J69: 1 | K69: 2 | L69: 4
A70: 2 | B70: 2 | C70: 2 | D70: 1 | E70: 1 | F70: 1 | G70: 1 | H70: 2 | I70: 2 | J70: 1 | K70: 2 | L70: 2
A71: 2 | B71: 1 | C71: 1 | D71: 2 | E71: 1 | F71: 1 | G71: 1 | H71: 2 | I71: 2 | J71: 2 | K71: 1 | L71: 2
A72: 3 | B72: 2 | C72: 2 | D72: 2 | E72: 2 | F72: 2 | G72: 1 | H72: 1 | I72: 4 | J72: 2 | K72: 2 | L72: 3
A73: 1 | B73: 1 | C73: 1 | D73: 4 | E73: 1 | F73: 2 | G73: 1 | H73: 4 | I73: 2 | J73: 1 | K73: 1 | L73: 3
A74: 2 | B74: 1 | C74: 1 | D74: 2 | E74: 1 | F74: 1 | G74: 1 | H74: 2 | I74: 2 | J74: 2 | K74: 1 | L74: 2
A75: 1 | B75: 1 | C75: 1 | D75: 1 | E75: 1 | F75: 1 | G75: 1 | H75: 1 | I75: 1 | J75: 1 | K75: 1 | L75: 1
A76: 1 | B76: 1 | C76: 1 | D76: 1 | E76: 1 | F76: 1 | G76: 1 | H76: 1 | I76: 1 | J76: 1 | K76: 1 | L76: 1
A77: 1 | B77: 1 | C77: 2 | E77: 1 | F77: 1 | H77: 2 | J77: 1 | L77: 1
A78: 1 | B78: 1 | C78: 1 | D78: 1 | E78: 1 | F78: 1 | G78: 1 | H78: 1 | I78: 1 | J78: 1 | K78: 1 | L78: 1
A79: 1 | B79: 1 | C79: 1 | D79: 1 | E79: 1 | F79: 1 | G79: 1 | H79: 1 | I79: 1 | J79: 1 | K79: 1 | L79: 1
A80: 1 | B80: 1 | C80: 1 | D80: 1 | E80: 1 | F80: 1 | G80: 1 | H80: 1 | I80: 2 | J80: 1 | K80: 1 | L80: 1
A81: 1 | B81: 1 | C81: 1 | D81: 1 | E81: 1 | F81: 1 | G81: 1 | H81: 1 | I81: 1 | J81: 1 | K81: 1 | L81: 1
A82: 1 | C82: 1 | D82: 1 | E82: 1 | F82: 1 | G82: 1 | H82: 1 | I82: 1 | J82: 1 | K82: 1 | L82: 1
A83: 1 | B83: 1 | C83: 1 | D83: 1 | E83: 1 | F83: 1 | G83: 1 | H83: 1 | I83: 1 | J83: 2 | K83: 1 | L83: 1
A84: 1 | B84: 1 | C84: 1 | D84: 1 | E84: 1 | F84: 1 | G84: 1 | H84: 1 | I84: 2 | J84: 1 | K84: 1 | L84: 1
A85: 1 | B85: 1 | C85: 2 | D85: 1 | E85: 1 | F85: 1 | G85: 1 | H85: 1 | I85: 2 | J85: 1 | K85: 1 | L85: 2
A86: 1 | B86: 1 | C86: 1 | D86: 1 | E86: 1 | F86: 1 | G86: 1 | H86: 1 | I86: 1 | J86: 2 | K86: 1 | L86: 1
A87: 1 | B87: 1 | C87: 1 | D87: 1 | E87: 1 | F87: 1 | G87: 1 | H87: 2 | I87: 1 | J87: 2 | K87: 1 | L87: 1
A88: 1 | B88: 1 | C88: 1 | D88: 1 | E88: 1 | F88: 1 | G88: 1 | H88: 4 | I88: 1 | J88: 2 | K88: 1 | L88: 4
A89: 1 | B89: 1 | C89: 1 | D89: 1 | E89: 1 | F89: 1 | G89: 1 | H89: 1 | I89: 1 | J89: 1 | K89: 1 | L89: 1
A90: 2 | B90: 1 | C90: 1 | D90: 1 | E90: 1 | F90: 1 | G90: 1 | H90: 1 | I90: 1 | J90: 1 | K90: 1 | L90: 1
A91: 2 | B91: 4 | C91: 2 | E91: 1 | F91: 1 | I91: 1 | J91: 1 | K91: 1 | L91: 1
A92: 1 | B92: 1 | C92: 1 | D92: 1 | E92: 1 | F92: 1 | G92: 1 | H92: 2 | I92: 1 | J92: 1 | K92: 1 | L92: 2
A93: 2 | B93: 2 | C93: 2 | D93: 1 | E93: 1 | F93: 1 | G93: 1 | H93: 2 | I93: 1 | J93: 1 | K93: 1 | L93: 3
A94: 2 | B94: 1 | C94: 1 | D94: 1 | E94: 1 | F94: 1 | G94: 1 | H94: 2 | I94: 1 | J94: 1 | K94: 1 | L94: 1
A95: 1 | C95: 4 | D95: 4 | E95: 1 | F95: 1 | G95: 1 | H95: 2 | I95: 2 | K95: 1 | L95: 4
A96: 1 | B96: 1 | C96: 1 | D96: 2 | E96: 1 | F96: 1 | G96: 1 | H96: 1 | I96: 1 | J96: 1 | K96: 1 | L96: 1
A97: 1 | B97: 1 | C97: 1 | D97: 1 | E97: 1 | F97: 1 | G97: 1 | H97: 1 | I97: 1 | J97: 1 | K97: 1 | L97: 1
A98: 1 | B98: 1 | C98: 1 | D98: 2 | F98: 1 | G98: 1 | H98: 1 | I98: 1 | J98: 1 | K98: 1 | L98: 2
A99: 2 | B99: 1 | C99: 2 | D99: 1 | E99: 2 | F99: 1 | G99: 1 | H99: 1 | I99: 1 | J99: 2 | K99: 1 | L99: 1
A100: 1 | B100: 2 | C100: 1 | D100: 1 | E100: 4 | F100: 1 | G100: 1 | H100: 1 | I100: 2 | J100: 1 | K100: 1 | L100: 1
A101: 3 | B101: 4 | C101: 1 | D101: 2 | E101: 3 | F101: 1 | G101: 2 | H101: 1 | I101: 1 | J101: 3 | K101: 1 | L101: 4
A102: 4 | B102: 4 | C102: 4 | D102: 4 | E102: 4 | F102: 1 | G102: 1 | H102: 4 | I102: 1 | J102: 4 | K102: 1 | L102: 4
A103: 1 | B103: 2 | C103: 1 | D103: 2 | E103: 1 | F103: 1 | G103: 4 | H103: 3 | J103: 1 | K103: 1 | L103: 1
A104: 2 | B104: 1 | C104: 1 | D104: 2 | E104: 1 | F104: 1 | G104: 1 | H104: 3 | I104: 3 | J104: 2 | K104: 1 | L104: 1
A105: 2 | B105: 1 | C105: 2 | D105: 1 | E105: 1 | F105: 2 | G105: 1 | H105: 2 | I105: 1 | J105: 1 | K105: 1 | L105: 1
A106: 1 | B106: 1 | C106: 1 | D106: 1 | E106: 1 | F106: 1 | G106: 2 | H106: 1 | I106: 1 | J106: 1 | K106: 1 | L106: 4
B107: 2 | C107: 2 | D107: 1 | E107: 1 | F107: 1 | G107: 2 | H107: 2 | I107: 1 | J107: 1 | K107: 1 | L107: 4
A108: 1 | B108: 2 | C108: 2 | D108: 2 | E108: 1 | F108: 1 | G108: 1 | H108: 1 | I108: 1 | J108: 2 | K108: 1 | L108: 2
A109: 2 | B109: 2 | C109: 2 | D109: 1 | E109: 1 | F109: 1 | G109: 2 | H109: 3 | I109: 1 | J109: 1 | K109: 1 | L109: 3
A110: 1 | B110: 2 | C110: 4 | D110: 3 | E110: 2 | G110: 4 | I110: 3 | J110: 2 | K110: 1 | L110: 2
A111: 1 | C111: 4 | D111: 4 | F111: 1 | G111: 4 | H111: 4 | I111: 3 | J111: 2 | K111: 1 | L111: 4
A112: 1 | B112: 3 | C112: 4 | D112: 1 | E112: 2 | F112: 2 | G112: 1 | H112: 1 | I112: 1 | J112: 1 | K112: 3 | L112: 2
A113: 4 | B113: 3 | C113: 4 | D113: 2 | E113: 2 | F113: 1 | G113: 1 | H113: 1 | I113: 1 | J113: 4 | K113: 1 | L113: 1
A114: 1 | B114: 2 | C114: 1 | D114: 2 | E114: 1 | F114: 1 | G114: 1 | H114: 1 | I114: 1 | J114: 4 | K114: 1 | L114: 1
A115: 2 | B115: 3 | C115: 1 | D115: 2 | E115: 1 | F115: 2 | G115: 1 | H115: 4 | I115: 4 | J115: 1 | K115: 1 | L115: 2
A116: 2 | B116: 2 | C116: 2 | D116: 2 | E116: 1 | F116: 1 | G116: 1 | H116: 2 | I116: 2 | J116: 1 | K116: 1 | L116: 1
A117: 1 | B117: 1 | C117: 1 | D117: 1 | F117: 2 | G117: 1 | I117: 1 | J117: 1 | K117: 2 | L117: 1
A118: 2 | B118: 1 | C118: 3 | D118: 2 | E118: 2 | F118: 1 | G118: 1 | H118: 4 | I118: 2 | J118: 1 | K118: 2 | L118: 2
A119: 1 | B119: 2 | C119: 1 | D119: 2 | E119: 1 | F119: 2 | G119: 1 | H119: 2 | I119: 1 | J119: 2 | K119: 1 | L119: 2
A120: 4 | B120: 3 | C120: 4 | D120: 2 | E120: 2 | F120: 1 | G120: 1 | H120: 4 | I120: 4 | J120: 4 | K120: 1 | L120: 4
A121: 4 | B121: 1 | C121: 1 | D121: 1 | E121: 1 | F121: 1 | G121: 1 | H121: 4 | I121: 1 | J121: 2 | K121: 1 | L121: 3
A122: 1 | B122: 3 | C122: 3 | D122: 2 | E122: 3 | F122: 4 | G122: 3 | I122: 4 | J122: 3 | K122: 4 | L122: 4
A123: 1 | B123: 2 | C123: 2 | D123: 2 | E123: 1 | F123: 1 | G123: 1 | H123: 1 | I123: 1 | J123: 2 | K123: 1 | L123: 2
A124: 3 | B124: 2 | C124: 2 | D124: 1 | E124: 1 | F124: 1 | G124: 1 | H124: 2 | I124: 1 | J124: 2 | K124: 1 | L124: 1
A125: 3 | B125: 1 | C125: 1 | D125: 2 | E125: 1 | F125: 1 | G125: 1 | H125: 1 | I125: 1 | J125: 2 | K125: 1 | L125: 1
A126: 2 | B126: 3 | C126: 2 | D126: 3 | E126: 4 | F126: 3 | G126: 4 | H126: 4 | I126: 3 | J126: 4 | K126: 3 | L126: 4
A127: 2 | B127: 1 | C127: 1 | D127: 1
A128: 2 | B128: 1 | C128: 2 | D128: 2 | E128: 1 | F128: 1 | G128: 1 | H128: 1 | I128: 2 | J128: 2 | K128: 1 | L128: 2
A129: 2 | B129: 2 | C129: 2 | D129: 2 | E129: 1 | F129: 1 | G129: 1 | H129: 3 | I129: 3 | J129: 3 | K129: 1 | L129: 3
A131: 2 | B131: 2 | C131: 2 | D131: 2 | H131: 2 | I131: 1 | J131: 1 | K131: 2 | L131: 1
A132: 1 | B132: 2 | C132: 1 | D132: 1 | E132: 1 | F132: 1 | G132: 1 | H132: 1 | I132: 1 | J132: 1 | K132: 1 | L132: 2
A133: 2 | B133: 2 | C133: 2 | D133: 2 | G133: 2 | I133: 2 | J133: 1
A134: 2 | B134: 2 | C134: 1 | D134: 1 | E134: 1 | F134: 1 | G134: 1 | H134: 1 | I134: 1 | J134: 1 | K134: 1 | L134: 1
A135: 2 | B135: 1 | C135: 1 | D135: 2 | E135: 1 | F135: 1 | G135: 1 | H135: 1 | I135: 1 | J135: 2 | K135: 1 | L135: 1
A136: 2 | B136: 1 | C136: 1 | D136: 2 | E136: 1 | F136: 1 | G136: 1 | H136: 1 | I136: 1 | J136: 2 | K136: 1 | L136: 1
A137: 2 | B137: 1 | C137: 1 | D137: 2 | E137: 2 | F137: 1 | G137: 1 | H137: 2 | I137: 2 | J137: 2 | K137: 1 | L137: 2
A138: 2 | B138: 1 | C138: 1 | D138: 1 | E138: 1 | F138: 1 | G138: 1 | H138: 2 | I138: 1 | J138: 1 | K138: 1 | L138: 1
A139: 4 | B139: 2 | C139: 2 | D139: 1 | E139: 2 | F139: 2 | G139: 1 | H139: 4 | I139: 2 | J139: 2 | K139: 1 | L139: 4
A140: 2 | B140: 2 | C140: 2 | D140: 2 | E140: 2 | F140: 2 | G140: 1 | H140: 4 | I140: 2 | J140: 2 | K140: 1 | L140: 4
A141: 1 | B141: 1 | C141: 1 | D141: 1 | E141: 1 | F141: 1 | G141: 1 | H141: 1 | I141: 1 | J141: 1 | K141: 1 | L141: 1
A142: 3 | B142: 2 | C142: 4 | D142: 2 | F142: 2 | G142: 1 | H142: 3 | I142: 4 | J142: 3 | K142: 2 | L142: 4
A143: 4 | B143: 1 | C143: 1 | D143: 2 | E143: 2 | F143: 1 | G143: 1 | H143: 2 | I143: 2 | J143: 2 | K143: 2 | L143: 1
A144: 2 | B144: 1 | C144: 2 | D144: 2 | E144: 1 | F144: 1 | G144: 1 | H144: 2 | I144: 2 | J144: 2 | K144: 2 | L144: 2
A145: 2 | B145: 1 | C145: 2 | D145: 2 | E145: 1 | F145: 1 | G145: 1 | H145: 2 | I145: 2 | J145: 2 | K145: 2 | L145: 2
A146: 2 | B146: 1 | C146: 1 | D146: 1 | E146: 1 | F146: 1 | G146: 1 | H146: 2 | I146: 1 | J146: 2 | K146: 1 | L146: 2
A147: 4 | B147: 2 | C147: 1 | E147: 3 | F147: 1 | G147: 1 | H147: 2 | I147: 1 | J147: 2 | K147: 1 | L147: 1
A148: 1 | B148: 1 | C148: 1 | D148: 1 | E148: 1 | F148: 1 | G148: 1 | H148: 1 | I148: 1 | J148: 1 | K148: 1 | L148: 1
A149: 2 | B149: 1 | C149: 2 | D149: 2 | E149: 1 | F149: 1 | G149: 1 | H149: 4 | I149: 2 | J149: 2 | K149: 1 | L149: 4
A150: 2 | B150: 1 | C150: 2 | D150: 2 | E150: 1 | F150: 1 | G150: 1 | H150: 4 | I150: 2 | J150: 2 | K150: 1 | L150: 4
A151: 2 | B151: 2 | C151: 3 | D151: 1 | E151: 1 | F151: 1 | G151: 1 | H151: 3 | I151: 3 | J151: 3 | K151: 2 | L151: 1
A152: 2 | B152: 2 | C152: 2 | D152: 2 | E152: 2 | F152: 2 | G152: 2 | H152: 2 | I152: 2 | J152: 2 | K152: 2 | L152: 2
A153: 2 | B153: 2 | C153: 2 | D153: 2 | E153: 1 | F153: 1 | G153: 1 | H153: 2 | I153: 2 | J153: 2 | K153: 1 | L153: 2
A154: 2 | B154: 2 | C154: 2 | D154: 2 | E154: 1 | F154: 1 | G154: 1 | H154: 2 | I154: 1 | J154: 2 | K154: 1 | L154: 2
A155: 1 | B155: 3 | C155: 4 | D155: 3 | E155: 1 | F155: 2 | G155: 1 | H155: 3 | I155: 1 | J155: 1 | K155: 1 | L155: 2
A156: 1 | B156: 1 | C156: 2 | D156: 1 | E156: 1 | F156: 1 | G156: 1 | H156: 1 | I156: 1 | J156: 1 | K156: 1 | L156: 2
A157: 3 | B157: 2 | C157: 3 | D157: 3 | E157: 1 | F157: 1 | G157: 1 | H157: 3 | I157: 2 | J157: 3 | K157: 1 | L157: 4
A158: 2 | B158: 1 | C158: 1 | D158: 1 | E158: 1 | F158: 1 | G158: 1 | H158: 2 | I158: 1 | J158: 1 | K158: 1 | L158: 2
A159: 4 | B159: 3 | C159: 3 | D159: 2 | E159: 1 | F159: 1 | G159: 1 | H159: 3 | I159: 2 | J159: 2 | K159: 1 | L159: 4
A160: 3 | B160: 4 | C160: 1 | D160: 3 | E160: 1 | F160: 1 | G160: 1 | H160: 2 | I160: 3 | J160: 3 | K160: 1 | L160: 2
A161: 4 | B161: 2 | C161: 3 | D161: 2 | E161: 1 | F161: 1 | G161: 1 | H161: 2 | I161: 1 | J161: 2 | K161: 2 | L161: 4
A162: 1 | B162: 1 | C162: 1 | D162: 1 | E162: 1 | F162: 1 | G162: 1 | H162: 1 | I162: 1 | J162: 1 | K162: 1 | L162: 1
C163: 4 | D163: 4 | E163: 1 | F163: 1 | G163: 1 | H163: 1 | I163: 2 | J163: 4 | K163: 1 | L163: 4
A164: 2 | B164: 2 | C164: 1 | D164: 1 | E164: 1 | F164: 1 | G164: 1 | H164: 2 | I164: 2 | J164: 1 | K164: 1 | L164: 1
A165: 2 | B165: 1 | C165: 1 | D165: 1 | E165: 1 | F165: 1 | G165: 1 | H165: 2 | I165: 2 | J165: 2 | K165: 1 | L165: 1
A166: 1 | B166: 1 | D166: 1 | H166: 2 | I166: 1 | J166: 2 | L166: 2
A167: 4 | B167: 4 | C167: 4 | D167: 1 | F167: 1 | G167: 1 | H167: 1 | I167: 1 | J167: 1 | K167: 1 | L167: 4
A168: 1 | B168: 1 | C168: 1 | D168: 1 | E168: 1 | F168: 1 | G168: 1 | H168: 1 | I168: 1 | J168: 1 | K168: 1 | L168: 1
B169: 1 | C169: 1 | D169: 1 | E169: 1 | G169: 1 | H169: 1 | I169: 1 | J169: 2 | K169: 1 | L169: 1
A170: 3 | B170: 3 | C170: 3 | D170: 1 | E170: 1 | F170: 1 | H170: 2 | J170: 1 | K170: 1 | L170: 1
A171: 1 | B171: 2 | C171: 2 | D171: 2 | E171: 1 | F171: 1 | G171: 1 | H171: 1 | I171: 1 | J171: 1 | K171: 1 | L171: 1
A172: 2 | B172: 1 | C172: 2 | D172: 1 | E172: 1 | F172: 1 | G172: 1 | H172: 1 | I172: 1 | J172: 1 | K172: 1 | L172: 1
A173: 2 | B173: 2 | C173: 2 | D173: 1 | E173: 1 | F173: 1 | G173: 1 | H173: 2 | I173: 2 | J173: 2 | K173: 2 | L173: 2
A174: 1 | B174: 2 | C174: 2 | D174: 4 | E174: 1 | F174: 1 | G174: 1 | H174: 3 | I174: 3 | J174: 2 | K174: 1 | L174: 2
A175: 1 | B175: 1 | C175: 2 | D175: 1 | E175: 1 | F175: 1 | G175: 1 | H175: 2 | I175: 1 | J175: 1 | K175: 1 | L175: 2
A176: 2 | B176: 1 | C176: 2 | D176: 1 | E176: 1 | F176: 1 | G176: 1 | H176: 2 | I176: 1 | J176: 1 | K176: 1 | L176: 2
A177: 1 | B177: 1 | C177: 1 | D177: 2 | E177: 1 | F177: 1 | G177: 1 | H177: 2 | I177: 1 | J177: 2 | K177: 1 | L177: 3
A178: 2 | B178: 2 | C178: 2 | D178: 2 | E178: 2 | F178: 1 | G178: 1 | H178: 1 | I178: 2 | J178: 1 | K178: 1 | L178: 3
A179: 1 | B179: 1 | C179: 1 | D179: 1 | E179: 1 | F179: 1 | G179: 1 | H179: 1 | I179: 1 | J179: 1 | K179: 1 | L179: 1
A180: 2 | B180: 2 | C180: 3 | D180: 4 | E180: 1 | F180: 1 | H180: 1 | I180: 1 | J180: 1 | K180: 1 | L180: 3
A181: 3 | B181: 2 | C181: 2 | D181: 1 | E181: 1 | F181: 1 | G181: 1 | H181: 2 | I181: 2 | J181: 2 | K181: 1 | L181: 1
A182: 2 | B182: 1 | C182: 1 | D182: 2 | E182: 1 | F182: 1 | G182: 1 | H182: 1 | I182: 1 | J182: 2 | K182: 1 | L182: 1
A183: 4 | B183: 1 | C183: 1 | D183: 1 | E183: 1 | F183: 1 | G183: 1 | H183: 3 | I183: 3 | J183: 4 | K183: 1 | L183: 3
A184: 3 | B184: 3 | C184: 2 | D184: 1 | E184: 1 | F184: 1 | G184: 1 | H184: 2 | I184: 1 | J184: 3 | K184: 1 | L184: 4
C185: 1 | D185: 1 | E185: 1 | F185: 1 | G185: 1 | H185: 1 | I185: 1 | K185: 1
A186: 2 | B186: 1 | C186: 1 | D186: 2 | E186: 1 | F186: 1 | G186: 1 | H186: 1 | I186: 1 | J186: 3 | K186: 1 | L186: 1
A187: 4 | B187: 1 | C187: 1 | D187: 1 | E187: 3 | F187: 1 | G187: 1 | H187: 2 | I187: 4 | J187: 4 | K187: 1 | L187: 3
A188: 2 | B188: 1 | C188: 1 | D188: 1 | E188: 1 | F188: 1 | G188: 1 | H188: 2 | I188: 1 | J188: 4 | K188: 1 | L188: 2
A189: 4 | B189: 2 | C189: 2 | D189: 2 | E189: 2 | F189: 1 | G189: 1 | H189: 4 | I189: 3 | J189: 4 | K189: 1 | L189: 3
A190: 4 | B190: 1 | C190: 1 | D190: 2 | E190: 1 | F190: 1 | G190: 1 | H190: 1 | I190: 2 | J190: 2 | K190: 1 | L190: 1
A191: 2 | B191: 2 | C191: 1 | D191: 1 | E191: 1 | F191: 1 | G191: 1 | H191: 2 | I191: 2 | J191: 2 | K191: 1 | L191: 1
A192: 4 | B192: 2 | C192: 2 | D192: 2 | E192: 2 | F192: 1 | G192: 2 | H192: 4 | I192: 3 | J192: 4 | K192: 1 | L192: 4
A193: 1 | B193: 2 | C193: 1 | D193: 1 | E193: 1 | F193: 1 | G193: 1 | H193: 1 | I193: 1 | J193: 1 | K193: 1 | L193: 1
A194: 4 | B194: 4 | C194: 4 | D194: 4 | E194: 1 | F194: 1 | G194: 1 | H194: 1 | I194: 1 | J194: 4 | K194: 1 | L194: 4
A195: 3 | B195: 3 | C195: 2 | D195: 1 | E195: 1 | F195: 1 | G195: 1 | H195: 2 | I195: 3 | J195: 4 | K195: 1 | L195: 1
A196: 4 | B196: 1 | C196: 2 | D196: 1 | E196: 1 | F196: 1 | G196: 1 | H196: 2 | I196: 2 | J196: 3 | K196: 1
A198: 1 | B198: 2 | C198: 1 | D198: 1 | E198: 1 | F198: 1 | G198: 1 | H198: 1 | I198: 1 | J198: 2 | K198: 1 | L198: 2
A199: 2 | B199: 2 | C199: 1 | D199: 1 | E199: 1 | F199: 1 | G199: 1 | H199: 1 | I199: 1 | J199: 2 | K199: 1 | L199: 1
A200: 1 | B200: 1 | C200: 1 | D200: 1 | E200: 1 | F200: 1 | G200: 1 | H200: 1 | I200: 1 | J200: 1 | K200: 1 | L200: 3
A201: 1 | B201: 1 | C201: 1 | D201: 1 | E201: 1 | F201: 1 | G201: 1 | H201: 1 | I201: 1 | J201: 1 | K201: 1 | L201: 2
A202: 1 | B202: 2 | C202: 2 | D202: 1 | E202: 1 | F202: 1 | G202: 1 | H202: 1 | I202: 2 | J202: 1 | K202: 1 | L202: 1
A203: 2 | B203: 2 | C203: 1 | D203: 2 | E203: 1 | F203: 1 | G203: 1 | H203: 2 | I203: 2 | J203: 1 | K203: 1 | L203: 2
A204: 1 | B204: 1 | C204: 1 | D204: 1 | E204: 1 | F204: 1 | G204: 1 | H204: 1 | I204: 1 | J204: 1 | K204: 1 | L204: 1
... 3852 more rows

Sheet REGLAS SALÓN VIOLENCIA
A1: REGLAS ESCOLARES
K2: OBEDECE REGLAS SALÓN | L2: PELEAS SALÓN | M2: DESTRUCCIÓN COSAS | N2: ROBOS | O2: AMENAZAS | P2: OBJETO PELIGROSO | Q2: ARMAS | R2: ABUSO SEXUAL | S2: PELEAS RECESO | T2: PELEAS | U2: NIÑOS GOLPEAN NIÑAS | V2: AMENAZAS A MAESTRO/AS | W2: ALUMNOS INSULTAN
K3: NUNCA | L3: 2.184357542 | M3: 1.895348837 | N3: 1.784090909 | O3: 1.915254237 | P3: 1.623529412 | Q3: 1.265895954 | R3: 1.375 | S3: 2.028735632 | T3: 1.734463277 | U3: 1.965116279 | V3: 1.462427746 | W3: 2.16
A4: EVENTO DE VIOLENCIA- DURANTE LA ÚLTIMA SEMANA VISTE O SUPISTE DE... | B4: Siempre | C4: Casi siempre | D4: Casi nunca | E4: Nunca | F4: Total | K4: CASI NUNCA | L4: 2.146153846 | M4: 1.853403141 | N4: 1.769633508 | O4: 1.905759162 | P4: 1.471502591 | Q4: 1.19121447 | R4: 1.193717277 | S4: 2.002617801 | T4: 1.53626943 | U4: 1.906976744 | V4: 1.260981912 | W4: 2.294117647
A5: 1. Peleas entre alumnos/as dentro de un salón de clases. | B5: 1.83 | C5: 1.95 | D5: 2.15 | E5: 2.18 | F5: 1.93 | K5: CASI SIEMPRE | L5: 1.953149002 | M5: 1.710973725 | N5: 1.66588785 | O5: 1.741258741 | P5: 1.356535189 | Q5: 1.142857143 | R5: 1.144634526 | S5: 1.841085271 | T5: 1.515953307 | U5: 1.713951676 | V5: 1.221528861 | W5: 1.969230769
A6: 2. Alumnos/as que destruyen cosas. | B6: 1.55 | C6: 1.71 | D6: 1.85 | E6: 1.9 | F6: 1.66 | I6: 1.97 | J6: 1.46 | K6: SIEMPRE | L6: 1.830874007 | M6: 1.553509781 | N6: 1.505475504 | O6: 1.538372764 | P6: 1.300345224 | Q6: 1.146467547 | R6: 1.164462335 | S6: 1.663967611 | T6: 1.474232774 | U6: 1.570768342 | V6: 1.197223829 | W6: 1.727742677
A7: 3. Robos a alumnos/as. | B7: 1.51 | C7: 1.67 | D7: 1.77 | E7: 1.78 | F7: 1.6 | L7: =AVERAGE(L3:L6) -> 2.028633599 | M7: =AVERAGE(M3:M6) -> 1.753308871 | N7: 1.681271943 | O7: 1.775161226 | P7: 1.437978104 | Q7: 1.186608779 | R7: 1.219453534 | S7: 1.884101579 | T7: 1.565229697 | U7: 1.78920326 | V7: 1.285540587 | W7: 2.037772773
A8: 4. Alumnos/as que amenazan o agreden. | B8: 1.54 | C8: 1.74 | D8: 1.91 | E8: 1.92 | F8: 1.67
A9: 5. Se detectó algún tipo de objeto peligroso (objetos filosos, navaja, etc.). | B9: 1.3 | C9: 1.36 | D9: 1.47 | E9: 1.62 | F9: 1.35 | K9: OBEDECE REGLAS SALÓN | L9: NUNCA | M9: CASI NUNCA | N9: CASI SIEMPRE | O9: SIEMPRE
A10: 6. Se detectó un arma como una pistola de postas, por ejemplo. | B10: 1.15 | C10: 1.14 | D10: 1.19 | E10: 1.27 | F10: 1.16 | K10: PELEAS SALÓN | L10: 2.184357542 | M10: 2.146153846 | N10: 1.953149002 | O10: 1.830874007 | P10: =AVERAGE(L10:O10) -> 2.028633599
A11: 7. Casos de abuso sexual entre los alumno/as. | B11: 1.16 | C11: 1.14 | D11: 1.19 | E11: 1.37 | F11: 1.17 | K11: DESTRUCCIÓN COSAS | L11: 1.895348837 | M11: 1.853403141 | N11: 1.710973725 | O11: 1.553509781 | P11: 1.753308871
A12: 8. Peleas durante el receso o recreo. | B12: 1.66 | C12: 1.84 | D12: 2 | E12: 2.03 | F12: 1.78 | K12: ROBOS | L12: 1.784090909 | M12: 1.769633508 | N12: 1.66588785 | O12: 1.505475504 | P12: 1.681271943
A13: 9. Peleas fuera de la escuela entre alumnos/as. | B13: 1.47 | C13: 1.52 | D13: 1.54 | E13: 1.73 | F13: 1.51 | K13: AMENAZAS | L13: 1.915254237 | M13: 1.905759162 | N13: 1.741258741 | O13: 1.538372764 | P13: 1.775161226
A14: 10. Niños que golpean a niñas. | B14: 1.57 | C14: 1.71 | D14: 1.91 | E14: 1.97 | F14: 1.68 | K14: OBJETO PELIGROSO | L14: 1.623529412 | M14: 1.471502591 | N14: 1.356535189 | O14: 1.300345224 | P14: 1.437978104
A15: 11. Alumnos/as que amenazaron a un maestro/a. | B15: 1.2 | C15: 1.22 | D15: 1.26 | E15: 1.46 | F15: 1.23 | K15: ARMAS | L15: 1.265895954 | M15: 1.19121447 | N15: 1.142857143 | O15: 1.146467547 | P15: 1.186608779
A16: 12. Alumnos/as que insultan a otros. | B16: 1.73 | C16: 1.97 | D16: 2.29 | E16: 2.16 | F16: 1.9 | K16: ABUSO SEXUAL | L16: 1.375 | M16: 1.193717277 | N16: 1.144634526 | O16: 1.164462335 | P16: 1.219453534
K17: PELEAS RECESO | L17: 2.028735632 | M17: 2.002617801 | N17: 1.841085271 | O17: 1.663967611 | P17: 1.884101579
K18: PELEAS | L18: 1.734463277 | M18: 1.53626943 | N18: 1.515953307 | O18: 1.474232774 | P18: 1.565229697
K19: NIÑOS GOLPEAN NIÑAS | L19: 1.965116279 | M19: 1.906976744 | N19: 1.713951676 | O19: 1.570768342 | P19: 1.78920326
K20: AMENAZAS A MAESTRO/AS | L20: 1.462427746 | M20: 1.260981912 | N20: 1.221528861 | O20: 1.197223829 | P20: 1.285540587
K21: ALUMNOS INSULTAN | L21: 2.16 | M21: 2.294117647 | N21: 1.969230769 | O21: 1.727742677 | P21: 2.037772773

Sheet ESCUELA Y VIOLENCIA
B2: CENTRO ESCOLAR | C2: ESTUDIANTE | D2: EXPECTATIVAS | E2: LOGRO ACADÉMICO | F2: TRISTEZA | G2: GRADO | H2: SEXO | I2: PERCEPCIÓN DE VIOLENCIA EN LA ESCUELA
B3: CLAVECCT | C3: ID_ESTUDIANTE | D3: Expectativas | E3: Logros | F3: Te sientes triste | G3: Grado | H3: Sexo | I3: Peleas_Salón | J3: Destrucción_cosas | K3: Robos_alumnos | L3: Alumnos_amenazan | M3: Objeto_peligroso | N3: Armas | O3: Abuso_sexual | P3: Peleas_receso | Q3: Peleas_fuera | R3: Niñosquegolpeananiñas | S3: Alumnosasqamenazanmae | T3: Alumnosasqueinsultan | U3: CENTRO ESCOLAR
B4: 08DPR0535Z | C4: 1 | D4: PROFESION | E4: 8.1 A 9 | F4: MUY SEGUIDO | G4: 3 | H4: 2 | I4: 1 | J4: 1 | K4: 1 | L4: 1 | M4: 1 | N4: 1 | O4: 1 | P4: 1 | Q4: 1 | R4: 1 | S4: 1 | T4: 1 | U4: 08DPR0535Z
B5: 08DPR0535Z | C5: 2 | D5: PROFESION | E5: MÁS DE 9 | F5: MUY SEGUIDO | G5: 3 | H5: 2 | I5: 2 | J5: 1 | K5: 2 | L5: 1 | M5: 2 | N5: 2 | O5: 2
B6: 08DPR0535Z | C6: 3 | D6: PROFESION | E6: 6 A 7 | F6: MUY SEGUIDO | G6: 3 | H6: 1 | I6: 2 | J6: 1 | K6: 1 | L6: 1 | M6: 4 | N6: 1 | O6: 1
B7: 08DPR0535Z | C7: 4 | D7: PROFESION | E7: 8.1 A 9 | F7: NUNCA | G7: 3 | H7: 2 | I7: 4 | J7: 4 | K7: 4 | L7: 4 | M7: 4 | N7: 1 | O7: 1 | P7: 4 | Q7: 4 | R7: 1 | S7: 4 | T7: 4
B8: 08DPR0535Z | C8: 6 | D8: PROFESION | E8: 8.1 A 9 | F8: SEGUIDO | G8: 3 | H8: 2 | I8: 3 | J8: 3 | K8: 4 | L8: 3 | M8: 1 | N8: 1 | O8: 1 | P8: 2 | Q8: 3 | R8: 2 | S8: 1 | T8: 3
B9: 08DPR0535Z | C9: 7 | D9: PROFESION | E9: MÁS DE 9 | F9: MUY SEGUIDO | G9: 3 | H9: 2 | I9: 1 | J9: 1 | K9: 2 | L9: 1 | M9: 1 | N9: 1 | O9: 1 | P9: 2 | Q9: 1 | R9: 1 | S9: 1 | T9: 1
B10: 08DPR0535Z | C10: 8 | D10: PROFESION | E10: MÁS DE 9 | F10: MUY SEGUIDO | G10: 3 | H10: 1 | I10: 4 | J10: 1 | L10: 2 | M10: 1 | N10: 1 | O10: 1 | P10: 4 | Q10: 2 | R10: 1 | S10: 1 | T10: 3
B11: 08DPR0535Z | C11: 9 | D11: PREPARAT | E11: MÁS DE 9 | F11: MUY SEGUIDO | G11: 3 | H11: 1 | I11: 1 | J11: 1 | K11: 4 | M11: 4
B12: 08DPR0535Z | C12: 10 | D12: PROFESION | E12: MÁS DE 9 | F12: MUY SEGUIDO | G12: 3 | H12: 1 | I12: 4 | J12: 4 | K12: 4 | L12: 4 | M12: 1 | N12: 1 | O12: 1 | P12: 1 | Q12: 1 | R12: 4 | T12: 4
B13: 08DPR0535Z | C13: 12 | D13: PROFESION | E13: MÁS DE 9 | F13: NUNCA | G13: 3 | H13: 1 | I13: 1 | J13: 4 | K13: 4 | L13: 4 | M13: 4 | N13: 1 | O13: 1 | P13: 4 | Q13: 1 | R13: 2 | S13: 1 | T13: 1
B14: 08DPR0535Z | C14: 13 | D14: PREPARAT | E14: 8.1 A 9 | F14: SEGUIDO | G14: 3 | H14: 1 | I14: 3 | J14: 4 | L14: 4 | M14: 4
B15: 08DPR0535Z | C15: 14 | D15: PROFESION | E15: REPR | F15: MUY SEGUIDO | G15: 3 | H15: 2 | I15: 1 | J15: 1 | K15: 1 | L15: 1 | M15: 1 | N15: 1 | O15: 1 | P15: 1 | Q15: 1 | R15: 1 | S15: 1 | T15: 1
B16: 08DPR0535Z | C16: 15 | D16: PROFESION | E16: 8.1 A 9 | F16: POCAS VECES | G16: 3 | H16: 1 | I16: 1 | J16: 3 | K16: 2 | L16: 3 | M16: 1 | N16: 1 | O16: 1 | P16: 4 | R16: 3 | S16: 2 | T16: 1
B17: 08DPR0535Z | C17: 16 | D17: PREPARAT | E17: 7.1 A 8 | F17: SEGUIDO | G17: 3 | H17: 1 | I17: 3 | O17: 2 | T17: 4
B18: 08DPR0535Z | C18: 17 | D18: SECUNDAR | E18: 8.1 A 9 | F18: MUY SEGUIDO | G18: 3 | H18: 1 | I18: 1 | K18: 1 | L18: 3 | M18: 2 | N18: 1 | O18: 1 | P18: 1 | Q18: 2 | R18: 1 | S18: 1 | T18: 1
B19: 08DPR0535Z | C19: 19 | D19: 1 | E19: 8.1 A 9 | F19: SEGUIDO | G19: 3 | H19: 1 | I19: 2 | J19: 2 | K19: 2 | L19: 2 | M19: 2 | N19: 2 | O19: 2 | P19: 2 | Q19: 2 | R19: 2 | S19: 2 | T19: 2
B20: 08DPR0535Z | C20: 20 | D20: PROFESION | E20: 7.1 A 8 | F20: MUY SEGUIDO | G20: 3 | H20: 2 | M20: 1
B21: 08DPR0535Z | C21: 21 | D21: PROFESION | E21: 8.1 A 9 | F21: SEGUIDO | G21: 3 | H21: 1 | I21: 2 | J21: 2 | K21: 2 | L21: 2 | M21: 2 | N21: 2 | O21: 2 | P21: 2 | Q21: 2 | R21: 2 | S21: 1 | T21: 2
B22: 08DPR0535Z | C22: 22 | D22: PROFESION | E22: 8.1 A 9 | F22: SEGUIDO | G22: 3 | H22: 2 | J22: 2 | K22: 2 | L22: 2 | M22: 1 | N22: 1 | O22: 1 | P22: 1 | Q22: 1 | R22: 1 | S22: 1 | T22: 1
B23: 08DPR0535Z | C23: 23 | D23: PROFESION | E23: 7.1 A 8 | F23: MUY SEGUIDO | G23: 3 | H23: 1 | I23: 4 | J23: 3 | K23: 2 | L23: 3 | M23: 3 | N23: 1 | O23: 1 | P23: 2 | Q23: 2 | R23: 2 | S23: 1 | T23: 2
B24: 08DPR0535Z | C24: 24 | D24: PROFESION | E24: 8.1 A 9 | F24: SEGUIDO | G24: 3 | H24: 2 | I24: 4 | J24: 4 | K24: 4 | L24: 4 | M24: 4 | N24: 1 | O24: 1 | P24: 4 | Q24: 4 | R24: 4 | S24: 1 | T24: 1
B25: 08DPR0535Z | C25: 25 | D25: PROFESION | E25: MÁS DE 9 | F25: SEGUIDO | G25: 3 | H25: 1 | I25: 2 | J25: 2 | K25: 4 | L25: 1 | M25: 2 | N25: 1 | O25: 1 | P25: 4 | Q25: 2 | R25: 1 | T25: 4
B26: 08DPR0535Z | C26: 26 | D26: PROFESION | E26: MÁS DE 9 | F26: POCAS VECES | G26: 3 | H26: 2 | I26: 4 | J26: 1 | K26: 4 | M26: 1 | N26: 1 | O26: 1 | P26: 3 | R26: 3 | S26: 1 | T26: 3
B27: 08DPR0535Z | C27: 27 | D27: PROFESION | E27: MÁS DE 9 | F27: POCAS VECES | G27: 3 | H27: 1 | I27: 4 | J27: 2 | K27: 2 | L27: 2 | M27: 1 | N27: 1 | O27: 2 | P27: 3 | Q27: 2 | R27: 1 | S27: 4 | T27: 1
B28: 08DPR0535Z | C28: 29 | D28: PREPARAT | E28: REPR | F28: MUY SEGUIDO | G28: 3 | H28: 2 | I28: 1 | J28: 2 | K28: 1 | L28: 2 | M28: 1 | N28: 2 | O28: 2 | P28: 1 | Q28: 1 | R28: 1 | S28: 1 | T28: 1
B29: 08DPR0535Z | C29: 30 | D29: PREPARAT | E29: 8.1 A 9 | F29: MUY SEGUIDO | G29: 3 | H29: 2 | I29: 1 | J29: 1 | K29: 1 | L29: 1 | M29: 1 | N29: 1 | O29: 1 | P29: 1 | Q29: 1 | R29: 1 | S29: 1 | T29: 1
B30: 08DPR0535Z | C30: 31 | D30: PROFESION | E30: 8.1 A 9 | F30: MUY SEGUIDO | G30: 3 | H30: 2 | I30: 4 | J30: 4 | K30: 4 | L30: 1 | M30: 2 | N30: 1 | O30: 4 | P30: 2 | Q30: 2 | R30: 1 | S30: 1 | T30: 4
B31: 08DPR0535Z | C31: 32 | D31: PROFESION | E31: MÁS DE 9 | F31: MUY SEGUIDO | G31: 3 | H31: 2 | I31: 1 | J31: 1 | K31: 1 | L31: 1 | M31: 1 | N31: 1 | O31: 1 | P31: 1 | Q31: 1 | R31: 2 | S31: 1 | T31: 1
B32: 08DPR0535Z | C32: 33 | D32: PROFESION | E32: 7.1 A 8 | F32: MUY SEGUIDO | G32: 3 | H32: 1 | I32: 1 | J32: 1 | K32: 1 | L32: 1 | M32: 1 | N32: 1 | O32: 1 | P32: 1 | Q32: 1 | R32: 1 | S32: 1 | T32: 1
B33: 08DPR0535Z | C33: 34 | D33: PROFESION | E33: 7.1 A 8 | F33: MUY SEGUIDO | G33: 3 | H33: 2 | I33: 1 | J33: 1 | K33: 2 | L33: 2 | M33: 2 | N33: 2 | O33: 1 | P33: 2 | Q33: 2 | R33: 2 | S33: 1 | T33: 2
B34: 08DPR0535Z | C34: 35 | D34: PROFESION | E34: 8.1 A 9 | F34: MUY SEGUIDO | G34: 3 | H34: 2 | I34: 2 | J34: 1 | K34: 1 | L34: 1 | M34: 1 | N34: 1 | O34: 1 | P34: 1 | Q34: 1 | R34: 1 | S34: 1 | T34: 1
B35: 08DPR0535Z | C35: 36 | D35: PROFESION | E35: 8.1 A 9 | F35: SEGUIDO | G35: 3 | H35: 2 | I35: 4 | J35: 3 | K35: 1 | L35: 2 | M35: 1 | N35: 1 | O35: 1 | P35: 4 | Q35: 3 | R35: 3 | S35: 1 | T35: 2
B36: 08DPR0535Z | C36: 37 | D36: PROFESION | E36: 8.1 A 9 | F36: MUY SEGUIDO | G36: 3 | H36: 2 | I36: 4 | J36: 4 | K36: 4 | L36: 1 | M36: 2 | N36: 1 | O36: 1 | P36: 1 | Q36: 1 | R36: 1 | S36: 4 | T36: 4
B37: 08DPR0535Z | C37: 39 | D37: PROFESION | E37: MÁS DE 9 | F37: MUY SEGUIDO | G37: 3 | H37: 1 | I37: 1 | J37: 1 | K37: 1 | L37: 1 | M37: 1 | N37: 2 | O37: 1 | P37: 1 | Q37: 1 | R37: 1 | S37: 1 | T37: 3
B38: 08DPR0535Z | C38: 40 | D38: 1 | E38: 8.1 A 9 | F38: NUNCA | G38: 3 | H38: 1 | I38: 1 | J38: 1 | K38: 1 | L38: 1 | M38: 1 | N38: 1 | O38: 1 | P38: 1 | Q38: 1 | R38: 1 | S38: 1 | T38: 1
B39: 08DPR0535Z | C39: 41 | D39: PROFESION | E39: 7.1 A 8 | F39: NUNCA | G39: 3 | H39: 1 | I39: 4 | J39: 3 | K39: 2 | L39: 4 | M39: 4 | N39: 1 | O39: 1 | P39: 1 | Q39: 1 | R39: 1 | S39: 1 | T39: 1
B40: 08DPR0535Z | C40: 42 | D40: PROFESION | E40: 8.1 A 9 | F40: NUNCA | G40: 5 | H40: 2 | I40: 3 | J40: 4 | K40: 3 | L40: 4 | M40: 2 | N40: 1 | O40: 1 | P40: 4 | Q40: 1 | R40: 2 | S40: 3 | T40: 2
B41: 08DPR0535Z | C41: 43 | D41: PROFESION | E41: MÁS DE 9 | F41: POCAS VECES | G41: 5 | H41: 1 | I41: 4 | J41: 3 | K41: 1 | L41: 3 | M41: 1 | N41: 1 | O41: 1 | P41: 4 | Q41: 2 | R41: 1 | S41: 1 | T41: 1
B42: 08DPR0535Z | C42: 44 | D42: PREPARAT | E42: 7.1 A 8 | F42: MUY SEGUIDO | G42: 5 | H42: 1 | I42: 2 | J42: 2 | K42: 2 | L42: 2 | M42: 2 | N42: 1 | O42: 1 | P42: 4 | Q42: 2 | R42: 2 | S42: 2 | T42: 4
B43: 08DPR0535Z | C43: 45 | D43: PROFESION | E43: 6 A 7 | F43: MUY SEGUIDO | G43: 5 | H43: 1 | I43: 1 | J43: 1 | K43: 1 | L43: 1 | M43: 1 | N43: 2 | O43: 1 | P43: 4 | Q43: 4 | R43: 4 | S43: 1 | T43: 4
B44: 08DPR0535Z | C44: 47 | D44: PROFESION | E44: 7.1 A 8 | F44: SEGUIDO | G44: 5 | H44: 2 | I44: 1 | J44: 4 | K44: 1 | L44: 1 | M44: 1 | N44: 1 | O44: 4 | P44: 3 | Q44: 4 | R44: 1 | S44: 1 | T44: 1
B45: 08DPR0535Z | C45: 48 | D45: PREPARAT | E45: 6 A 7 | F45: MUY SEGUIDO | G45: 5 | H45: 1 | I45: 2 | J45: 4 | K45: 3 | L45: 2 | M45: 4 | N45: 2 | O45: 2 | P45: 2 | Q45: 2 | R45: 3 | S45: 1 | T45: 2
B46: 08DPR0535Z | C46: 50 | D46: PROFESION | E46: 8.1 A 9 | F46: SEGUIDO | G46: 3 | H46: 2 | I46: 1 | J46: 1 | K46: 1 | L46: 2 | M46: 3 | N46: 2 | O46: 1 | P46: 2 | Q46: 2 | R46: 2
B47: 08DPR0535Z | C47: 51 | D47: PROFESION | E47: 6 A 7 | F47: MUY SEGUIDO | G47: 3 | H47: 2 | I47: 4 | J47: 3 | K47: 3 | L47: 1 | M47: 1 | N47: 1 | O47: 1 | P47: 4 | Q47: 1 | R47: 4 | S47: 2 | T47: 2
B48: 08DPR0535Z | C48: 53 | D48: PREPARAT | E48: 8.1 A 9 | F48: MUY SEGUIDO | G48: 3 | H48: 1 | I48: 2 | J48: 2 | K48: 1 | L48: 1 | M48: 1 | N48: 1 | O48: 1 | P48: 1 | Q48: 2 | R48: 2 | S48: 1 | T48: 1
B49: 08DPR0535Z | C49: 54 | D49: PROFESION | E49: 8.1 A 9 | F49: MUY SEGUIDO | G49: 3 | H49: 2 | I49: 1 | J49: 1 | K49: 1 | L49: 1 | M49: 1 | N49: 1 | O49: 1 | P49: 1 | Q49: 1 | R49: 4 | S49: 1 | T49: 1
B50: 08DPR0535Z | C50: 55 | D50: PROFESION | E50: 8.1 A 9 | F50: MUY SEGUIDO | G50: 3 | H50: 2 | I50: 4 | J50: 2 | K50: 4 | L50: 3 | M50: 1 | N50: 1 | O50: 1 | P50: 4 | Q50: 1 | R50: 1 | S50: 1 | T50: 2
B51: 08DPR0535Z | C51: 56 | D51: PROFESION | E51: 7.1 A 8 | F51: MUY SEGUIDO | G51: 3 | H51: 2 | I51: 4 | J51: 2 | K51: 2 | L51: 1 | M51: 2 | O51: 1 | P51: 1 | Q51: 1 | R51: 2 | S51: 1 | T51: 1
B52: 08DPR0535Z | C52: 57 | D52: SECUNDAR | E52: 7.1 A 8 | F52: POCAS VECES | G52: 5 | H52: 1 | I52: 4 | J52: 2 | K52: 1 | L52: 2 | M52: 1 | N52: 1 | O52: 1 | P52: 2 | Q52: 2 | R52: 2 | S52: 2 | T52: 2
B53: 08DPR0535Z | C53: 58 | D53: PROFESION | E53: 7.1 A 8 | F53: POCAS VECES | G53: 5 | H53: 1 | I53: 4 | J53: 4 | K53: 4 | L53: 4 | M53: 1 | N53: 1 | O53: 1 | P53: 4 | Q53: 4 | R53: 2 | S53: 2 | T53: 4
B54: 08DPR0535Z | C54: 59 | D54: PREPARAT | E54: 7.1 A 8 | F54: SEGUIDO | G54: 3 | H54: 1 | I54: 3 | J54: 1 | K54: 1 | M54: 2 | N54: 1 | O54: 1 | P54: 2 | Q54: 3 | R54: 1 | S54: 1 | T54: 1
B55: 08DPR0535Z | C55: 60 | D55: PROFESION | E55: 8.1 A 9 | F55: MUY SEGUIDO | G55: 5 | H55: 2 | I55: 1 | J55: 3 | L55: 1 | M55: 4 | N55: 3 | O55: 1 | Q55: 4 | R55: 2 | S55: 3 | T55: 1
B56: 08DPR0535Z | C56: 61 | D56: SECUNDAR | E56: 7.1 A 8 | F56: MUY SEGUIDO | G56: 5 | H56: 1 | I56: 4 | J56: 2 | K56: 2 | L56: 2 | M56: 2 | N56: 2 | O56: 1 | P56: 4 | Q56: 4 | R56: 2 | S56: 2 | T56: 4
B57: 08DPR0535Z | C57: 62 | D57: PROFESION | E57: 7.1 A 8 | F57: MUY SEGUIDO | G57: 5 | H57: 1 | I57: 1 | J57: 2 | K57: 1 | L57: 2 | M57: 1 | N57: 1 | O57: 1 | P57: 4 | Q57: 1 | R57: 1 | S57: 1 | T57: 2
B58: 08DPR0535Z | C58: 63 | D58: PROFESION | E58: 8.1 A 9 | F58: SEGUIDO | G58: 5 | H58: 2 | I58: 4 | J58: 3 | K58: 2 | L58: 2 | M58: 2 | N58: 1 | O58: 1 | P58: 4 | Q58: 4 | R58: 2 | S58: 4 | T58: 4
B59: 08DPR0535Z | C59: 64 | D59: PROFESION | E59: 8.1 A 9 | F59: SEGUIDO | G59: 5 | H59: 1 | I59: 2 | J59: 2 | K59: 1 | L59: 4 | M59: 2 | N59: 2 | O59: 1 | P59: 4 | Q59: 1 | R59: 2 | S59: 2 | T59: 2
B60: 08DPR0535Z | C60: 65 | D60: PROFESION | E60: 8.1 A 9 | F60: MUY SEGUIDO | G60: 5 | H60: 1 | I60: 2 | J60: 2 | K60: 1 | L60: 2 | M60: 2 | N60: 1 | O60: 1 | P60: 4 | Q60: 2 | R60: 2 | S60: 2 | T60: 2
B61: 08DPR0535Z | C61: 66 | D61: PROFESION | E61: MÁS DE 9 | F61: MUY SEGUIDO | G61: 5 | H61: 2 | I61: 2 | J61: 2 | K61: 2 | L61: 2 | M61: 2 | N61: 1 | O61: 1 | P61: 4 | Q61: 3 | R61: 1 | S61: 2 | T61: 4
B62: 08DPR0535Z | C62: 67 | D62: PROFESION | E62: 8.1 A 9 | F62: SEGUIDO | G62: 5 | H62: 2 | I62: 2 | J62: 2 | K62: 2 | L62: 1 | M62: 1 | N62: 1 | O62: 1 | P62: 2 | Q62: 2 | R62: 1 | S62: 2 | T62: 2
B63: 08DPR0535Z | C63: 68 | D63: PROFESION | E63: 8.1 A 9 | F63: MUY SEGUIDO | G63: 5 | H63: 2 | I63: 2 | J63: 1 | K63: 1 | L63: 2 | M63: 1 | N63: 1 | O63: 1 | P63: 2 | Q63: 2 | R63: 2 | S63: 1 | T63: 2
B64: 08DPR0535Z | C64: 69 | D64: SECUNDAR | E64: 6 A 7 | F64: SEGUIDO | G64: 5 | H64: 1 | I64: 3 | J64: 2 | K64: 2 | L64: 2 | M64: 2 | N64: 2 | O64: 1 | P64: 1 | Q64: 4 | R64: 2 | S64: 2 | T64: 3

Sheet EVENTOS DE VIOLENCIA ESCUELAS
B1: EVENTOS DE VIOLENCIA ESCOLAR EN CADA ESCUELA
B3: CLAVECCT | C3: ID_ESTUDIANTE | D3: Grado | E3: Sexo | F3: Edad | G3: Mamá | H3: Papá | I3: Peleas_Salón | J3: Destrucción_cosas | K3: Robos_alumnos | L3: Alumnos_amenazan | M3: Objeto_peligroso | N3: Armas | O3: Abuso_sexual | P3: Peleas_receso | Q3: Peleas_fuera | R3: Niñosquegolpeananiñas | S3: Alumnos amenazan maestros | T3: ALUMNOS INSULTANs
B4: 08DPR0535Z | C4: 1 | D4: 3 | E4: 2 | F4: 8 | G4: 1 | H4: 1 | I4: 1 | J4: 1 | K4: 1 | L4: 1 | M4: 1 | N4: 1 | O4: 1 | P4: 1 | Q4: 1 | R4: 1 | S4: 1 | T4: 1
B5: 08DPR0535Z | C5: 2 | D5: 3 | E5: 2 | F5: 8 | G5: 1 | H5: 1 | I5: 2 | J5: 1 | K5: 2 | L5: 1 | M5: 2 | N5: 2 | O5: 2
B6: 08DPR0535Z | C6: 3 | D6: 3 | E6: 1 | F6: 8 | G6: 1 | H6: 1 | I6: 2 | J6: 1 | K6: 1 | L6: 1 | M6: 4 | N6: 1 | O6: 1
B7: 08DPR0535Z | C7: 4 | D7: 3 | E7: 2 | F7: 8 | G7: 1 | H7: 1 | I7: 4 | J7: 4 | K7: 4 | L7: 4 | M7: 4 | N7: 1 | O7: 1 | P7: 4 | Q7: 4 | R7: 1 | S7: 4 | T7: 4
B8: 08DPR0535Z | C8: 5 | D8: 3 | E8: 1 | F8: 8 | G8: 1 | H8: 1 | I8: 1 | L8: 4 | M8: 1 | Q8: 1 | R8: 2
B9: 08DPR0535Z | C9: 6 | D9: 3 | E9: 2 | F9: 8 | G9: 1 | H9: 1 | I9: 3 | J9: 3 | K9: 4 | L9: 3 | M9: 1 | N9: 1 | O9: 1 | P9: 2 | Q9: 3 | R9: 2 | S9: 1 | T9: 3
B10: 08DPR0535Z | C10: 7 | D10: 3 | E10: 2 | F10: 8 | G10: 1 | H10: 2 | I10: 1 | J10: 1 | K10: 2 | L10: 1 | M10: 1 | N10: 1 | O10: 1 | P10: 2 | Q10: 1 | R10: 1 | S10: 1 | T10: 1
B11: 08DPR0535Z | C11: 8 | D11: 3 | E11: 1 | F11: 8 | G11: 1 | H11: 1 | I11: 4 | J11: 1 | L11: 2 | M11: 1 | N11: 1 | O11: 1 | P11: 4 | Q11: 2 | R11: 1 | S11: 1 | T11: 3
B12: 08DPR0535Z | C12: 9 | D12: 3 | E12: 1 | F12: 8 | G12: (en blanco) | H12: (en blanco) | I12: 1 | J12: 1 | K12: 4 | M12: 4
B13: 08DPR0535Z | C13: 10 | D13: 3 | E13: 1 | F13: 8 | G13: 1 | H13: 1 | I13: 4 | J13: 4 | K13: 4 | L13: 4 | M13: 1 | N13: 1 | O13: 1 | P13: 1 | Q13: 1 | R13: 4 | T13: 4
B14: 08DPR0535Z | C14: 11 | D14: 3 | E14: 2 | F14: 8 | G14: 1 | H14: 1 | I14: 1 | J14: 1 | K14: 1 | L14: 1 | M14: 1 | N14: 1 | O14: 1 | P14: 1 | Q14: 1 | R14: 1 | S14: 1 | T14: 1
B15: 08DPR0535Z | C15: 12 | D15: 3 | E15: 1 | F15: 8 | G15: 1 | H15: 2 | I15: 1 | J15: 4 | K15: 4 | L15: 4 | M15: 4 | N15: 1 | O15: 1 | P15: 4 | Q15: 1 | R15: 2 | S15: 1 | T15: 1
B16: 08DPR0535Z | C16: 13 | D16: 3 | E16: 1 | F16: 8 | G16: 1 | H16: 1 | I16: 3 | J16: 4 | L16: 4 | M16: 4
B17: 08DPR0535Z | C17: 14 | D17: 3 | E17: 2 | F17: 9 | G17: 1 | H17: (en blanco) | I17: 1 | J17: 1 | K17: 1 | L17: 1 | M17: 1 | N17: 1 | O17: 1 | P17: 1 | Q17: 1 | R17: 1 | S17: 1 | T17: 1
B18: 08DPR0535Z | C18: 15 | D18: 3 | E18: 1 | F18: 8 | G18: (en blanco) | H18: 1 | I18: 1 | J18: 3 | K18: 2 | L18: 3 | M18: 1 | N18: 1 | O18: 1 | P18: 4 | R18: 3 | S18: 2 | T18: 1
B19: 08DPR0535Z | C19: 16 | D19: 3 | E19: 1 | F19: 8 | G19: 1 | H19: 1 | I19: 3 | O19: 2 | T19: 4
B20: 08DPR0535Z | C20: 17 | D20: 3 | E20: 1 | F20: 8 | G20: 1 | H20: 1 | I20: 1 | K20: 1 | L20: 3 | M20: 2 | N20: 1 | O20: 1 | P20: 1 | Q20: 2 | R20: 1 | S20: 1 | T20: 1
B21: 08DPR0535Z | C21: 19 | D21: 3 | E21: 1 | F21: 8 | G21: 1 | H21: 1 | I21: 2 | J21: 2 | K21: 2 | L21: 2 | M21: 2 | N21: 2 | O21: 2 | P21: 2 | Q21: 2 | R21: 2 | S21: 2 | T21: 2
B22: 08DPR0535Z | C22: 20 | D22: 3 | E22: 2 | F22: 8 | G22: 1 | H22: 1 | M22: 1
B23: 08DPR0535Z | C23: 21 | D23: 3 | E23: 1 | F23: 9 | G23: 1 | H23: 1 | I23: 2 | J23: 2 | K23: 2 | L23: 2 | M23: 2 | N23: 2 | O23: 2 | P23: 2 | Q23: 2 | R23: 2 | S23: 1 | T23: 2
B24: 08DPR0535Z | C24: 22 | D24: 3 | E24: 2 | F24: 8 | G24: 1 | H24: 1 | J24: 2 | K24: 2 | L24: 2 | M24: 1 | N24: 1 | O24: 1 | P24: 1 | Q24: 1 | R24: 1 | S24: 1 | T24: 1
B25: 08DPR0535Z | C25: 23 | D25: 3 | E25: 1 | F25: 9 | G25: 1 | H25: 1 | I25: 4 | J25: 3 | K25: 2 | L25: 3 | M25: 3 | N25: 1 | O25: 1 | P25: 2 | Q25: 2 | R25: 2 | S25: 1 | T25: 2
B26: 08DPR0535Z | C26: 24 | D26: 3 | E26: 2 | F26: 8 | G26: 1 | H26: 1 | I26: 4 | J26: 4 | K26: 4 | L26: 4 | M26: 4 | N26: 1 | O26: 1 | P26: 4 | Q26: 4 | R26: 4 | S26: 1 | T26: 1
B27: 08DPR0535Z | C27: 25 | D27: 3 | E27: 1 | F27: 8 | G27: 1 | H27: 1 | I27: 2 | J27: 2 | K27: 4 | L27: 1 | M27: 2 | N27: 1 | O27: 1 | P27: 4 | Q27: 2 | R27: 1 | T27: 4
B28: 08DPR0535Z | C28: 26 | D28: 3 | E28: 2 | F28: 8 | G28: 1 | H28: 1 | I28: 4 | J28: 1 | K28: 4 | M28: 1 | N28: 1 | O28: 1 | P28: 3 | R28: 3 | S28: 1 | T28: 3
B29: 08DPR0535Z | C29: 27 | D29: 3 | E29: 1 | F29: 8 | G29: 1 | H29: 2 | I29: 4 | J29: 2 | K29: 2 | L29: 2 | M29: 1 | N29: 1 | O29: 2 | P29: 3 | Q29: 2 | R29: 1 | S29: 4 | T29: 1
B30: 08DPR0535Z | C30: 28 | D30: 3 | E30: 2 | F30: 8 | G30: 1 | H30: 2 | I30: 4 | J30: 4 | K30: 4 | L30: 4 | M30: 4 | N30: 1 | O30: 1 | P30: 4 | Q30: 4 | R30: 4 | S30: 4 | T30: 1
B31: 08DPR0535Z | C31: 29 | D31: 3 | E31: 2 | F31: 8 | G31: 1 | H31: 1 | I31: 1 | J31: 2 | K31: 1 | L31: 2 | M31: 1 | N31: 2 | O31: 2 | P31: 1 | Q31: 1 | R31: 1 | S31: 1 | T31: 1
B32: 08DPR0535Z | C32: 30 | D32: 3 | E32: 2 | F32: 8 | G32: (en blanco) | H32: (en blanco) | I32: 1 | J32: 1 | K32: 1 | L32: 1 | M32: 1 | N32: 1 | O32: 1 | P32: 1 | Q32: 1 | R32: 1 | S32: 1 | T32: 1
B33: 08DPR0535Z | C33: 31 | D33: 3 | E33: 2 | F33: 8 | G33: 1 | H33: (en blanco) | I33: 4 | J33: 4 | K33: 4 | L33: 1 | M33: 2 | N33: 1 | O33: 4 | P33: 2 | Q33: 2 | R33: 1 | S33: 1 | T33: 4
B34: 08DPR0535Z | C34: 32 | D34: 3 | E34: 2 | F34: 7 | G34: 1 | H34: 1 | I34: 1 | J34: 1 | K34: 1 | L34: 1 | M34: 1 | N34: 1 | O34: 1 | P34: 1 | Q34: 1 | R34: 2 | S34: 1 | T34: 1
B35: 08DPR0535Z | C35: 33 | D35: 3 | E35: 1 | F35: 8 | G35: 1 | H35: 1 | I35: 1 | J35: 1 | K35: 1 | L35: 1 | M35: 1 | N35: 1 | O35: 1 | P35: 1 | Q35: 1 | R35: 1 | S35: 1 | T35: 1
B36: 08DPR0535Z | C36: 34 | D36: 3 | E36: 2 | F36: 8 | G36: 1 | H36: 1 | I36: 1 | J36: 1 | K36: 2 | L36: 2 | M36: 2 | N36: 2 | O36: 1 | P36: 2 | Q36: 2 | R36: 2 | S36: 1 | T36: 2
B37: 08DPR0535Z | C37: 35 | D37: 3 | E37: 2 | F37: 8 | G37: 1 | H37: 1 | I37: 2 | J37: 1 | K37: 1 | L37: 1 | M37: 1 | N37: 1 | O37: 1 | P37: 1 | Q37: 1 | R37: 1 | S37: 1 | T37: 1
B38: 08DPR0535Z | C38: 36 | D38: 3 | E38: 2 | F38: 9 | G38: 1 | H38: 1 | I38: 4 | J38: 3 | K38: 1 | L38: 2 | M38: 1 | N38: 1 | O38: 1 | P38: 4 | Q38: 3 | R38: 3 | S38: 1 | T38: 2
B39: 08DPR0535Z | C39: 37 | D39: 3 | E39: 2 | F39: 7 | G39: 1 | H39: (en blanco) | I39: 4 | J39: 4 | K39: 4 | L39: 1 | M39: 2 | N39: 1 | O39: 1 | P39: 1 | Q39: 1 | R39: 1 | S39: 4 | T39: 4
B40: 08DPR0535Z | C40: 38 | D40: 3 | E40: 1 | F40: 9 | G40: (en blanco) | H40: 1 | I40: 2 | J40: 2 | K40: 2 | L40: 2 | M40: 2 | N40: 2 | O40: 2 | P40: 2 | Q40: 2 | R40: 2 | S40: 2 | T40: 2
B41: 08DPR0535Z | C41: 39 | D41: 3 | E41: 1 | F41: 8 | G41: 1 | H41: (en blanco) | I41: 1 | J41: 1 | K41: 1 | L41: 1 | M41: 1 | N41: 2 | O41: 1 | P41: 1 | Q41: 1 | R41: 1 | S41: 1 | T41: 3
B42: 08DPR0535Z | C42: 40 | D42: 3 | E42: 1 | F42: 8 | G42: 1 | H42: 1 | I42: 1 | J42: 1 | K42: 1 | L42: 1 | M42: 1 | N42: 1 | O42: 1 | P42: 1 | Q42: 1 | R42: 1 | S42: 1 | T42: 1
B43: 08DPR0535Z | C43: 41 | D43: 3 | E43: 1 | F43: 7 | G43: 1 | H43: 1 | I43: 4 | J43: 3 | K43: 2 | L43: 4 | M43: 4 | N43: 1 | O43: 1 | P43: 1 | Q43: 1 | R43: 1 | S43: 1 | T43: 1
B44: 08DPR0535Z | C44: 42 | D44: 5 | E44: 2 | F44: 10 | G44: 1 | H44: 1 | I44: 3 | J44: 4 | K44: 3 | L44: 4 | M44: 2 | N44: 1 | O44: 1 | P44: 4 | Q44: 1 | R44: 2 | S44: 3 | T44: 2
B45: 08DPR0535Z | C45: 43 | D45: 5 | E45: 1 | F45: 10 | G45: 1 | H45: 1 | I45: 4 | J45: 3 | K45: 1 | L45: 3 | M45: 1 | N45: 1 | O45: 1 | P45: 4 | Q45: 2 | R45: 1 | S45: 1 | T45: 1
B46: 08DPR0535Z | C46: 44 | D46: 5 | E46: 1 | F46: 10 | G46: 1 | H46: 1 | I46: 2 | J46: 2 | K46: 2 | L46: 2 | M46: 2 | N46: 1 | O46: 1 | P46: 4 | Q46: 2 | R46: 2 | S46: 2 | T46: 4
B47: 08DPR0535Z | C47: 45 | D47: 5 | E47: 1 | F47: 11 | G47: 1 | H47: 1 | I47: 1 | J47: 1 | K47: 1 | L47: 1 | M47: 1 | N47: 2 | O47: 1 | P47: 4 | Q47: 4 | R47: 4 | S47: 1 | T47: 4
B48: 08DPR0535Z | C48: 46 | D48: 5 | E48: 1 | F48: 10 | G48: 1 | H48: 1 | J48: 1 | L48: 1 | M48: 1 | P48: 1 | Q48: 1 | R48: 1 | T48: 1
B49: 08DPR0535Z | C49: 47 | D49: 5 | E49: 2 | F49: 10 | G49: 1 | H49: 1 | I49: 1 | J49: 4 | K49: 1 | L49: 1 | M49: 1 | N49: 1 | O49: 4 | P49: 3 | Q49: 4 | R49: 1 | S49: 1 | T49: 1
B50: 08DPR0535Z | C50: 48 | D50: 5 | E50: 1 | F50: 12 | G50: 1 | H50: 1 | I50: 2 | J50: 4 | K50: 3 | L50: 2 | M50: 4 | N50: 2 | O50: 2 | P50: 2 | Q50: 2 | R50: 3 | S50: 1 | T50: 2
B51: 08DPR0535Z | C51: 50 | D51: 3 | E51: 2 | F51: 8 | G51: 1 | H51: 1 | I51: 1 | J51: 1 | K51: 1 | L51: 2 | M51: 3 | N51: 2 | O51: 1 | P51: 2 | Q51: 2 | R51: 2
B52: 08DPR0535Z | C52: 51 | D52: 3 | E52: 2 | F52: 8 | G52: 1 | H52: 2 | I52: 4 | J52: 3 | K52: 3 | L52: 1 | M52: 1 | N52: 1 | O52: 1 | P52: 4 | Q52: 1 | R52: 4 | S52: 2 | T52: 2
B53: 08DPR0535Z | C53: 52 | D53: 3 | E53: 2 | F53: 8 | G53: 1 | H53: 1 | I53: 2 | P53: 2 | R53: 2
B54: 08DPR0535Z | C54: 53 | D54: 3 | E54: 1 | F54: 8 | G54: 1 | H54: 1 | I54: 2 | J54: 2 | K54: 1 | L54: 1 | M54: 1 | N54: 1 | O54: 1 | P54: 1 | Q54: 2 | R54: 2 | S54: 1 | T54: 1
B55: 08DPR0535Z | C55: 54 | D55: 3 | E55: 2 | F55: 8 | G55: 1 | H55: 1 | I55: 1 | J55: 1 | K55: 1 | L55: 1 | M55: 1 | N55: 1 | O55: 1 | P55: 1 | Q55: 1 | R55: 4 | S55: 1 | T55: 1
B56: 08DPR0535Z | C56: 55 | D56: 3 | E56: 2 | F56: 8 | G56: 1 | H56: 1 | I56: 4 | J56: 2 | K56: 4 | L56: 3 | M56: 1 | N56: 1 | O56: 1 | P56: 4 | Q56: 1 | R56: 1 | S56: 1 | T56: 2
B57: 08DPR0535Z | C57: 56 | D57: 3 | E57: 2 | F57: 8 | G57: 1 | H57: 1 | I57: 4 | J57: 2 | K57: 2 | L57: 1 | M57: 2 | O57: 1 | P57: 1 | Q57: 1 | R57: 2 | S57: 1 | T57: 1
B58: 08DPR0535Z | C58: 57 | D58: 5 | E58: 1 | F58: 10 | G58: 1 | H58: 1 | I58: 4 | J58: 2 | K58: 1 | L58: 2 | M58: 1 | N58: 1 | O58: 1 | P58: 2 | Q58: 2 | R58: 2 | S58: 2 | T58: 2
B59: 08DPR0535Z | C59: 58 | D59: 5 | E59: 1 | F59: 10 | G59: 1 | H59: 1 | I59: 4 | J59: 4 | K59: 4 | L59: 4 | M59: 1 | N59: 1 | O59: 1 | P59: 4 | Q59: 4 | R59: 2 | S59: 2 | T59: 4
B60: 08DPR0535Z | C60: 59 | D60: 3 | E60: 1 | F60: 8 | G60: 1 | H60: 1 | I60: 3 | J60: 1 | K60: 1 | M60: 2 | N60: 1 | O60: 1 | P60: 2 | Q60: 3 | R60: 1 | S60: 1 | T60: 1
B61: 08DPR0535Z | C61: 60 | D61: 5 | E61: 2 | F61: 10 | G61: 1 | H61: 1 | I61: 1 | J61: 3 | L61: 1 | M61: 4 | N61: 3 | O61: 1 | Q61: 4 | R61: 2 | S61: 3 | T61: 1
B62: 08DPR0535Z | C62: 61 | D62: 5 | E62: 1 | F62: 10 | G62: 1 | H62: 1 | I62: 4 | J62: 2 | K62: 2 | L62: 2 | M62: 2 | N62: 2 | O62: 1 | P62: 4 | Q62: 4 | R62: 2 | S62: 2 | T62: 4
B63: 08DPR0535Z | C63: 62 | D63: 5 | E63: 1 | F63: 10 | G63: 1 | H63: 1 | I63: 1 | J63: 2 | K63: 1 | L63: 2 | M63: 1 | N63: 1 | O63: 1 | P63: 4 | Q63: 1 | R63: 1 | S63: 1 | T63: 2
B64: 08DPR0535Z | C64: 63 | D64: 5 | E64: 2 | F64: 10 | G64: 1 | H64: 1 | I64: 4 | J64: 3 | K64: 2 | L64: 2 | M64: 2 | N64: 1 | O64: 1 | P64: 4 | Q64: 4 | R64: 2 | S64: 4 | T64: 4
B65: 08DPR0535Z | C65: 64 | D65: 5 | E65: 1 | F65: 10 | G65: 1 | H65: 1 | I65: 2 | J65: 2 | K65: 1 | L65: 4 | M65: 2 | N65: 2 | O65: 1 | P65: 4 | Q65: 1 | R65: 2 | S65: 2 | T65: 2
B66: 08DPR0535Z | C66: 65 | D66: 5 | E66: 1 | F66: 10 | G66: 1 | H66: 1 | I66: 2 | J66: 2 | K66: 1 | L66: 2 | M66: 2 | N66: 1 | O66: 1 | P66: 4 | Q66: 2 | R66: 2 | S66: 2 | T66: 2
B67: 08DPR0535Z | C67: 66 | D67: 5 | E67: 2 | F67: 10 | G67: 1 | H67: 1 | I67: 2 | J67: 2 | K67: 2 | L67: 2 | M67: 2 | N67: 1 | O67: 1 | P67: 4 | Q67: 3 | R67: 1 | S67: 2 | T67: 4
B68: 08DPR0535Z | C68: 67 | D68: 5 | E68: 2 | F68: 10 | G68: 1 | H68: 1 | I68: 2 | J68: 2 | K68: 2 | L68: 1 | M68: 1 | N68: 1 | O68: 1 | P68: 2 | Q68: 2 | R68: 1 | S68: 2 | T68: 2
B69: 08DPR0535Z | C69: 68 | D69: 5 | E69: 2 | F69: 10 | G69: 1 | H69: (en blanco) | I69: 2 | J69: 1 | K69: 1 | L69: 2 | M69: 1 | N69: 1 | O69: 1 | P69: 2 | Q69: 2 | R69: 2 | S69: 1 | T69: 2
B70: 08DPR0535Z | C70: 69 | D70: 5 | E70: 1 | F70: 10 | G70: 1 | H70: 1 | I70: 3 | J70: 2 | K70: 2 | L70: 2 | M70: 2 | N70: 2 | O70: 1 | P70: 1 | Q70: 4 | R70: 2 | S70: 2 | T70: 3

Sheet ACOSO ESCOLAR
A1: PERCEPCIÓN SOBRE EL ACOSO ESCOLAR
B3: FRECUENCIA | C3: 1. Te ha dado miedo de ir a la escuela. | D3: 2. Has faltado a la escuela por causa de que te hagan algún daño. | E3: 3. Te han golpeado. | F3: 4. Te han insultado o dicho groserias. | G3: 5. Te han llamado con un apodo que no te gusta. | H3: 6. Se han burlado de ti y te da vergüenza. | I3: 7. Te han dejado solo/a, no te invitan a una actividad de amigos/as.
B4: 0 veces nunca | C4: 85.6 | D4: 88.2 | E4: 69.9 | F4: 63 | G4: 57.2 | H4: 65.9 | I4: 68.8
B5: De 1 a 3 veces | C5: 11.5 | D5: 8.9 | E5: 23 | F5: 27.5 | G5: 30.9 | H5: 25.8 | I5: 22.1
B6: De 4 a 7 veces | C6: 1.4 | D6: 1.5 | E6: 3.6 | F6: 4.4 | G6: 4.7 | H6: 4.1 | I6: 4.3
B7: De 8 a 15 veces | C7: 0.5 | D7: 0.6 | E7: 1.3 | F7: 2.3 | G7: 2.7 | H7: 1.9 | I7: 2.2
B8: Más de 15 veces | C8: 0.9 | D8: 0.7 | E8: 2.1 | F8: 2.8 | G8: 4.6 | H8: 2.3 | I8: 2.6

Sheet ACOSO PORALUMNO
H1: ACOSO ESCOLAR
H3: CLAVECCT | I3: ID_ESTUDIANTE | J3: MIEDO DE IR A LA ESCUELA | K3: FALTAR POR RECIBIR DAÑO | L3: TE HAN GOLPEADO | M3: TE HAN INSULTADO | N3: TE LLAMAN CON APODO | O3: SE BURLARON DE TI | P3: TE DEJAN SOLO
H4: 08DPR0535Z | I4: 1 | J4: 1 | K4: 1 | L4: 2 | M4: 2 | N4: 1 | O4: 2 | P4: 1
H5: 08DPR0535Z | I5: 4 | J5: 1 | K5: 1 | L5: 4 | M5: 4 | N5: 4 | O5: 4 | P5: 1
H6: 08DPR0535Z | I6: 5 | J6: 1 | N6: 2 | O6: 4
H7: 08DPR0535Z | I7: 6 | J7: 1 | K7: 1 | L7: 2 | M7: 2 | N7: 2 | O7: 2 | P7: 2
H8: 08DPR0535Z | I8: 7 | J8: 1 | K8: 1 | L8: 1 | M8: 1 | N8: 1 | O8: 1 | P8: 1
H9: 08DPR0535Z | I9: 8 | J9: 1 | K9: 1 | L9: 2 | M9: 2 | N9: 1 | O9: 2 | P9: 1
H10: 08DPR0535Z | I10: 9 | J10: 1 | K10: 3 | M10: 1 | N10: 1 | O10: 2 | P10: 2
H11: 08DPR0535Z | I11: 10 | J11: 1 | K11: 1 | L11: 1 | M11: 1 | N11: 1 | O11: 1 | P11: 1
H12: 08DPR0535Z | I12: 11 | N12: 1
H13: 08DPR0535Z | I13: 12 | K13: 1 | L13: 1 | M13: 3 | N13: 1 | O13: 2 | P13: 1
H14: 08DPR0535Z | I14: 13 | J14: 2 | K14: 4 | M14: 3 | N14: 4 | P14: 4
H15: 08DPR0535Z | I15: 14 | J15: 1 | K15: 2 | L15: 2 | M15: 2 | N15: 2 | O15: 2 | P15: 2
H16: 08DPR0535Z | I16: 15 | J16: 1 | K16: 2 | L16: 2 | M16: 2 | N16: 2 | O16: 2 | P16: 3
H17: 08DPR0535Z | I17: 16 | L17: 2
H18: 08DPR0535Z | I18: 17 | J18: 1 | K18: 1 | L18: 2 | M18: 1 | N18: 4 | O18: 1 | P18: 1
H19: 08DPR0535Z | I19: 19 | J19: 1 | K19: 2 | L19: 2 | M19: 1 | N19: 2 | O19: 2 | P19: 2
H20: 08DPR0535Z | I20: 20 | J20: 1 | K20: 1 | L20: 1 | M20: 1 | N20: 1 | O20: 1 | P20: 1
H21: 08DPR0535Z | I21: 21 | J21: 1 | K21: 1 | L21: 2 | M21: 2 | N21: 2 | O21: 2 | P21: 2
H22: 08DPR0535Z | I22: 22 | J22: 1 | K22: 1 | L22: 1 | M22: 2 | N22: 2 | O22: 2
H23: 08DPR0535Z | I23: 23 | J23: 1 | K23: 1 | L23: 1 | M23: 2 | N23: 2 | O23: 2 | P23: 1
H24: 08DPR0535Z | I24: 24 | J24: 1 | K24: 1 | L24: 1 | M24: 1 | N24: 4 | O24: 4 | P24: 1
H25: 08DPR0535Z | I25: 25 | J25: 2 | K25: 2 | L25: 3 | M25: 3 | N25: 2 | O25: 2 | P25: 2
H26: 08DPR0535Z | I26: 26 | J26: 1 | K26: 1 | L26: 1 | M26: 1 | N26: 1 | O26: 1 | P26: 1
H27: 08DPR0535Z | I27: 27 | J27: 1 | K27: 1 | L27: 1 | M27: 1 | O27: 2 | P27: 1
H28: 08DPR0535Z | I28: 28 | J28: 1 | K28: 4 | L28: 1 | M28: 1 | N28: 1 | O28: 1 | P28: 4
H29: 08DPR0535Z | I29: 29 | J29: 2 | K29: 2 | L29: 1 | M29: 1 | N29: 2 | O29: 2 | P29: 2
H30: 08DPR0535Z | I30: 30 | J30: 1 | K30: 2 | L30: 1 | M30: 2 | N30: 1 | O30: 1 | P30: 1
H31: 08DPR0535Z | I31: 31 | J31: 1 | K31: 1 | L31: 1 | M31: 1 | N31: 1 | O31: 1 | P31: 1
H32: 08DPR0535Z | I32: 32 | J32: 1 | K32: 1 | L32: 1 | M32: 1 | N32: 1 | O32: 1 | P32: 1
H33: 08DPR0535Z | I33: 33 | J33: 1 | K33: 1 | L33: 1 | M33: 1 | N33: 1 | O33: 1 | P33: 1
H34: 08DPR0535Z | I34: 34 | J34: 1 | K34: 2 | L34: 1 | M34: 1 | N34: 1 | O34: 1 | P34: 1
H35: 08DPR0535Z | I35: 35 | J35: 1 | K35: 1 | L35: 1 | M35: 1 | N35: 1 | O35: 1 | P35: 1
H36: 08DPR0535Z | I36: 36 | J36: 1 | K36: 2 | L36: 1 | M36: 1 | N36: 1 | O36: 1 | P36: 1
H37: 08DPR0535Z | I37: 37 | J37: 3 | K37: 3 | L37: 3 | M37: 3 | N37: 3 | O37: 3 | P37: 3
H38: 08DPR0535Z | I38: 38 | J38: 1 | K38: 1 | L38: 1 | M38: 1 | N38: 1 | O38: 1 | P38: 1
H39: 08DPR0535Z | I39: 39 | J39: 1 | K39: 1 | L39: 1 | M39: 1 | N39: 1 | O39: 2 | P39: 1
H40: 08DPR0535Z | I40: 40 | J40: 1 | K40: 1 | L40: 1 | M40: 1 | N40: 1 | O40: 1 | P40: 1
H41: 08DPR0535Z | I41: 41 | J41: 1 | K41: 1 | L41: 1 | M41: 4 | N41: 3 | O41: 3 | P41: 2
H42: 08DPR0535Z | I42: 42 | J42: 1 | K42: 1 | L42: 1 | M42: 1 | N42: 2 | O42: 5 | P42: 1
H43: 08DPR0535Z | I43: 43 | J43: 1 | K43: 1 | L43: 1 | M43: 3 | N43: 1 | O43: 2 | P43: 1
H44: 08DPR0535Z | I44: 44 | J44: 1 | K44: 1 | L44: 2 | M44: 2 | N44: 1 | O44: 1 | P44: 2
H45: 08DPR0535Z | I45: 45 | J45: 1 | K45: 1 | L45: 1 | M45: 1 | N45: 1 | O45: 1 | P45: 1
H46: 08DPR0535Z | I46: 46 | L46: 1 | M46: 1 | O46: 1 | P46: 1
H47: 08DPR0535Z | I47: 47 | J47: 4 | K47: 1 | L47: 1 | M47: 1 | N47: 1 | O47: 1 | P47: 5
H48: 08DPR0535Z | I48: 48 | J48: 1 | K48: 2 | L48: 2 | M48: 2 | N48: 2 | O48: 2 | P48: 1
H49: 08DPR0535Z | I49: 50 | J49: 4 | K49: 2 | L49: 3 | M49: 5 | N49: 4 | O49: 3 | P49: 5
H50: 08DPR0535Z | I50: 51 | J50: 1 | K50: 1 | L50: 1 | M50: 2 | N50: 3 | O50: 2 | P50: 1
H51: 08DPR0535Z | I51: 52 | J51: 2 | K51: 2 | L51: 2 | M51: 2 | N51: 2 | O51: 2 | P51: 2
H52: 08DPR0535Z | I52: 54 | J52: 1 | K52: 1 | L52: 5 | M52: 1 | N52: 1 | O52: 1 | P52: 1
H53: 08DPR0535Z | I53: 55 | J53: 2 | K53: 1 | L53: 1 | M53: 3 | N53: 1 | O53: 2 | P53: 1
H54: 08DPR0535Z | I54: 56 | J54: 1 | K54: 1 | L54: 1 | M54: 1 | N54: 1 | O54: 1 | P54: 1
H55: 08DPR0535Z | I55: 57 | J55: 1 | K55: 1 | L55: 4 | M55: 2 | N55: 1 | O55: 2 | P55: 1
H56: 08DPR0535Z | I56: 58 | J56: 1 | K56: 1 | L56: 1 | M56: 1 | N56: 1 | O56: 1 | P56: 1
H57: 08DPR0535Z | I57: 59 | J57: 1 | K57: 1 | L57: 1 | M57: 1 | N57: 1 | O57: 1 | P57: 1
H58: 08DPR0535Z | I58: 60 | J58: 2 | K58: 2 | L58: 1 | M58: 2 | N58: 3 | O58: 3 | P58: 1
H59: 08DPR0535Z | I59: 61 | J59: 1 | K59: 3 | L59: 2 | M59: 3 | N59: 4 | O59: 3 | P59: 1
H60: 08DPR0535Z | I60: 62 | J60: 1 | K60: 1 | L60: 2 | M60: 1 | N60: 2 | O60: 1 | P60: 1
H61: 08DPR0535Z | I61: 63 | J61: 1 | K61: 1 | L61: 1 | M61: 3 | N61: 1 | O61: 1 | P61: 1
H62: 08DPR0535Z | I62: 64 | J62: 1 | K62: 2 | L62: 1 | M62: 2 | N62: 2 | O62: 2 | P62: 2
H63: 08DPR0535Z | I63: 65 | J63: 1 | K63: 1 | L63: 1 | M63: 1 | N63: 1 | O63: 1 | P63: 1
H64: 08DPR0535Z | I64: 66 | J64: 2 | K64: 1 | L64: 1 | M64: 3 | N64: 2 | O64: 1 | P64: 2
H65: 08DPR0535Z | I65: 67 | J65: 2 | K65: 1 | L65: 1 | M65: 2 | N65: 1 | O65: 1 | P65: 2
H66: 08DPR0535Z | I66: 68 | J66: 1 | K66: 1 | L66: 1 | M66: 1 | N66: 2 | O66: 1 | P66: 1
H67: 08DPR0535Z | I67: 69 | J67: 1 | K67: 1 | L67: 2 | M67: 2 | N67: 2 | O67: 1 | P67: 1

Sheet ICDI
A1: INDICADOR COMPUESTO DE DEPRESIÓN (PROMEDIO GLOBAL DE LA MUESTRA VS. CENTRO ESCOLAR)
T2: CLAVECCT | U2: TRISTE | V2: AMIGOS NO TE QUIEREN | W2: TE SEPARAS | X2: SIENTES CANSANCIO | Y2: SIN GANAS | Z2: EN EL DÍA ACOSTADO | AA2: INDICADOR DE DEPRESIÓN INFANTIL EN CADA ESCUELA
B3: Estadísticos | C3: Columna1 | D3: Columna2 | T3: 08DPR0535Z | U3: 1.709677419 | V3: 2.482758621 | W3: 2.5 | X3: 2.066666667 | Y3: 2.448275862 | Z3: 2.724137931 | AA3: =(U3+V3+W3+X3+Y3+Z3)/6 -> 2.321919417
B4: INDICADOR COMPUESTO DE DEPRESIÓN INFANTIL (ICDI) | H4: PROMEDIO | AA4: =(U4+V4+W4+X4+Y4+Z4)/6 -> 0
B5: N | C5: Válido | D5: 3927 | G5: ICDI | H5: 2.6665 | AA5: 0
C6: Perdidos | D6: 246 | AA6: 0
B7: Media | D7: 2.6665 | K7: CENTRO ESCOLAR | AA7: 0
B8: Moda | D8: 4 | K8: 08DPR0535Z | AA8: 0
B9: Desv. Desviación | D9: 0.8923 | K9: BENITO JUAREZ | AA9: 0
B10: Mínimo | D10: 1 | AA10: 0
B11: Máximo | D11: 4 | AA11: 0
AA12: 0
AA13: 0
AA14: 0
B15: VARIABLES COMBINADAS | AA15: 0
B16: 1. Te sientes triste. | AA16: 0
B17: 3. Sientes que tus amigos o amigas no te quieren. | AA17: 0
B18: 6. Te separas de los demás, prefieres estar solo. | AA18: 0
B19: 8. Sientes cansancio. | AA19: 0
B20: 9. No tienes ganas de hacer nada | AA20: 0
B21: 10. Durante el día prefieres estar acostado/a, durmiendo. | AA21: 0
AA22: 0
AA23: 0
AA24: 0
AA25: 0
AA26: 0
AA27: 0
AA28: 0
AA29: 0
AA30: 0
AA31: 0
AA32: 0
AA33: 0
AA34: 0
AA35: 0
AA36: 0
AA37: 0
AA38: 0
AA39: 0
AA40: 0
AA41: 0
AA42: 0
AA43: 0
AA44: 0
AA45: 0
AA46: 0
AA47: 0
AA48: 0

Sheet ICDI_DESEMPEÑO
A1: ICDI Y SU RELACIÓN CON EL DESEMPEÑO ESCOLAR
A2: Columna1 | B2: Columna2 | C2: Columna3 | D2: Columna4 | E2: Columna5 | F2: Columna6 | G2: Columna7 | H2: Columna8
A3: Informe
A4: ind_compuesto_depr
A5: 5.- ¿En este ciclo escolar ¿Cómo ha sido tu asistencia a las clases? | B5: Media | C5: N | D5: Desv. Desviación | Q5: <---- ICDI MUY ACENTUADO
A6: Nunca he faltado | B6: 1.2915 | C6: 1226 | D6: 0.93501 | F6: =(B6-4)*-1 -> 2.7085 | H6: 2.7085
A7: Falté muy poco casi nunca | B7: 1.2953 | C7: 2084 | D7: 0.85031 | F7: =(B7-4)*-1 -> 2.7047 | H7: 2.7047
A8: Falté varias veces | B8: 1.485 | C8: 458 | D8: 0.89048 | F8: =(B8-4)*-1 -> 2.515 | H8: 2.515
A9: Falté muchas veces | B9: 1.684 | C9: 73 | D9: 0.97728 | F9: =(B9-4)*-1 -> 2.316 | H9: 2.316 | Q9: <---- ICDI REGULARMENTE ACENTUADO
A10: Total | B10: 2.6759 | C10: 3841 | D10: 0.88866
A14: Tabla de ANOVA | Q14: <---- ICDI POCO ACENTUADO
D15: Suma de cuadrados | E15: gl | F15: Media cuadrática | G15: F | H15: Sig.
A16: ind_compuesto_depr * 5.- ¿En este ciclo escolar ¿Cómo ha sido tu asistencia a las clases? | B16: Entre grupos | C16: (Combinado) | D16: 24.338 | E16: 3 | F16: 8.113 | G16: 10.348 | H16: 0
B17: Dentro de grupos | D17: 3008.156 | E17: 3837 | F17: 0.784
B18: Total | D18: 3032.493 | E18: 3840
A22: ind_compuesto_depr * 6.- ¿Aproximadamente cuál es el promedio de calificación general que llevas hasta este momento? | Q22: <---- ICDI MUY ACENTUADO
A23: Informe
A24: ind_compuesto_depr
A25: 6.- ¿Aproximadamente cuál es el promedio de calificación general que llevas hasta este momento? | B25: Media | C25: N | D25: Desv. Desviación
A26: Promedio reprobatorio | B26: 1.6821 | C26: 80 | D26: 0.93797 | F26: =(B26-4)*-1 -> 2.3179 | H26: 2.3179 | Q26: <---- ICDI REGULARMENTE ACENTUADO
A27: Entre 6 y 7 | B27: 1.5313 | C27: 477 | D27: 0.89064 | F27: =(B27-4)*-1 -> 2.4687 | H27: 2.4687
A28: Entre 7.1 y 8 | B28: 1.4154 | C28: 933 | D28: 0.87037 | F28: 2.5846 | H28: 2.5846
A29: Entre 8.1 y 9 | B29: 1.2614 | C29: 1437 | D29: 0.87513 | F29: 2.7386 | H29: 2.7386
A30: Más de 9 | B30: 1.1911 | C30: 818 | D30: 0.89217 | F30: 2.8089 | H30: 2.8089
A31: Total | B31: 2.6722 | C31: 3745 | D31: 0.88942 | Q31: <---- ICDI POCO ACENTUADO
A35: Tabla de ANOVA
D36: Suma de cuadrados | E36: gl | F36: Media cuadrática | G36: F | H36: Sig.
A37: ind_compuesto_depr * 6.- ¿Aproximadamente cuál es el promedio de calificación general que llevas hasta este momento? | B37: Entre grupos | C37: (Combinado) | D37: 58.566 | E37: 4 | F37: 14.641 | G37: 18.862 | H37: 0
B38: Dentro de grupos | D38: 2903.193 | E38: 3740 | F38: 0.776 | Q38: <---- ICDI MUY ACENTUADO
B39: Total | D39: 2961.758 | E39: 3744
Q42: <---- ICDI REGULARMENTE ACENTUADO
A43: Medidas de asociación
B44: Eta | C44: Eta al cuadrado
A45: ind_compuesto_depr * 6.- ¿Aproximadamente cuál es el promedio de calificación general que llevas hasta este momento? | B45: 0.141 | C45: 0.02
Q47: <---- ICDI POCO ACENTUADO
A49: ind_compuesto_depr * 7.- ¿Cuánto tiempo estudias o haces la tarea en casa?
A50: Informe
A51: ind_compuesto_depr
A52: 7.- ¿Cuánto tiempo estudias o haces la tarea en casa? | B52: Media | C52: N | D52: Desv. Desviación
A53: No hago tarea | B53: 1.643 | C53: 105 | D53: 0.98932 | F53: =(B53-4)*-1 -> 2.357 | H53: 2.357
A54: Menos de 30 min | B54: 1.327 | C54: 1304 | D54: 0.88197 | F54: =(B54-4)*-1 -> 2.673 | H54: 2.673
A55: Más de 30 min y menos de 1 hora | B55: 1.265 | C55: 1277 | D55: 0.84025 | F55: 2.735 | H55: 2.735 | Q55: <---- ICDI MUY ACENTUADO
A56: Más de 1 hora pero menos de 2 | B56: 1.2901 | C56: 750 | D56: 0.88852 | F56: 2.7099 | H56: 2.7099
A57: Más de 2 horas | B57: 1.5144 | C57: 367 | D57: 0.99557 | F57: 2.4856 | H57: 2.4856
A58: Total | B58: 1.3257 | C58: 3803 | D58: 0.88823 | F58: 2.6743 | H58: 2.6743
Q59: <---- ICDI REGULARMENTE ACENTUADO
A62: Tabla de ANOVA
D63: Suma de cuadrados | E63: gl | F63: Media cuadrática | G63: F | H63: Sig.
A64: ind_compuesto_depr * 7.- ¿Cuánto tiempo estudias o haces la tarea en casa? | B64: Entre grupos | C64: (Combinado) | D64: 29.302 | E64: 4 | F64: 7.326 | G64: 9.367 | H64: 0 | Q64: <---- ICDI POCO ACENTUADO
B65: Dentro de grupos | D65: 2970.314 | E65: 3798 | F65: 0.782
B66: Total | D66: 2999.616 | E66: 3802
A70: Informe
A71: ind_compuesto_depr
A72: 1.- ¿Cuáles son tus metas a futuro en tus estudios? | B72: Media | C72: N | D72: Desv. Desviación
A73: Sólo terminar primaria | B73: 1.7776 | C73: 81 | D73: 0.9837 | F73: 2.2224 | G73: =(B73-4)*-1 -> 2.2224
A74: Terminar secundaria | B74: 1.6046 | C74: 160 | D74: 0.925 | F74: 2.3954 | G74: =(B74-4)*-1 -> 2.3954
A75: Terminar preparatoria | B75: 1.504 | C75: 435 | D75: 0.95109 | F75: 2.496 | G75: 2.496
A76: Hacer una carreraprofesional | B76: 1.2806 | C76: 3139 | D76: 0.86647 | F76: 2.7194 | G76: 2.7194
A77: Total | B77: 1.3302 | C77: 3815 | D77: 0.88853 | F77: 2.6698 | G77: 2.6698
A81: Tabla de ANOVA
D82: Suma de cuadrados | E82: gl | F82: Media cuadrática | G82: F | H82: Sig.
A83: ind_compuesto_depr * 1.- ¿Cuáles son tus metas a futuro en tus estudios? | B83: Entre grupos | C83: (Combinado) | D83: 49.13 | E83: 3 | F83: 16.377 | G83: 21.071 | H83: 0
B84: Dentro de grupos | D84: 2961.942 | E84: 3811 | F84: 0.777
B85: Total | D85: 3011.072 | E85: 3814

Sheet VIOLENCIA CIBERNÉTICA
A1: VIOLENCIA CIBERNÉTICA
C4: EQUIPO O SERVICIO | D4: PORCENTAJE | M4: RESPUESTA | N4: 1. Te han insultado o avergonzado con llamadas o mensajes por el teléfono celular. | O4: 2. Te han amenazado diciéndote cosas feas para que tengas miedo. | P4: 3. Han dicho mentiras o cosas falsas sobre ti. | Q4: 4. Tus amigos/as han mostrado a otros, cosas personales tuyas que no quieres que vean. | R4: 5. Han puesto fotos o videos tuyos en los celulares sin tu permiso. | S4: 6. Te han llamado para molestarte. | T4: 7. Te han enviado cosas feas.
C5: Computadora(s). | D5: 54.6 | M5: Muchas veces | N5: 12.3 | O5: 10.3 | P5: 13.6 | Q5: 10.3 | R5: 10.1 | S5: 11.1 | T5: 11
C6: Aparatos de juegos electrónicos. | D6: 57.7 | M6: Algunas veces | N6: 8.9 | O6: 12.2 | P6: 18.9 | Q6: 12.5 | R6: 8.8 | S6: 11.9 | T6: 9.2
C7: Internet en la casa. | D7: 54.5 | M7: Nunca | N7: 78.7 | O7: 77.4 | P7: 67.5 | Q7: 77.2 | R7: 81.1 | S7: 77 | T7: 79.8
C8: Internet en el celular. | D8: 64.9
C9: ¿Tienes teléfono celular para tu uso personal? | D9: 54

Sheet EMPATÍA
B3: CLAVECCT | C3: ID_ESTUDIANTE | D3: Sexo | E3: Suma de INDICADOR EMPATÍA | F3: INDICADOR EMPATÍA POR ESTUDIANTE | L3: CLAVECCT | M3: Promedio de INDICADOR EMPATÍA | N3: INDICADOR EMPATÍA POR ESCUELA
B4: 08DPR0535Z | C4: 1 | D4: 2 | E4: 18 | F4: =((E4/10)-4)*-1 -> 2.2 | L4: 08DPR0535Z | M4: 18.77272727 | N4: =((M4/10)-4)*-1 -> 2.122727273
B5: 08DPR0535Z | C5: 2 | D5: 2 | E5: 23 | F5: =((E5/10)-4)*-1 -> 1.7 | N5: =((M5/10)-4)*-1 -> 4
B6: 08DPR0535Z | C6: 3 | D6: 1 | E6: 31 | F6: 0.9 | N6: 4
B7: 08DPR0535Z | C7: 4 | D7: 2 | E7: 28 | F7: 1.2 | N7: 4
B8: 08DPR0535Z | C8: 5 | D8: 1 | E8: 4 | F8: 3.6 | N8: 4
B9: 08DPR0535Z | C9: 6 | D9: 2 | E9: 17 | F9: 2.3 | N9: 4
B10: 08DPR0535Z | C10: 7 | D10: 2 | E10: 13 | F10: 2.7 | N10: 4
B11: 08DPR0535Z | C11: 8 | D11: 1 | E11: 16 | F11: 2.4 | N11: 4
B12: 08DPR0535Z | C12: 9 | D12: 1 | E12: 10 | F12: 3 | J12: CENTRO ESCOLAR | N12: 4
B13: 08DPR0535Z | C13: 10 | D13: 1 | E13: 36 | F13: 0.4 | J13: 08DPR0535Z | N13: 4
B14: 08DPR0535Z | C14: 11 | D14: 2 | E14: 3 | F14: 3.7 | J14: BENITO JUAREZ | N14: 4
B15: 08DPR0535Z | C15: 12 | D15: 1 | E15: 31 | F15: 0.9 | N15: 4
B16: 08DPR0535Z | C16: 13 | D16: 1 | E16: 11 | F16: 2.9 | N16: 4
B17: 08DPR0535Z | C17: 14 | D17: 2 | E17: 18 | F17: 2.2 | N17: 4
B18: 08DPR0535Z | C18: 15 | D18: 1 | E18: 24 | F18: 1.6 | N18: 4
B19: 08DPR0535Z | C19: 16 | D19: 1 | E19: 7 | F19: 3.3 | N19: 4
B20: 08DPR0535Z | C20: 17 | D20: 1 | E20: 14 | F20: 2.6 | N20: 4
B21: 08DPR0535Z | C21: 19 | D21: 1 | E21: 26 | F21: 1.4 | N21: 4
B22: 08DPR0535Z | C22: 20 | D22: 2 | E22: 10 | F22: 3 | N22: 4
B23: 08DPR0535Z | C23: 21 | D23: 1 | E23: 20 | F23: 2 | N23: 4
B24: 08DPR0535Z | C24: 22 | D24: 2 | E24: 10 | F24: 3 | N24: 4
B25: 08DPR0535Z | C25: 23 | D25: 1 | E25: 20 | F25: 2 | N25: 4
B26: 08DPR0535Z | C26: 24 | D26: 2 | E26: 13 | F26: 2.7 | N26: 4
B27: 08DPR0535Z | C27: 25 | D27: 1 | E27: 32 | F27: 0.8 | N27: 4
B28: 08DPR0535Z | C28: 26 | D28: 2 | E28: 22 | F28: 1.8 | N28: 4
B29: 08DPR0535Z | C29: 27 | D29: 1 | E29: 34 | F29: 0.6 | N29: 4
B30: 08DPR0535Z | C30: 28 | D30: 2 | E30: 19 | F30: 2.1 | N30: 4
B31: 08DPR0535Z | C31: 29 | D31: 2 | E31: 38 | F31: 0.2 | N31: 4
B32: 08DPR0535Z | C32: 30 | D32: 2 | E32: 17 | F32: 2.3 | N32: 4
B33: 08DPR0535Z | C33: 31 | D33: 2 | E33: 17 | F33: 2.3 | N33: 4
B34: 08DPR0535Z | C34: 32 | D34: 2 | E34: 12 | F34: 2.8 | N34: 4
B35: 08DPR0535Z | C35: 33 | D35: 1 | E35: 10 | F35: 3 | N35: 4
B36: 08DPR0535Z | C36: 34 | D36: 2 | E36: 18 | F36: 2.2 | N36: 4
B37: 08DPR0535Z | C37: 35 | D37: 2 | E37: 14 | F37: 2.6 | N37: 4
B38: 08DPR0535Z | C38: 36 | D38: 2 | E38: 19 | F38: 2.1 | N38: 4
B39: 08DPR0535Z | C39: 37 | D39: 2 | E39: 24 | F39: 1.6 | N39: 4
B40: 08DPR0535Z | C40: 39 | D40: 1 | E40: 32 | F40: 0.8 | N40: 4
B41: 08DPR0535Z | C41: 40 | D41: 1 | E41: 40 | F41: 0 | N41: 4
B42: 08DPR0535Z | C42: 41 | D42: 1 | E42: 25 | F42: 1.5 | N42: 4
B43: 08DPR0535Z | C43: 42 | D43: 2 | E43: 16 | F43: 2.4 | N43: 4
B44: 08DPR0535Z | C44: 43 | D44: 1 | E44: 14 | F44: 2.6 | N44: 4
B45: 08DPR0535Z | C45: 44 | D45: 1 | E45: 13 | F45: 2.7 | N45: 4
B46: 08DPR0535Z | C46: 45 | D46: 1 | E46: 16 | F46: 2.4 | N46: 4
B47: 08DPR0535Z | C47: 47 | D47: 2 | E47: 30 | F47: 1 | N47: 4
B48: 08DPR0535Z | C48: 48 | D48: 1 | E48: 10 | F48: 3 | N48: 4
B49: 08DPR0535Z | C49: 49 | D49: 2 | E49: 10 | F49: 3 | N49: 4
B50: 08DPR0535Z | C50: 50 | D50: 2 | E50: 23 | F50: 1.7
B51: 08DPR0535Z | C51: 51 | D51: 2 | E51: 24 | F51: 1.6
B52: 08DPR0535Z | C52: 52 | D52: 2 | E52: 20 | F52: 2
B53: 08DPR0535Z | C53: 53 | D53: 1 | E53: 10 | F53: 3
B54: 08DPR0535Z | C54: 54 | D54: 2 | E54: 10 | F54: 3
B55: 08DPR0535Z | C55: 55 | D55: 2 | E55: 18 | F55: 2.2
B56: 08DPR0535Z | C56: 56 | D56: 2 | E56: 14 | F56: 2.6
B57: 08DPR0535Z | C57: 57 | D57: 1 | E57: 26 | F57: 1.4
B58: 08DPR0535Z | C58: 58 | D58: 1 | E58: 21 | F58: 1.9
B59: 08DPR0535Z | C59: 59 | D59: 1 | E59: 19 | F59: 2.1
B60: 08DPR0535Z | C60: 60 | D60: 2 | E60: 12 | F60: 2.8
B61: 08DPR0535Z | C61: 61 | D61: 1 | E61: 18 | F61: 2.2
B62: 08DPR0535Z | C62: 62 | D62: 1 | E62: 12 | F62: 2.8
B63: 08DPR0535Z | C63: 63 | D63: 2 | E63: 18 | F63: 2.2
B64: 08DPR0535Z | C64: 64 | D64: 1 | E64: 20 | F64: 2
B65: 08DPR0535Z | C65: 65 | D65: 1 | E65: 24 | F65: 1.6
B66: 08DPR0535Z | C66: 66 | D66: 2 | E66: 14 | F66: 2.6
B67: 08DPR0535Z | C67: 67 | D67: 2 | E67: 23 | F67: 1.7
B68: 08DPR0535Z | C68: 68 | D68: 2 | E68: 10 | F68: 3
B69: 08DPR0535Z | C69: 69 | D69: 1 | E69: 18 | F69: =((E69/10)-4)*-1 -> 2.2
F70: 4
F71: 4
F72: 4
F73: 4
F74: 4
F75: 4
F76: 4
F77: 4
F78: 4
F79: 4
F80: 4
F81: 4
F82: 4
F83: 4
F84: 4
F85: 4
F86: 4
F87: 4
F88: 4
F89: 4
F90: 4
F91: 4
F92: 4
F93: 4
F94: 4
F95: 4
F96: 4
F97: 4
F98: 4
F99: 4
F100: 4
F101: 4
F102: 4
F103: 4
F104: 4
F105: 4
F106: 4
F107: 4
F108: 4
F109: 4
F110: 4
F111: 4
F112: 4
F113: 4
F114: 4
F115: 4
F116: 4
F117: 4
F118: 4
F119: 4
F120: 4
F121: 4
F122: 4
F123: 4
F124: 4
F125: 4
F126: 4
F127: 4
F128: 4
F129: 4
F130: 4
F131: 4
F132: 4
F133: =((E133/10)-4)*-1 -> 4
F134: 4
F135: 4
F136: 4
F137: 4
F138: 4
F139: 4
F140: 4
F141: 4
F142: 4
F143: 4
F144: 4
F145: 4
F146: 4
F147: 4
F148: 4
F149: 4
F150: 4
F151: 4
F152: 4
F153: 4
F154: 4
F155: 4
F156: 4
F157: 4
F158: 4
F159: 4
F160: 4
F161: 4
F162: 4
F163: 4
F164: 4
F165: 4
F166: 4
F167: 4
F168: 4
F169: 4
F170: 4
F171: 4
F172: 4
F173: 4
F174: 4
F175: 4
F176: 4
F177: 4
F178: 4
F179: 4
F180: 4
F181: 4
F182: 4
F183: 4
F184: 4
F185: 4
F186: 4
F187: 4
F188: 4
F189: 4
F190: 4
F191: 4
F192: 4
F193: 4
F194: 4
F195: 4
F196: 4
F197: =((E197/10)-4)*-1 -> 4
F198: 4
F199: 4
F200: 4
F201: 4
F202: 4
... 3825 more rows

Sheet EMPATÍA INDCADOR
D1: INDICADOR EMPATÍA | E1: PROMEDIO NEGATIVO | F1: PROMEDIO POSITIVO | G1: Máximo | H1: Media | I1: Desv. Desviación | J1: Asimetría | K1: Desv. Error
D2: 1. Me preocupo por los demás cuando tienen problemas. | E2: 1.92 | F2: =(E2-4)*-1 -> 2.08 | G2: 4 | H2: 1.92 | I2: 1.014 | J2: 0.867 | K2: 0.039
D3: 2. No entiendo por qué las personas se sienten mal. | E3: 2.27 | F3: =(E3-4)*-1 -> 1.73 | G3: 4 | H3: 2.27 | I3: 1.121 | J3: 0.404 | K3: 0.039
D4: 3. Cuando veo una película me identifico con un personaje. | E4: 2.19 | F4: 1.81 | G4: 4 | H4: 2.19 | I4: 1.186 | J4: 0.449 | K4: 0.04
D5: 4. Me gusta defender a los demás. | E5: 1.93 | F5: 2.07 | G5: 4 | H5: 1.93 | I5: 1.062 | J5: 0.839 | K5: 0.04
D6: 5. No me gusta criticar a los demás. | E6: 2.78 | F6: 1.22 | G6: 4 | H6: 2.78 | I6: 1.273 | J6: -0.357 | K6: 0.04
D7: 6. Pienso que haría yo estando en el lugar de otra persona con problemas. | E7: 2.44 | F7: 1.56 | G7: 4 | H7: 2.44 | I7: 1.234 | J7: 0.115 | K7: 0.04
D8: 7. Antes de hablar me gusta escuchar lo que los demás tienen que decir. | E8: 1.8 | F8: 2.2 | G8: 4 | H8: 1.8 | I8: 1.045 | J8: 1.078 | K8: 0.04
D9: 8. Entiendo a mis amigos cuando pasan por una situación difícil. | E9: 1.67 | F9: 2.33 | G9: 4 | H9: 1.67 | I9: 0.976 | J9: 1.318 | K9: 0.04
D10: 9. Me gusta cuidar de otras personas. | E10: 1.78 | F10: 2.22 | G10: 4 | H10: 1.78 | I10: 0.984 | J10: 1.092 | K10: 0.04
D11: 10. Me pone triste ver en las noticias a víctimas de terremotos, huracanes o desgracias grandes. | E11: 1.74 | F11: 2.26 | G11: 4 | H11: 1.74 | I11: 1.063 | J11: 1.17 | K11: 0.04
D12: N válido (por lista)
C33: Estadísticos descriptivos
D34: N | E34: Mínimo | F34: Máximo | G34: Media | H34: Desv. Desviación | I34: Asimetría
C35: Estadístico | D35: PROMEDIO | E35: Estadístico | F35: Estadístico | G35: Estadístico | H35: Estadístico | I35: Estadístico | J35: Desv. Error
C36: INDICADOR_EMPATÍA | D36: 2.0492 | E36: 1 | F36: 4 | H36: 0.70659 | I36: 0.699 | J36: 0.039
C37: N válido (por lista) | D37: 4024
